Directorate,Department,Expenditure Type,Ref.Doc.1,Vendor Name,Expenditure Amount (exc VAT),Payment Date
Assurance,Assurance,Advertising,60043738,THE BARNETGROUP LIMITED, 750.00 ,22/01/2016
Assurance,Assurance,Advertising,60043932,THE BARNETGROUP LIMITED, 750.00 ,22/01/2016
Assurance,Assurance,Equipment and Materials Purcha,20027532,REDACTED - PERSONAL DATA, 75.00 ,08/01/2016
Assurance,Assurance,Miscellaneous Expenses,20027700,REDACTED - PERSONAL DATA, 36.50 ,15/01/2016
Assurance,Assurance,Miscellaneous Expenses,60040886,REDACTED - PERSONAL DATA, 150.00 ,05/01/2016
Assurance,Assurance,Other Indirect Employee Expens,20027531,CONFERENCE OF EUROPEAN RABBIS, 300.00 ,08/01/2016
Assurance,Assurance,Other Indirect Employee Expens,20027699,JEWISH VOLUNTEERING NETWORK, 250.00 ,15/01/2016
Assurance,Assurance,Other Indirect Employee Expens,20027881,LONDON MAYORS ASSOCIATION, 160.00 ,22/01/2016
Assurance,Assurance,Other Indirect Employee Expens,20027698,REDACTED - PERSONAL DATA, 138.90 ,15/01/2016
Assurance,Assurance,Other Services,10012995,ELECTORAL REFORM SERVICES," 1,149.30 ",19/01/2016
Assurance,Assurance,Other Services,10012996,ELECTORAL REFORM SERVICES," 3,786.75 ",19/01/2016
Assurance,Assurance,Other Services,60034777,ELECTORAL REFORM SERVICES," 41,970.68 ",11/01/2016
Assurance,Assurance,Other Services,60041404,REDACTED - PERSONAL DATA, 430.00 ,07/01/2016
Assurance,Assurance,Professional Services,60042003,ASSOCIATION OF ELECTORAL ADMINISTRA, 715.00 ,14/01/2016
Assurance,Assurance,Professional Services,10012994,ELECTORAL REFORM SERVICES," 1,561.05 ",18/01/2016
Assurance,Assurance,Professional Services,10012997,ELECTORAL REFORM SERVICES, 885.60 ,18/01/2016
Assurance,Assurance,Professional Services,60011248,ELECTORAL REFORM SERVICES, 137.94 ,11/01/2016
Assurance,Assurance,Professional Services,60042645,ELECTORAL REFORM SERVICES," 1,555.42 ",11/01/2016
Assurance,Assurance,Professional Services,60042649,ELECTORAL REFORM SERVICES, 785.98 ,11/01/2016
Assurance,Assurance,Professional Services,60043880,ELECTORAL REFORM SERVICES," 2,184.22 ",28/01/2016
Assurance,Assurance,Professional Services,60041302,PRICEWATERHOUSE COOPERS," 8,695.00 ",07/01/2016
Assurance,Assurance,Professional Services,60041377,PRICEWATERHOUSE COOPERS," 17,325.00 ",07/01/2016
Assurance,Assurance,Professional Services,20027942,ST JOHN AMBULANCE (SAC), 105.60 ,26/01/2016
Assurance,Assurance,Professional Services,60034808,THOMSON REUTERS (PROFESSIONAL)UK LT, 185.00 ,28/01/2016
Assurance,Assurance,Publications,60044929,REDACTED - PERSONAL DATA, 250.00 ,29/01/2016
Assurance,Assurance,Rents,60042891,ARTS DEPOT PRODUCTIONS LTD," 1,772.25 ",13/01/2016
Assurance,Assurance,Software Licences & Support,60041376,INTEC FOR BUSINESS LIMITED," 3,000.00 ",06/01/2016
Assurance,Assurance,Stationery,40001308,OFFICE DEPOT UK LTD, 32.87 ,07/01/2016
Assurance,Assurance,Stationery,40001349,OFFICE DEPOT UK LTD, 178.34 ,20/01/2016
Assurance,Assurance,Subscriptions,60044293,ASSOCIATION OF ELECTORAL ADMINISTRA, 285.00 ,22/01/2016
Assurance,Assurance,Subscriptions,60042958,REDACTED - PERSONAL DATA, 9.98 ,12/01/2016
Assurance,Assurance,Subscriptions,60044643,REDACTED - PERSONAL DATA, 100.00 ,27/01/2016
Assurance,Assurance,Subscriptions,20027701,THE INFORMATION COMMISSIONER, 35.00 ,15/01/2016
Assurance,Assurance,Training,60033862,LLG LEGAL TRAINING, 396.00 ,12/01/2016
Central Expenses,Central Expenses,Insurance Claims,80001879,AIG EUROPE LIMITED, 666.83 ,22/01/2016
Central Expenses,Central Expenses,Insurance Claims,80001657,ANGLIAN ASSESSORS, 72.00 ,08/01/2016
Central Expenses,Central Expenses,Insurance Claims,80001954,BRITISH TELECOM PLC," 2,671.47 ",29/01/2016
Central Expenses,Central Expenses,Insurance Claims,80001788,BUPA," 1,339.40 ",22/01/2016
Central Expenses,Central Expenses,Insurance Claims,80001723,DEPARTMENT FOR WORK & PENSIONS, 637.00 ,08/01/2016
Central Expenses,Central Expenses,Insurance Claims,80001747,DEPARTMENT FOR WORK AND PENSIONS, 647.00 ,12/01/2016
Central Expenses,Central Expenses,Insurance Claims,80001907,DEPARTMENT FOR WORK AND PENSIONS, 637.00 ,28/01/2016
Central Expenses,Central Expenses,Insurance Claims,80001932,DEPARTMENT FOR WORK AND PENSIONS, 627.00 ,28/01/2016
Central Expenses,Central Expenses,Insurance Claims,80001941,DEPARTMENT FOR WORK AND PENSIONS, 637.00 ,29/01/2016
Central Expenses,Central Expenses,Insurance Claims,80001735,DR J.H.BURGOYNE & PARTNERS LLP, 180.00 ,12/01/2016
Central Expenses,Central Expenses,Insurance Claims,80001757,ENTERPRISE RENT A CAR," 1,018.13 ",12/01/2016
Central Expenses,Central Expenses,Insurance Claims,80001776,ENTERPRISE RENT-A-CAR," 2,540.14 ",28/01/2016
Central Expenses,Central Expenses,Insurance Claims,80001784,HENDON WAY SURGERY, 50.00 ,22/01/2016
Central Expenses,Central Expenses,Insurance Claims,60037381,JOHNSON AUSTIN PARTNERSHIP LLP, 525.00 ,25/01/2016
Central Expenses,Central Expenses,Insurance Claims,60040549,JOHNSON AUSTIN PARTNERSHIP LLP, 130.00 ,25/01/2016
Central Expenses,Central Expenses,Insurance Claims,80001679,LONGROVE SURGERY, 25.00 ,07/01/2016
Central Expenses,Central Expenses,Insurance Claims,80001722,MORRISH SOLICITORS," 2,608.84 ",08/01/2016
Central Expenses,Central Expenses,Insurance Claims,80001772,MOTOR CLAIMS NETWORK LIMITED," 3,402.39 ",21/01/2016
Central Expenses,Central Expenses,Insurance Claims,80001916,REDACTED - PERSONAL DATA, 50.00 ,29/01/2016
Central Expenses,Central Expenses,Insurance Claims,80001751,ROYAL FREE LONDON NHS FOUNDATION TRUST, 25.00 ,12/01/2016
Central Expenses,Central Expenses,Insurance Claims,80001655,SCOTT REES & CO SOLICITORS, 241.20 ,05/01/2016
Central Expenses,Central Expenses,Insurance Claims,80001767,SIMPSON MILLAR LLP CLIENT A/C, 937.50 ,13/01/2016
Central Expenses,Central Expenses,Insurance Claims,80001789,THORNEYCROFT SOLICITORS," 1,174.00 ",22/01/2016
Central Expenses,Central Expenses,Insurance Claims,80001665,TRUE SOLICITORS," 2,353.44 ",08/01/2016
Central Expenses,Central Expenses,Insurance Claims,80001755,UK INSURANCE LTD," 1,089.40 ",12/01/2016
Central Expenses,Central Expenses,Insurance Claims,60035883,WEIGHTMANS LLP, 659.00 ,11/01/2016
Central Expenses,Central Expenses,Insurance Claims,60036176,WEIGHTMANS LLP, 462.50 ,08/01/2016
Central Expenses,Central Expenses,Insurance Claims,60040961,WEIGHTMANS LLP," 1,512.50 ",08/01/2016
Central Expenses,Central Expenses,Insurance Claims,60041136,WEIGHTMANS LLP," 1,300.00 ",08/01/2016
Central Expenses,Central Expenses,Joint Authorities - Third Part,60042771,LONDON BOROUGH OF HARINGEY," 63,448.25 ",15/01/2016
Central Expenses,Central Expenses,Joint Authorities - Third Part, EBX0097859 ,NORTH LONDON WASTE AUTHORITY," 894,643.00 ",22/01/2016
Central Expenses,Central Expenses,Other Establishments - Third P, EBX0096623 ,LEE VALLEY REGIONAL PARK AUTH.," 33,052.02 ",15/01/2016
Central Expenses,Central Expenses,Pensions To Retired Employees,60042498,LONDON PENSIONS FUND AUTHORITY," 2,848.38 ",11/01/2016
Central Expenses,Central Expenses,Pensions To Retired Employees,60042601,LONDON PENSIONS FUND AUTHORITY," 2,847.71 ",11/01/2016
Commercial,Births Deaths & Marriages,Contract Cleaning,60036815,CHURCHILL CONTRACT SERVICES, 624.26 ,13/01/2016
Commercial,Customer Support Group,Books-CDs-Audio-Video,60043214,SM ELECTRICAL SERVICES, 250.00 ,19/01/2016
Commercial,Customer Support Group,Building Repairs & Maintenance,60041713,AFFINITY WATER LIMITED, 32.85 ,27/01/2016
Commercial,Customer Support Group,Building Repairs & Maintenance,60035152,AJS LTD, 315.50 ,28/01/2016
Commercial,Customer Support Group,Building Repairs & Maintenance,60040639,AJS LTD, 33.06 ,18/01/2016
Commercial,Customer Support Group,Building Repairs & Maintenance,60043038,AJS LTD, 193.92 ,19/01/2016
Commercial,Customer Support Group,Building Repairs & Maintenance,60043130,AJS LTD, 50.00 ,18/01/2016
Commercial,Customer Support Group,Building Repairs & Maintenance,60044728,AJS LTD, 313.50 ,27/01/2016
Commercial,Customer Support Group,Building Repairs & Maintenance,60044742,AJS LTD, 312.50 ,27/01/2016
Commercial,Customer Support Group,Building Repairs & Maintenance,60044780,AJS LTD, 132.00 ,28/01/2016
Commercial,Customer Support Group,Building Repairs & Maintenance,60044797,AJS LTD, 346.50 ,28/01/2016
Commercial,Customer Support Group,Building Repairs & Maintenance,60034671,ASBESTOS CONSULTANTS EUROPE LTD T/A ACE, 650.00 ,25/01/2016
Commercial,Customer Support Group,Building Repairs & Maintenance,60042622,ASBESTOS CONSULTANTS EUROPE LTD T/A ACE, 250.00 ,28/01/2016
Commercial,Customer Support Group,Building Repairs & Maintenance,60042653,ASBESTOS CONSULTANTS EUROPE LTD T/A ACE, 250.00 ,28/01/2016
Commercial,Customer Support Group,Building Repairs & Maintenance,60043680,ASBESTOS CONSULTANTS EUROPE LTD T/A ACE, 650.00 ,29/01/2016
Commercial,Customer Support Group,Building Repairs & Maintenance,60043737,ASBESTOS CONSULTANTS EUROPE LTD T/A ACE, 650.00 ,29/01/2016
Commercial,Customer Support Group,Building Repairs & Maintenance,60043794,ASBESTOS CONSULTANTS EUROPE LTD T/A ACE, 750.00 ,29/01/2016
Commercial,Customer Support Group,Building Repairs & Maintenance,60043798,ASBESTOS CONSULTANTS EUROPE LTD T/A ACE, 650.00 ,29/01/2016
Commercial,Customer Support Group,Building Repairs & Maintenance,60043837,ASBESTOS CONSULTANTS EUROPE LTD T/A ACE, 450.00 ,29/01/2016
Commercial,Customer Support Group,Building Repairs & Maintenance,60041911,BRITISH GAS BUSINESS(ELEC), 32.45 ,13/01/2016
Commercial,Customer Support Group,Building Repairs & Maintenance,60034843,DOORWAY-MAINTENANCE CO., 85.00 ,28/01/2016
Commercial,Customer Support Group,Building Repairs & Maintenance,60041584,DOORWAY-MAINTENANCE CO., 250.00 ,07/01/2016
Commercial,Customer Support Group,Building Repairs & Maintenance,60041589,DOORWAY-MAINTENANCE CO., 120.00 ,28/01/2016
Commercial,Customer Support Group,Building Repairs & Maintenance,60042206,DOORWAY-MAINTENANCE CO., 240.00 ,28/01/2016
Commercial,Customer Support Group,Building Repairs & Maintenance,60043977,DOORWAY-MAINTENANCE CO., 250.00 ,27/01/2016
Commercial,Customer Support Group,Building Repairs & Maintenance,60041870,DORMA UK LTD," 1,457.23 ",13/01/2016
Commercial,Customer Support Group,Building Repairs & Maintenance,60042013,FRONTIER-PITTS LTD," 1,322.50 ",06/01/2016
Commercial,Customer Support Group,Building Repairs & Maintenance,60041327,GTI ENVIRONMENTAL SERVICES LTD, 425.00 ,07/01/2016
Commercial,Customer Support Group,Building Repairs & Maintenance,60042723,GTI ENVIRONMENTAL SERVICES LTD," 2,769.00 ",11/01/2016
Commercial,Customer Support Group,Building Repairs & Maintenance,60033386,HERTEL (UK) LTD, 7.00 ,28/01/2016
Commercial,Customer Support Group,Building Repairs & Maintenance,60033546,HERTEL (UK) LTD, 7.00 ,28/01/2016
Commercial,Customer Support Group,Building Repairs & Maintenance,60033579,HERTEL (UK) LTD, 7.00 ,28/01/2016
Commercial,Customer Support Group,Building Repairs & Maintenance,60033676,HERTEL (UK) LTD, 7.00 ,28/01/2016
Commercial,Customer Support Group,Building Repairs & Maintenance,60033777,HERTEL (UK) LTD, 40.83 ,28/01/2016
Commercial,Customer Support Group,Building Repairs & Maintenance,60034618,HERTEL (UK) LTD, 70.00 ,28/01/2016
Commercial,Customer Support Group,Building Repairs & Maintenance,60042936,HERTEL (UK) LTD, 122.50 ,18/01/2016
Commercial,Customer Support Group,Building Repairs & Maintenance,60043005,HERTEL (UK) LTD, 210.00 ,18/01/2016
Commercial,Customer Support Group,Building Repairs & Maintenance,60043008,HERTEL (UK) LTD, 40.83 ,20/01/2016
Commercial,Customer Support Group,Building Repairs & Maintenance,60043013,HERTEL (UK) LTD, 40.83 ,20/01/2016
Commercial,Customer Support Group,Building Repairs & Maintenance,60043015,HERTEL (UK) LTD, 40.83 ,20/01/2016
Commercial,Customer Support Group,Building Repairs & Maintenance,60043019,HERTEL (UK) LTD, 40.83 ,20/01/2016
Commercial,Customer Support Group,Building Repairs & Maintenance,60043023,HERTEL (UK) LTD, 40.83 ,25/01/2016
Commercial,Customer Support Group,Building Repairs & Maintenance,60043025,HERTEL (UK) LTD, 40.83 ,20/01/2016
Commercial,Customer Support Group,Building Repairs & Maintenance,60043026,HERTEL (UK) LTD, 40.83 ,20/01/2016
Commercial,Customer Support Group,Building Repairs & Maintenance,60043027,HERTEL (UK) LTD, 40.83 ,20/01/2016
Commercial,Customer Support Group,Building Repairs & Maintenance,60043028,HERTEL (UK) LTD, 40.83 ,20/01/2016
Commercial,Customer Support Group,Building Repairs & Maintenance,60043029,HERTEL (UK) LTD, 40.83 ,20/01/2016
Commercial,Customer Support Group,Building Repairs & Maintenance,60043032,HERTEL (UK) LTD, 40.83 ,20/01/2016
Commercial,Customer Support Group,Building Repairs & Maintenance,60043035,HERTEL (UK) LTD, 40.83 ,20/01/2016
Commercial,Customer Support Group,Building Repairs & Maintenance,60043036,HERTEL (UK) LTD, 40.83 ,20/01/2016
Commercial,Customer Support Group,Building Repairs & Maintenance,60043043,HERTEL (UK) LTD, 40.83 ,20/01/2016
Commercial,Customer Support Group,Building Repairs & Maintenance,60043046,HERTEL (UK) LTD, 40.83 ,20/01/2016
Commercial,Customer Support Group,Building Repairs & Maintenance,60043048,HERTEL (UK) LTD, 40.83 ,20/01/2016
Commercial,Customer Support Group,Building Repairs & Maintenance,60043054,HERTEL (UK) LTD, 40.83 ,20/01/2016
Commercial,Customer Support Group,Building Repairs & Maintenance,60043055,HERTEL (UK) LTD, 40.83 ,20/01/2016
Commercial,Customer Support Group,Building Repairs & Maintenance,60043057,HERTEL (UK) LTD, 40.83 ,20/01/2016
Commercial,Customer Support Group,Building Repairs & Maintenance,60043058,HERTEL (UK) LTD, 40.83 ,20/01/2016
Commercial,Customer Support Group,Building Repairs & Maintenance,60043059,HERTEL (UK) LTD, 40.83 ,20/01/2016
Commercial,Customer Support Group,Building Repairs & Maintenance,60043064,HERTEL (UK) LTD, 40.83 ,20/01/2016
Commercial,Customer Support Group,Building Repairs & Maintenance,60043066,HERTEL (UK) LTD, 40.83 ,20/01/2016
Commercial,Customer Support Group,Building Repairs & Maintenance,60043073,HERTEL (UK) LTD, 40.83 ,25/01/2016
Commercial,Customer Support Group,Building Repairs & Maintenance,60043075,HERTEL (UK) LTD, 40.83 ,20/01/2016
Commercial,Customer Support Group,Building Repairs & Maintenance,60043077,HERTEL (UK) LTD, 40.83 ,20/01/2016
Commercial,Customer Support Group,Building Repairs & Maintenance,60043079,HERTEL (UK) LTD, 40.83 ,25/01/2016
Commercial,Customer Support Group,Building Repairs & Maintenance,60043080,HERTEL (UK) LTD, 40.83 ,20/01/2016
Commercial,Customer Support Group,Building Repairs & Maintenance,60043082,HERTEL (UK) LTD, 40.83 ,20/01/2016
Commercial,Customer Support Group,Building Repairs & Maintenance,60043089,HERTEL (UK) LTD, 40.83 ,20/01/2016
Commercial,Customer Support Group,Building Repairs & Maintenance,60043095,HERTEL (UK) LTD, 40.83 ,20/01/2016
Commercial,Customer Support Group,Building Repairs & Maintenance,60043096,HERTEL (UK) LTD, 40.83 ,20/01/2016
Commercial,Customer Support Group,Building Repairs & Maintenance,60043097,HERTEL (UK) LTD, 40.83 ,18/01/2016
Commercial,Customer Support Group,Building Repairs & Maintenance,60043099,HERTEL (UK) LTD, 40.83 ,20/01/2016
Commercial,Customer Support Group,Building Repairs & Maintenance,60043101,HERTEL (UK) LTD, 40.83 ,20/01/2016
Commercial,Customer Support Group,Building Repairs & Maintenance,60043102,HERTEL (UK) LTD, 40.83 ,20/01/2016
Commercial,Customer Support Group,Building Repairs & Maintenance,60043110,HERTEL (UK) LTD, 40.83 ,20/01/2016
Commercial,Customer Support Group,Building Repairs & Maintenance,60043111,HERTEL (UK) LTD, 40.83 ,20/01/2016
Commercial,Customer Support Group,Building Repairs & Maintenance,60043114,HERTEL (UK) LTD, 40.83 ,20/01/2016
Commercial,Customer Support Group,Building Repairs & Maintenance,60043115,HERTEL (UK) LTD, 40.83 ,25/01/2016
Commercial,Customer Support Group,Building Repairs & Maintenance,60043122,HERTEL (UK) LTD, 40.83 ,20/01/2016
Commercial,Customer Support Group,Building Repairs & Maintenance,60043124,HERTEL (UK) LTD, 40.83 ,20/01/2016
Commercial,Customer Support Group,Building Repairs & Maintenance,60043125,HERTEL (UK) LTD, 40.83 ,25/01/2016
Commercial,Customer Support Group,Building Repairs & Maintenance,60043127,HERTEL (UK) LTD, 40.83 ,20/01/2016
Commercial,Customer Support Group,Building Repairs & Maintenance,60043131,HERTEL (UK) LTD, 40.83 ,20/01/2016
Commercial,Customer Support Group,Building Repairs & Maintenance,60043133,HERTEL (UK) LTD, 40.83 ,20/01/2016
Commercial,Customer Support Group,Building Repairs & Maintenance,60043134,HERTEL (UK) LTD, 40.83 ,20/01/2016
Commercial,Customer Support Group,Building Repairs & Maintenance,60043137,HERTEL (UK) LTD, 40.83 ,20/01/2016
Commercial,Customer Support Group,Building Repairs & Maintenance,60043139,HERTEL (UK) LTD, 40.83 ,20/01/2016
Commercial,Customer Support Group,Building Repairs & Maintenance,60043142,HERTEL (UK) LTD, 40.83 ,20/01/2016
Commercial,Customer Support Group,Building Repairs & Maintenance,60043144,HERTEL (UK) LTD, 40.83 ,20/01/2016
Commercial,Customer Support Group,Building Repairs & Maintenance,60043145,HERTEL (UK) LTD, 40.83 ,20/01/2016
Commercial,Customer Support Group,Building Repairs & Maintenance,60043146,HERTEL (UK) LTD, 40.83 ,20/01/2016
Commercial,Customer Support Group,Building Repairs & Maintenance,60043150,HERTEL (UK) LTD, 40.83 ,20/01/2016
Commercial,Customer Support Group,Building Repairs & Maintenance,60043153,HERTEL (UK) LTD, 40.83 ,20/01/2016
Commercial,Customer Support Group,Building Repairs & Maintenance,60043156,HERTEL (UK) LTD, 40.83 ,20/01/2016
Commercial,Customer Support Group,Building Repairs & Maintenance,60043157,HERTEL (UK) LTD, 40.83 ,20/01/2016
Commercial,Customer Support Group,Building Repairs & Maintenance,60043158,HERTEL (UK) LTD, 40.83 ,20/01/2016
Commercial,Customer Support Group,Building Repairs & Maintenance,60043162,HERTEL (UK) LTD, 40.83 ,20/01/2016
Commercial,Customer Support Group,Building Repairs & Maintenance,60043176,HERTEL (UK) LTD, 40.83 ,20/01/2016
Commercial,Customer Support Group,Building Repairs & Maintenance,60043188,HERTEL (UK) LTD, 40.83 ,20/01/2016
Commercial,Customer Support Group,Building Repairs & Maintenance,60043194,HERTEL (UK) LTD, 40.83 ,20/01/2016
Commercial,Customer Support Group,Building Repairs & Maintenance,60043199,HERTEL (UK) LTD, 40.83 ,20/01/2016
Commercial,Customer Support Group,Building Repairs & Maintenance,60043205,HERTEL (UK) LTD, 65.00 ,20/01/2016
Commercial,Customer Support Group,Building Repairs & Maintenance,60043207,HERTEL (UK) LTD, 140.00 ,20/01/2016
Commercial,Customer Support Group,Building Repairs & Maintenance,60043213,HERTEL (UK) LTD, 150.00 ,25/01/2016
Commercial,Customer Support Group,Building Repairs & Maintenance,60043215,HERTEL (UK) LTD, 122.50 ,20/01/2016
Commercial,Customer Support Group,Building Repairs & Maintenance,60043217,HERTEL (UK) LTD, 40.83 ,20/01/2016
Commercial,Customer Support Group,Building Repairs & Maintenance,60043218,HERTEL (UK) LTD, 65.00 ,25/01/2016
Commercial,Customer Support Group,Building Repairs & Maintenance,60043221,HERTEL (UK) LTD, 40.83 ,20/01/2016
Commercial,Customer Support Group,Building Repairs & Maintenance,60043226,HERTEL (UK) LTD, 40.83 ,20/01/2016
Commercial,Customer Support Group,Building Repairs & Maintenance,60043240,HERTEL (UK) LTD, 140.00 ,20/01/2016
Commercial,Customer Support Group,Building Repairs & Maintenance,60043241,HERTEL (UK) LTD, 40.83 ,20/01/2016
Commercial,Customer Support Group,Building Repairs & Maintenance,60043242,HERTEL (UK) LTD, 40.83 ,19/01/2016
Commercial,Customer Support Group,Building Repairs & Maintenance,60043250,HERTEL (UK) LTD, 40.83 ,20/01/2016
Commercial,Customer Support Group,Building Repairs & Maintenance,60043284,HERTEL (UK) LTD, 40.83 ,20/01/2016
Commercial,Customer Support Group,Building Repairs & Maintenance,60043286,HERTEL (UK) LTD, 40.83 ,20/01/2016
Commercial,Customer Support Group,Building Repairs & Maintenance,60043309,HERTEL (UK) LTD, 40.83 ,20/01/2016
Commercial,Customer Support Group,Building Repairs & Maintenance,60043310,HERTEL (UK) LTD, 40.83 ,20/01/2016
Commercial,Customer Support Group,Building Repairs & Maintenance,60043311,HERTEL (UK) LTD, 40.83 ,20/01/2016
Commercial,Customer Support Group,Building Repairs & Maintenance,60039006,KENT COUNTY COUNCIL (KCS), 13.91 ,06/01/2016
Commercial,Customer Support Group,Building Repairs & Maintenance,60041450,LEE SECURITY LONDON LIMITED, 80.00 ,27/01/2016
Commercial,Customer Support Group,Building Repairs & Maintenance,60041453,LEE SECURITY LONDON LIMITED, 35.00 ,27/01/2016
Commercial,Customer Support Group,Building Repairs & Maintenance,60041493,LEE SECURITY LONDON LIMITED, 166.24 ,27/01/2016
Commercial,Customer Support Group,Building Repairs & Maintenance,60041497,LEE SECURITY LONDON LIMITED, 234.12 ,27/01/2016
Commercial,Customer Support Group,Building Repairs & Maintenance,60041513,LEE SECURITY LONDON LIMITED, 147.18 ,27/01/2016
Commercial,Customer Support Group,Building Repairs & Maintenance,60042868,LEE SECURITY LONDON LIMITED, 339.00 ,13/01/2016
Commercial,Customer Support Group,Building Repairs & Maintenance,60043289,LEE SECURITY LONDON LIMITED, 98.22 ,28/01/2016
Commercial,Customer Support Group,Building Repairs & Maintenance,60019716,LIFT & ENGINEERING SERVICES LTD, 58.00 ,07/01/2016
Commercial,Customer Support Group,Building Repairs & Maintenance,60027779,LIFT & ENGINEERING SERVICES LTD, 49.58 ,11/01/2016
Commercial,Customer Support Group,Building Repairs & Maintenance,60027815,LIFT & ENGINEERING SERVICES LTD, 74.37 ,07/01/2016
Commercial,Customer Support Group,Building Repairs & Maintenance,60027871,LIFT & ENGINEERING SERVICES LTD, 74.37 ,11/01/2016
Commercial,Customer Support Group,Building Repairs & Maintenance,60034854,LIFT & ENGINEERING SERVICES LTD, 49.58 ,12/01/2016
Commercial,Customer Support Group,Building Repairs & Maintenance,60037336,LIFT & ENGINEERING SERVICES LTD, 292.90 ,07/01/2016
Commercial,Customer Support Group,Building Repairs & Maintenance,60040950,LIFT & ENGINEERING SERVICES LTD, 49.58 ,07/01/2016
Commercial,Customer Support Group,Building Repairs & Maintenance,60042068,LIFT & ENGINEERING SERVICES LTD," 7,254.00 ",18/01/2016
Commercial,Customer Support Group,Building Repairs & Maintenance,60042798,LIFT & ENGINEERING SERVICES LTD," 1,656.00 ",12/01/2016
Commercial,Customer Support Group,Building Repairs & Maintenance,60042801,LIFT & ENGINEERING SERVICES LTD, 261.00 ,12/01/2016
Commercial,Customer Support Group,Building Repairs & Maintenance,60042851,LIFT & ENGINEERING SERVICES LTD, 99.15 ,12/01/2016
Commercial,Customer Support Group,Building Repairs & Maintenance,60042856,LIFT & ENGINEERING SERVICES LTD," 1,360.00 ",12/01/2016
Commercial,Customer Support Group,Building Repairs & Maintenance,60028414,OAKRAY LIMITED, 556.23 ,26/01/2016
Commercial,Customer Support Group,Building Repairs & Maintenance,60028418,OAKRAY LIMITED, 144.20 ,25/01/2016
Commercial,Customer Support Group,Building Repairs & Maintenance,60028419,OAKRAY LIMITED, 650.00 ,26/01/2016
Commercial,Customer Support Group,Building Repairs & Maintenance,60028425,OAKRAY LIMITED, 102.93 ,26/01/2016
Commercial,Customer Support Group,Building Repairs & Maintenance,60028429,OAKRAY LIMITED, 229.10 ,25/01/2016
Commercial,Customer Support Group,Building Repairs & Maintenance,60028471,OAKRAY LIMITED, 148.00 ,07/01/2016
Commercial,Customer Support Group,Building Repairs & Maintenance,60028477,OAKRAY LIMITED, 218.76 ,26/01/2016
Commercial,Customer Support Group,Building Repairs & Maintenance,60028482,OAKRAY LIMITED, 96.00 ,26/01/2016
Commercial,Customer Support Group,Building Repairs & Maintenance,60028488,OAKRAY LIMITED, 120.00 ,26/01/2016
Commercial,Customer Support Group,Building Repairs & Maintenance,60028494,OAKRAY LIMITED, 96.00 ,26/01/2016
Commercial,Customer Support Group,Building Repairs & Maintenance,60028505,OAKRAY LIMITED, 166.52 ,26/01/2016
Commercial,Customer Support Group,Building Repairs & Maintenance,60028506,OAKRAY LIMITED, 96.00 ,25/01/2016
Commercial,Customer Support Group,Building Repairs & Maintenance,60028508,OAKRAY LIMITED, 128.00 ,26/01/2016
Commercial,Customer Support Group,Building Repairs & Maintenance,60028509,OAKRAY LIMITED, 56.00 ,28/01/2016
Commercial,Customer Support Group,Building Repairs & Maintenance,60028512,OAKRAY LIMITED, 128.00 ,07/01/2016
Commercial,Customer Support Group,Building Repairs & Maintenance,60028518,OAKRAY LIMITED, 64.00 ,26/01/2016
Commercial,Customer Support Group,Building Repairs & Maintenance,60028543,OAKRAY LIMITED, 80.00 ,25/01/2016
Commercial,Customer Support Group,Building Repairs & Maintenance,60028544,OAKRAY LIMITED, 833.42 ,26/01/2016
Commercial,Customer Support Group,Building Repairs & Maintenance,60028555,OAKRAY LIMITED, 132.00 ,26/01/2016
Commercial,Customer Support Group,Building Repairs & Maintenance,60028574,OAKRAY LIMITED, 128.00 ,26/01/2016
Commercial,Customer Support Group,Building Repairs & Maintenance,60031022,OAKRAY LIMITED, 80.00 ,26/01/2016
Commercial,Customer Support Group,Building Repairs & Maintenance,60031031,OAKRAY LIMITED, 512.28 ,26/01/2016
Commercial,Customer Support Group,Building Repairs & Maintenance,60031037,OAKRAY LIMITED, 112.00 ,26/01/2016
Commercial,Customer Support Group,Building Repairs & Maintenance,60031060,OAKRAY LIMITED, 112.00 ,26/01/2016
Commercial,Customer Support Group,Building Repairs & Maintenance,60031073,OAKRAY LIMITED, 80.00 ,26/01/2016
Commercial,Customer Support Group,Building Repairs & Maintenance,60031083,OAKRAY LIMITED, 96.00 ,26/01/2016
Commercial,Customer Support Group,Building Repairs & Maintenance,60041646,OAKRAY LIMITED, 427.50 ,18/01/2016
Commercial,Customer Support Group,Building Repairs & Maintenance,60041647,OAKRAY LIMITED, 210.00 ,18/01/2016
Commercial,Customer Support Group,Building Repairs & Maintenance,60041654,OAKRAY LIMITED, 323.25 ,18/01/2016
Commercial,Customer Support Group,Building Repairs & Maintenance,60041658,OAKRAY LIMITED, 405.00 ,18/01/2016
Commercial,Customer Support Group,Building Repairs & Maintenance,60041659,OAKRAY LIMITED, 311.25 ,18/01/2016
Commercial,Customer Support Group,Building Repairs & Maintenance,60041660,OAKRAY LIMITED, 30.00 ,18/01/2016
Commercial,Customer Support Group,Building Repairs & Maintenance,60041666,OAKRAY LIMITED, 648.75 ,18/01/2016
Commercial,Customer Support Group,Building Repairs & Maintenance,60041667,OAKRAY LIMITED, 517.50 ,18/01/2016
Commercial,Customer Support Group,Building Repairs & Maintenance,60041675,OAKRAY LIMITED, 513.00 ,18/01/2016
Commercial,Customer Support Group,Building Repairs & Maintenance,60041678,OAKRAY LIMITED," 4,511.25 ",18/01/2016
Commercial,Customer Support Group,Building Repairs & Maintenance,60041681,OAKRAY LIMITED, 362.25 ,18/01/2016
Commercial,Customer Support Group,Building Repairs & Maintenance,60041682,OAKRAY LIMITED, 468.75 ,18/01/2016
Commercial,Customer Support Group,Building Repairs & Maintenance,60041693,OAKRAY LIMITED, 108.75 ,18/01/2016
Commercial,Customer Support Group,Building Repairs & Maintenance,60041698,OAKRAY LIMITED, 69.00 ,18/01/2016
Commercial,Customer Support Group,Building Repairs & Maintenance,60041703,OAKRAY LIMITED, 648.75 ,18/01/2016
Commercial,Customer Support Group,Building Repairs & Maintenance,60041705,OAKRAY LIMITED, 483.00 ,18/01/2016
Commercial,Customer Support Group,Building Repairs & Maintenance,60041706,OAKRAY LIMITED, 459.00 ,18/01/2016
Commercial,Customer Support Group,Building Repairs & Maintenance,60041708,OAKRAY LIMITED, 341.25 ,18/01/2016
Commercial,Customer Support Group,Building Repairs & Maintenance,60041717,OAKRAY LIMITED, 510.00 ,18/01/2016
Commercial,Customer Support Group,Building Repairs & Maintenance,60041720,OAKRAY LIMITED, 180.00 ,18/01/2016
Commercial,Customer Support Group,Building Repairs & Maintenance,60041721,OAKRAY LIMITED, 409.50 ,18/01/2016
Commercial,Customer Support Group,Building Repairs & Maintenance,60041723,OAKRAY LIMITED, 375.00 ,18/01/2016
Commercial,Customer Support Group,Building Repairs & Maintenance,60041725,OAKRAY LIMITED, 611.25 ,18/01/2016
Commercial,Customer Support Group,Building Repairs & Maintenance,60041732,OAKRAY LIMITED, 741.00 ,18/01/2016
Commercial,Customer Support Group,Building Repairs & Maintenance,60041741,OAKRAY LIMITED, 476.25 ,18/01/2016
Commercial,Customer Support Group,Building Repairs & Maintenance,60041742,OAKRAY LIMITED, 300.00 ,18/01/2016
Commercial,Customer Support Group,Building Repairs & Maintenance,60041751,OAKRAY LIMITED, 191.25 ,18/01/2016
Commercial,Customer Support Group,Building Repairs & Maintenance,60041752,OAKRAY LIMITED, 90.00 ,18/01/2016
Commercial,Customer Support Group,Building Repairs & Maintenance,60041755,OAKRAY LIMITED, 681.75 ,18/01/2016
Commercial,Customer Support Group,Building Repairs & Maintenance,60041760,OAKRAY LIMITED, 637.50 ,18/01/2016
Commercial,Customer Support Group,Building Repairs & Maintenance,60041762,OAKRAY LIMITED, 528.75 ,18/01/2016
Commercial,Customer Support Group,Building Repairs & Maintenance,60041763,OAKRAY LIMITED, 498.75 ,18/01/2016
Commercial,Customer Support Group,Building Repairs & Maintenance,60041765,OAKRAY LIMITED, 597.00 ,18/01/2016
Commercial,Customer Support Group,Building Repairs & Maintenance,60041769,OAKRAY LIMITED, 299.25 ,18/01/2016
Commercial,Customer Support Group,Building Repairs & Maintenance,60041771,OAKRAY LIMITED, 380.25 ,18/01/2016
Commercial,Customer Support Group,Building Repairs & Maintenance,60041772,OAKRAY LIMITED, 375.00 ,18/01/2016
Commercial,Customer Support Group,Building Repairs & Maintenance,60041776,OAKRAY LIMITED, 514.50 ,18/01/2016
Commercial,Customer Support Group,Building Repairs & Maintenance,60041782,OAKRAY LIMITED, 481.50 ,18/01/2016
Commercial,Customer Support Group,Building Repairs & Maintenance,60041783,OAKRAY LIMITED," 1,601.25 ",18/01/2016
Commercial,Customer Support Group,Building Repairs & Maintenance,60041785,OAKRAY LIMITED, 345.00 ,18/01/2016
Commercial,Customer Support Group,Building Repairs & Maintenance,60041786,OAKRAY LIMITED, 183.75 ,18/01/2016
Commercial,Customer Support Group,Building Repairs & Maintenance,60041788,OAKRAY LIMITED, 68.00 ,18/01/2016
Commercial,Customer Support Group,Building Repairs & Maintenance,60041794,OAKRAY LIMITED, 356.25 ,18/01/2016
Commercial,Customer Support Group,Building Repairs & Maintenance,60041798,OAKRAY LIMITED, 690.00 ,18/01/2016
Commercial,Customer Support Group,Building Repairs & Maintenance,60041804,OAKRAY LIMITED, 210.00 ,18/01/2016
Commercial,Customer Support Group,Building Repairs & Maintenance,60041807,OAKRAY LIMITED," 1,500.00 ",18/01/2016
Commercial,Customer Support Group,Building Repairs & Maintenance,60041820,OAKRAY LIMITED, 183.75 ,18/01/2016
Commercial,Customer Support Group,Building Repairs & Maintenance,60041824,OAKRAY LIMITED, 221.25 ,18/01/2016
Commercial,Customer Support Group,Building Repairs & Maintenance,60041826,OAKRAY LIMITED, 900.00 ,18/01/2016
Commercial,Customer Support Group,Building Repairs & Maintenance,60041831,OAKRAY LIMITED," 1,800.00 ",18/01/2016
Commercial,Customer Support Group,Building Repairs & Maintenance,60041837,OAKRAY LIMITED, 472.50 ,18/01/2016
Commercial,Customer Support Group,Building Repairs & Maintenance,60041838,OAKRAY LIMITED, 347.25 ,18/01/2016
Commercial,Customer Support Group,Building Repairs & Maintenance,60041839,OAKRAY LIMITED, 476.25 ,18/01/2016
Commercial,Customer Support Group,Building Repairs & Maintenance,60041842,OAKRAY LIMITED," 1,113.75 ",18/01/2016
Commercial,Customer Support Group,Building Repairs & Maintenance,60041846,OAKRAY LIMITED, 741.00 ,18/01/2016
Commercial,Customer Support Group,Building Repairs & Maintenance,60041850,OAKRAY LIMITED, 714.75 ,18/01/2016
Commercial,Customer Support Group,Building Repairs & Maintenance,60041852,OAKRAY LIMITED, 836.25 ,18/01/2016
Commercial,Customer Support Group,Building Repairs & Maintenance,60041857,OAKRAY LIMITED, 67.50 ,18/01/2016
Commercial,Customer Support Group,Building Repairs & Maintenance,60041863,OAKRAY LIMITED, 416.25 ,18/01/2016
Commercial,Customer Support Group,Building Repairs & Maintenance,60041868,OAKRAY LIMITED, 187.50 ,18/01/2016
Commercial,Customer Support Group,Building Repairs & Maintenance,60043167,OAKRAY LIMITED, 348.00 ,28/01/2016
Commercial,Customer Support Group,Building Repairs & Maintenance,60043168,OAKRAY LIMITED, 348.00 ,28/01/2016
Commercial,Customer Support Group,Building Repairs & Maintenance,60043173,OAKRAY LIMITED, 783.00 ,28/01/2016
Commercial,Customer Support Group,Building Repairs & Maintenance,60043174,OAKRAY LIMITED, 348.00 ,28/01/2016
Commercial,Customer Support Group,Building Repairs & Maintenance,60043181,OAKRAY LIMITED, 348.00 ,28/01/2016
Commercial,Customer Support Group,Building Repairs & Maintenance,60043182,OAKRAY LIMITED, 195.75 ,28/01/2016
Commercial,Customer Support Group,Building Repairs & Maintenance,60043189,OAKRAY LIMITED, 609.00 ,28/01/2016
Commercial,Customer Support Group,Building Repairs & Maintenance,60043190,OAKRAY LIMITED, 957.00 ,28/01/2016
Commercial,Customer Support Group,Building Repairs & Maintenance,60043196,OAKRAY LIMITED, 348.00 ,28/01/2016
Commercial,Customer Support Group,Building Repairs & Maintenance,60043197,OAKRAY LIMITED, 348.00 ,28/01/2016
Commercial,Customer Support Group,Building Repairs & Maintenance,60043204,OAKRAY LIMITED," 1,114.00 ",28/01/2016
Commercial,Customer Support Group,Building Repairs & Maintenance,60043206,OAKRAY LIMITED, 348.00 ,28/01/2016
Commercial,Customer Support Group,Building Repairs & Maintenance,60043208,OAKRAY LIMITED, 348.00 ,28/01/2016
Commercial,Customer Support Group,Building Repairs & Maintenance,60043210,OAKRAY LIMITED, 348.00 ,28/01/2016
Commercial,Customer Support Group,Building Repairs & Maintenance,60043211,OAKRAY LIMITED," 1,966.00 ",28/01/2016
Commercial,Customer Support Group,Building Repairs & Maintenance,60043212,OAKRAY LIMITED, 348.00 ,28/01/2016
Commercial,Customer Support Group,Building Repairs & Maintenance,60043219,OAKRAY LIMITED, 469.80 ,28/01/2016
Commercial,Customer Support Group,Building Repairs & Maintenance,60043222,OAKRAY LIMITED, 348.00 ,28/01/2016
Commercial,Customer Support Group,Building Repairs & Maintenance,60043223,OAKRAY LIMITED, 348.00 ,28/01/2016
Commercial,Customer Support Group,Building Repairs & Maintenance,60043224,OAKRAY LIMITED, 609.00 ,28/01/2016
Commercial,Customer Support Group,Building Repairs & Maintenance,60043228,OAKRAY LIMITED, 348.00 ,28/01/2016
Commercial,Customer Support Group,Building Repairs & Maintenance,60043231,OAKRAY LIMITED, 348.00 ,28/01/2016
Commercial,Customer Support Group,Building Repairs & Maintenance,60043234,OAKRAY LIMITED, 300.00 ,28/01/2016
Commercial,Customer Support Group,Building Repairs & Maintenance,60043248,OAKRAY LIMITED, 348.00 ,28/01/2016
Commercial,Customer Support Group,Building Repairs & Maintenance,60043249,OAKRAY LIMITED, 609.00 ,28/01/2016
Commercial,Customer Support Group,Building Repairs & Maintenance,60043252,OAKRAY LIMITED, 348.00 ,28/01/2016
Commercial,Customer Support Group,Building Repairs & Maintenance,60043254,OAKRAY LIMITED, 217.50 ,28/01/2016
Commercial,Customer Support Group,Building Repairs & Maintenance,60043258,OAKRAY LIMITED, 348.00 ,28/01/2016
Commercial,Customer Support Group,Building Repairs & Maintenance,60043260,OAKRAY LIMITED, 348.00 ,28/01/2016
Commercial,Customer Support Group,Building Repairs & Maintenance,60043263,OAKRAY LIMITED," 1,914.00 ",28/01/2016
Commercial,Customer Support Group,Building Repairs & Maintenance,60043269,OAKRAY LIMITED, 348.00 ,28/01/2016
Commercial,Customer Support Group,Building Repairs & Maintenance,60043272,OAKRAY LIMITED, 783.00 ,28/01/2016
Commercial,Customer Support Group,Building Repairs & Maintenance,60043275,OAKRAY LIMITED, 348.00 ,28/01/2016
Commercial,Customer Support Group,Building Repairs & Maintenance,60043276,OAKRAY LIMITED, 348.00 ,28/01/2016
Commercial,Customer Support Group,Building Repairs & Maintenance,60043278,OAKRAY LIMITED, 348.00 ,28/01/2016
Commercial,Customer Support Group,Building Repairs & Maintenance,60043280,OAKRAY LIMITED, 348.00 ,28/01/2016
Commercial,Customer Support Group,Building Repairs & Maintenance,60043281,OAKRAY LIMITED," 2,001.00 ",28/01/2016
Commercial,Customer Support Group,Building Repairs & Maintenance,60043282,OAKRAY LIMITED, 348.00 ,28/01/2016
Commercial,Customer Support Group,Building Repairs & Maintenance,60043283,OAKRAY LIMITED, 609.00 ,28/01/2016
Commercial,Customer Support Group,Building Repairs & Maintenance,60043287,OAKRAY LIMITED, 348.00 ,28/01/2016
Commercial,Customer Support Group,Building Repairs & Maintenance,60043288,OAKRAY LIMITED, 348.00 ,28/01/2016
Commercial,Customer Support Group,Building Repairs & Maintenance,60043291,OAKRAY LIMITED," 4,367.00 ",28/01/2016
Commercial,Customer Support Group,Building Repairs & Maintenance,60043294,OAKRAY LIMITED, 348.00 ,28/01/2016
Commercial,Customer Support Group,Building Repairs & Maintenance,60043298,OAKRAY LIMITED, 348.00 ,28/01/2016
Commercial,Customer Support Group,Building Repairs & Maintenance,60043300,OAKRAY LIMITED, 348.00 ,28/01/2016
Commercial,Customer Support Group,Building Repairs & Maintenance,60043303,OAKRAY LIMITED, 652.30 ,28/01/2016
Commercial,Customer Support Group,Building Repairs & Maintenance,60043305,OAKRAY LIMITED, 348.00 ,28/01/2016
Commercial,Customer Support Group,Building Repairs & Maintenance,60043306,OAKRAY LIMITED, 217.50 ,28/01/2016
Commercial,Customer Support Group,Building Repairs & Maintenance,60043307,OAKRAY LIMITED," 2,244.60 ",28/01/2016
Commercial,Customer Support Group,Building Repairs & Maintenance,60043324,OAKRAY LIMITED, 64.00 ,20/01/2016
Commercial,Customer Support Group,Building Repairs & Maintenance,60043328,OAKRAY LIMITED, 64.00 ,18/01/2016
Commercial,Customer Support Group,Building Repairs & Maintenance,60043329,OAKRAY LIMITED, 178.96 ,20/01/2016
Commercial,Customer Support Group,Building Repairs & Maintenance,60043337,OAKRAY LIMITED, 753.81 ,18/01/2016
Commercial,Customer Support Group,Building Repairs & Maintenance,60043345,OAKRAY LIMITED, 64.00 ,20/01/2016
Commercial,Customer Support Group,Building Repairs & Maintenance,60043348,OAKRAY LIMITED, 112.00 ,28/01/2016
Commercial,Customer Support Group,Building Repairs & Maintenance,60043362,OAKRAY LIMITED, 56.00 ,20/01/2016
Commercial,Customer Support Group,Building Repairs & Maintenance,60043368,OAKRAY LIMITED, 64.00 ,25/01/2016
Commercial,Customer Support Group,Building Repairs & Maintenance,60043374,OAKRAY LIMITED, 64.00 ,27/01/2016
Commercial,Customer Support Group,Building Repairs & Maintenance,60043379,OAKRAY LIMITED, 239.69 ,28/01/2016
Commercial,Customer Support Group,Building Repairs & Maintenance,60043382,OAKRAY LIMITED, 112.00 ,21/01/2016
Commercial,Customer Support Group,Building Repairs & Maintenance,60043389,OAKRAY LIMITED, 96.00 ,18/01/2016
Commercial,Customer Support Group,Building Repairs & Maintenance,60043395,OAKRAY LIMITED, 592.48 ,18/01/2016
Commercial,Customer Support Group,Building Repairs & Maintenance,60043401,OAKRAY LIMITED, 56.00 ,28/01/2016
Commercial,Customer Support Group,Building Repairs & Maintenance,60043404,OAKRAY LIMITED, 64.00 ,18/01/2016
Commercial,Customer Support Group,Building Repairs & Maintenance,60043411,OAKRAY LIMITED, 48.00 ,28/01/2016
Commercial,Customer Support Group,Building Repairs & Maintenance,60043413,OAKRAY LIMITED, 261.55 ,28/01/2016
Commercial,Customer Support Group,Building Repairs & Maintenance,60043414,OAKRAY LIMITED, 96.00 ,21/01/2016
Commercial,Customer Support Group,Building Repairs & Maintenance,60043416,OAKRAY LIMITED, 112.00 ,28/01/2016
Commercial,Customer Support Group,Building Repairs & Maintenance,60043419,OAKRAY LIMITED, 110.29 ,25/01/2016
Commercial,Customer Support Group,Building Repairs & Maintenance,60043420,OAKRAY LIMITED, 56.00 ,27/01/2016
Commercial,Customer Support Group,Building Repairs & Maintenance,60043423,OAKRAY LIMITED, 80.00 ,21/01/2016
Commercial,Customer Support Group,Building Repairs & Maintenance,60043427,OAKRAY LIMITED, 171.80 ,25/01/2016
Commercial,Customer Support Group,Building Repairs & Maintenance,60043432,OAKRAY LIMITED, 96.00 ,28/01/2016
Commercial,Customer Support Group,Building Repairs & Maintenance,60043433,OAKRAY LIMITED, 96.00 ,27/01/2016
Commercial,Customer Support Group,Building Repairs & Maintenance,60043435,OAKRAY LIMITED, 72.00 ,28/01/2016
Commercial,Customer Support Group,Building Repairs & Maintenance,60043436,OAKRAY LIMITED, 64.00 ,25/01/2016
Commercial,Customer Support Group,Building Repairs & Maintenance,60043437,OAKRAY LIMITED, 56.00 ,21/01/2016
Commercial,Customer Support Group,Building Repairs & Maintenance,60043441,OAKRAY LIMITED, 80.00 ,28/01/2016
Commercial,Customer Support Group,Building Repairs & Maintenance,60043442,OAKRAY LIMITED, 753.81 ,18/01/2016
Commercial,Customer Support Group,Building Repairs & Maintenance,60043446,OAKRAY LIMITED, 248.00 ,25/01/2016
Commercial,Customer Support Group,Building Repairs & Maintenance,60043455,OAKRAY LIMITED, 277.50 ,28/01/2016
Commercial,Customer Support Group,Building Repairs & Maintenance,60043462,OAKRAY LIMITED, 467.66 ,28/01/2016
Commercial,Customer Support Group,Building Repairs & Maintenance,60043471,OAKRAY LIMITED, 120.00 ,27/01/2016
Commercial,Customer Support Group,Building Repairs & Maintenance,60043476,OAKRAY LIMITED, 80.00 ,18/01/2016
Commercial,Customer Support Group,Building Repairs & Maintenance,60043486,OAKRAY LIMITED, 112.00 ,28/01/2016
Commercial,Customer Support Group,Building Repairs & Maintenance,60043487,OAKRAY LIMITED, 48.00 ,28/01/2016
Commercial,Customer Support Group,Building Repairs & Maintenance,60043491,OAKRAY LIMITED, 72.00 ,25/01/2016
Commercial,Customer Support Group,Building Repairs & Maintenance,60043498,OAKRAY LIMITED, 64.00 ,25/01/2016
Commercial,Customer Support Group,Building Repairs & Maintenance,60043499,OAKRAY LIMITED, 64.00 ,28/01/2016
Commercial,Customer Support Group,Building Repairs & Maintenance,60043506,OAKRAY LIMITED, 115.56 ,28/01/2016
Commercial,Customer Support Group,Building Repairs & Maintenance,60043522,OAKRAY LIMITED, 48.00 ,28/01/2016
Commercial,Customer Support Group,Building Repairs & Maintenance,60043523,OAKRAY LIMITED, 112.00 ,28/01/2016
Commercial,Customer Support Group,Building Repairs & Maintenance,60043524,OAKRAY LIMITED, 96.00 ,25/01/2016
Commercial,Customer Support Group,Building Repairs & Maintenance,60043525,OAKRAY LIMITED, 64.00 ,25/01/2016
Commercial,Customer Support Group,Building Repairs & Maintenance,60043527,OAKRAY LIMITED, 189.50 ,28/01/2016
Commercial,Customer Support Group,Building Repairs & Maintenance,60043534,OAKRAY LIMITED, 88.00 ,25/01/2016
Commercial,Customer Support Group,Building Repairs & Maintenance,60043536,OAKRAY LIMITED, 80.00 ,28/01/2016
Commercial,Customer Support Group,Building Repairs & Maintenance,60043540,OAKRAY LIMITED, 64.00 ,28/01/2016
Commercial,Customer Support Group,Building Repairs & Maintenance,60043543,OAKRAY LIMITED, 64.00 ,28/01/2016
Commercial,Customer Support Group,Building Repairs & Maintenance,60043557,OAKRAY LIMITED, 64.00 ,28/01/2016
Commercial,Customer Support Group,Building Repairs & Maintenance,60043560,OAKRAY LIMITED, 56.00 ,18/01/2016
Commercial,Customer Support Group,Building Repairs & Maintenance,60043563,OAKRAY LIMITED, 128.00 ,25/01/2016
Commercial,Customer Support Group,Building Repairs & Maintenance,60043565,OAKRAY LIMITED, 64.00 ,25/01/2016
Commercial,Customer Support Group,Building Repairs & Maintenance,60043566,OAKRAY LIMITED, 56.00 ,21/01/2016
Commercial,Customer Support Group,Building Repairs & Maintenance,60043590,OAKRAY LIMITED, 64.00 ,27/01/2016
Commercial,Customer Support Group,Building Repairs & Maintenance,60043595,OAKRAY LIMITED, 434.57 ,18/01/2016
Commercial,Customer Support Group,Building Repairs & Maintenance,60043596,OAKRAY LIMITED, 64.00 ,28/01/2016
Commercial,Customer Support Group,Building Repairs & Maintenance,60043604,OAKRAY LIMITED, 144.00 ,25/01/2016
Commercial,Customer Support Group,Building Repairs & Maintenance,60043605,OAKRAY LIMITED, 88.00 ,27/01/2016
Commercial,Customer Support Group,Building Repairs & Maintenance,60043610,OAKRAY LIMITED, 96.00 ,18/01/2016
Commercial,Customer Support Group,Building Repairs & Maintenance,60043611,OAKRAY LIMITED, 72.00 ,18/01/2016
Commercial,Customer Support Group,Building Repairs & Maintenance,60043612,OAKRAY LIMITED, 64.00 ,25/01/2016
Commercial,Customer Support Group,Building Repairs & Maintenance,60043614,OAKRAY LIMITED, 112.00 ,27/01/2016
Commercial,Customer Support Group,Building Repairs & Maintenance,60043617,OAKRAY LIMITED, 56.00 ,21/01/2016
Commercial,Customer Support Group,Building Repairs & Maintenance,60043626,OAKRAY LIMITED, 88.00 ,28/01/2016
Commercial,Customer Support Group,Building Repairs & Maintenance,60043629,OAKRAY LIMITED, 64.00 ,28/01/2016
Commercial,Customer Support Group,Building Repairs & Maintenance,60043647,OAKRAY LIMITED, 64.00 ,28/01/2016
Commercial,Customer Support Group,Building Repairs & Maintenance,60043653,OAKRAY LIMITED, 112.00 ,28/01/2016
Commercial,Customer Support Group,Building Repairs & Maintenance,60044810,OAKRAY LIMITED, 67.47 ,28/01/2016
Commercial,Customer Support Group,Building Repairs & Maintenance,60044850,OAKRAY LIMITED, 447.85 ,28/01/2016
Commercial,Customer Support Group,Building Repairs & Maintenance,60044910,OAKRAY LIMITED, 140.73 ,28/01/2016
Commercial,Customer Support Group,Building Repairs & Maintenance,60041926,ONLITECH," 16,134.00 ",06/01/2016
Commercial,Customer Support Group,Building Repairs & Maintenance,60044739,PUBLIC CLOCKS LTD, 120.51 ,27/01/2016
Commercial,Customer Support Group,Building Repairs & Maintenance,60044753,PUBLIC CLOCKS LTD, 90.00 ,27/01/2016
Commercial,Customer Support Group,Building Repairs & Maintenance,60026513,RGE SERVICES, 502.45 ,12/01/2016
Commercial,Customer Support Group,Building Repairs & Maintenance,60029946,RGE SERVICES, 62.00 ,12/01/2016
Commercial,Customer Support Group,Building Repairs & Maintenance,60038756,RGE SERVICES, 144.16 ,27/01/2016
Commercial,Customer Support Group,Building Repairs & Maintenance,60038761,RGE SERVICES, 181.58 ,27/01/2016
Commercial,Customer Support Group,Building Repairs & Maintenance,60038834,RGE SERVICES, 146.58 ,27/01/2016
Commercial,Customer Support Group,Building Repairs & Maintenance,60040897,RGE SERVICES, 64.20 ,06/01/2016
Commercial,Customer Support Group,Building Repairs & Maintenance,60040914,RGE SERVICES, 149.82 ,06/01/2016
Commercial,Customer Support Group,Building Repairs & Maintenance,60041042,RGE SERVICES, 62.00 ,12/01/2016
Commercial,Customer Support Group,Building Repairs & Maintenance,60041053,RGE SERVICES, 337.17 ,12/01/2016
Commercial,Customer Support Group,Building Repairs & Maintenance,60041064,RGE SERVICES, 231.88 ,07/01/2016
Commercial,Customer Support Group,Building Repairs & Maintenance,60041066,RGE SERVICES, 318.61 ,12/01/2016
Commercial,Customer Support Group,Building Repairs & Maintenance,60041068,RGE SERVICES, 93.00 ,07/01/2016
Commercial,Customer Support Group,Building Repairs & Maintenance,60041070,RGE SERVICES, 95.73 ,12/01/2016
Commercial,Customer Support Group,Building Repairs & Maintenance,60041074,RGE SERVICES, 62.00 ,12/01/2016
Commercial,Customer Support Group,Building Repairs & Maintenance,60041087,RGE SERVICES, 266.80 ,07/01/2016
Commercial,Customer Support Group,Building Repairs & Maintenance,60041105,RGE SERVICES, 62.00 ,12/01/2016
Commercial,Customer Support Group,Building Repairs & Maintenance,60041116,RGE SERVICES, 186.00 ,07/01/2016
Commercial,Customer Support Group,Building Repairs & Maintenance,60041119,RGE SERVICES, 104.65 ,12/01/2016
Commercial,Customer Support Group,Building Repairs & Maintenance,60041127,RGE SERVICES, 93.00 ,12/01/2016
Commercial,Customer Support Group,Building Repairs & Maintenance,60041132,RGE SERVICES, 62.00 ,07/01/2016
Commercial,Customer Support Group,Building Repairs & Maintenance,60041133,RGE SERVICES, 62.00 ,27/01/2016
Commercial,Customer Support Group,Building Repairs & Maintenance,60041134,RGE SERVICES, 66.75 ,12/01/2016
Commercial,Customer Support Group,Building Repairs & Maintenance,60041138,RGE SERVICES, 45.48 ,12/01/2016
Commercial,Customer Support Group,Building Repairs & Maintenance,60041148,RGE SERVICES, 247.26 ,07/01/2016
Commercial,Customer Support Group,Building Repairs & Maintenance,60041152,RGE SERVICES, 83.30 ,12/01/2016
Commercial,Customer Support Group,Building Repairs & Maintenance,60041156,RGE SERVICES, 62.00 ,12/01/2016
Commercial,Customer Support Group,Building Repairs & Maintenance,60041169,RGE SERVICES, 62.00 ,12/01/2016
Commercial,Customer Support Group,Building Repairs & Maintenance,60041170,RGE SERVICES, 64.58 ,12/01/2016
Commercial,Customer Support Group,Building Repairs & Maintenance,60041178,RGE SERVICES, 217.00 ,12/01/2016
Commercial,Customer Support Group,Building Repairs & Maintenance,60041179,RGE SERVICES, 62.00 ,12/01/2016
Commercial,Customer Support Group,Building Repairs & Maintenance,60041180,RGE SERVICES, 308.89 ,12/01/2016
Commercial,Customer Support Group,Building Repairs & Maintenance,60041188,RGE SERVICES," 2,736.00 ",13/01/2016
Commercial,Customer Support Group,Building Repairs & Maintenance,60041191,RGE SERVICES, 96.84 ,12/01/2016
Commercial,Customer Support Group,Building Repairs & Maintenance,60041203,RGE SERVICES, 62.00 ,12/01/2016
Commercial,Customer Support Group,Building Repairs & Maintenance,60041258,RGE SERVICES, 62.00 ,12/01/2016
Commercial,Customer Support Group,Building Repairs & Maintenance,60041539,RGE SERVICES, 684.00 ,18/01/2016
Commercial,Customer Support Group,Building Repairs & Maintenance,60041551,RGE SERVICES, 70.30 ,28/01/2016
Commercial,Customer Support Group,Building Repairs & Maintenance,60041556,RGE SERVICES, 94.05 ,18/01/2016
Commercial,Customer Support Group,Building Repairs & Maintenance,60041592,RGE SERVICES, 104.50 ,18/01/2016
Commercial,Customer Support Group,Building Repairs & Maintenance,60041603,RGE SERVICES, 221.95 ,18/01/2016
Commercial,Customer Support Group,Building Repairs & Maintenance,60041633,RGE SERVICES, 81.57 ,14/01/2016
Commercial,Customer Support Group,Building Repairs & Maintenance,60042165,RGE SERVICES, 147.25 ,27/01/2016
Commercial,Customer Support Group,Building Repairs & Maintenance,60042174,RGE SERVICES, 118.75 ,27/01/2016
Commercial,Customer Support Group,Building Repairs & Maintenance,60042179,RGE SERVICES, 109.25 ,27/01/2016
Commercial,Customer Support Group,Building Repairs & Maintenance,60042180,RGE SERVICES, 52.25 ,27/01/2016
Commercial,Customer Support Group,Building Repairs & Maintenance,60042185,RGE SERVICES, 147.25 ,27/01/2016
Commercial,Customer Support Group,Building Repairs & Maintenance,60042193,RGE SERVICES, 34.21 ,27/01/2016
Commercial,Customer Support Group,Building Repairs & Maintenance,60042198,RGE SERVICES, 413.25 ,27/01/2016
Commercial,Customer Support Group,Building Repairs & Maintenance,60042214,RGE SERVICES, 174.80 ,28/01/2016
Commercial,Customer Support Group,Building Repairs & Maintenance,60042219,RGE SERVICES, 118.75 ,18/01/2016
Commercial,Customer Support Group,Building Repairs & Maintenance,60042223,RGE SERVICES, 486.07 ,28/01/2016
Commercial,Customer Support Group,Building Repairs & Maintenance,60042228,RGE SERVICES, 128.25 ,14/01/2016
Commercial,Customer Support Group,Building Repairs & Maintenance,60042229,RGE SERVICES, 31.95 ,28/01/2016
Commercial,Customer Support Group,Building Repairs & Maintenance,60042244,RGE SERVICES, 71.25 ,28/01/2016
Commercial,Customer Support Group,Building Repairs & Maintenance,60042248,RGE SERVICES, 38.60 ,28/01/2016
Commercial,Customer Support Group,Building Repairs & Maintenance,60042254,RGE SERVICES, 39.55 ,28/01/2016
Commercial,Customer Support Group,Building Repairs & Maintenance,60042268,RGE SERVICES, 175.75 ,28/01/2016
Commercial,Customer Support Group,Building Repairs & Maintenance,60042278,RGE SERVICES, 330.60 ,28/01/2016
Commercial,Customer Support Group,Building Repairs & Maintenance,60042281,RGE SERVICES, 71.25 ,28/01/2016
Commercial,Customer Support Group,Building Repairs & Maintenance,60042296,RGE SERVICES, 166.22 ,28/01/2016
Commercial,Customer Support Group,Building Repairs & Maintenance,60042304,RGE SERVICES, 77.37 ,28/01/2016
Commercial,Customer Support Group,Building Repairs & Maintenance,60042335,RGE SERVICES, 93.00 ,28/01/2016
Commercial,Customer Support Group,Building Repairs & Maintenance,60042350,RGE SERVICES, 117.80 ,28/01/2016
Commercial,Customer Support Group,Building Repairs & Maintenance,60042356,RGE SERVICES, 62.00 ,28/01/2016
Commercial,Customer Support Group,Building Repairs & Maintenance,60042359,RGE SERVICES, 139.19 ,28/01/2016
Commercial,Customer Support Group,Building Repairs & Maintenance,60042361,RGE SERVICES, 290.84 ,28/01/2016
Commercial,Customer Support Group,Building Repairs & Maintenance,60042368,RGE SERVICES, 62.00 ,28/01/2016
Commercial,Customer Support Group,Building Repairs & Maintenance,60042373,RGE SERVICES, 62.00 ,28/01/2016
Commercial,Customer Support Group,Building Repairs & Maintenance,60042382,RGE SERVICES, 83.44 ,28/01/2016
Commercial,Customer Support Group,Building Repairs & Maintenance,60042394,RGE SERVICES, 93.00 ,28/01/2016
Commercial,Customer Support Group,Building Repairs & Maintenance,60042403,RGE SERVICES, 167.40 ,28/01/2016
Commercial,Customer Support Group,Building Repairs & Maintenance,60042405,RGE SERVICES, 97.35 ,28/01/2016
Commercial,Customer Support Group,Building Repairs & Maintenance,60042426,RGE SERVICES, 78.05 ,28/01/2016
Commercial,Customer Support Group,Building Repairs & Maintenance,60042437,RGE SERVICES, 98.48 ,28/01/2016
Commercial,Customer Support Group,Building Repairs & Maintenance,60042445,RGE SERVICES, 76.48 ,28/01/2016
Commercial,Customer Support Group,Building Repairs & Maintenance,60042448,RGE SERVICES, 339.21 ,28/01/2016
Commercial,Customer Support Group,Building Repairs & Maintenance,60042460,RGE SERVICES," 7,018.60 ",27/01/2016
Commercial,Customer Support Group,Building Repairs & Maintenance,60042469,RGE SERVICES, 62.00 ,28/01/2016
Commercial,Customer Support Group,Building Repairs & Maintenance,60042475,RGE SERVICES, 300.74 ,28/01/2016
Commercial,Customer Support Group,Building Repairs & Maintenance,60042482,RGE SERVICES, 218.41 ,27/01/2016
Commercial,Customer Support Group,Building Repairs & Maintenance,60042487,RGE SERVICES, 200.48 ,28/01/2016
Commercial,Customer Support Group,Building Repairs & Maintenance,60042488,RGE SERVICES, 224.50 ,28/01/2016
Commercial,Customer Support Group,Building Repairs & Maintenance,60042506,RGE SERVICES," 1,915.31 ",28/01/2016
Commercial,Customer Support Group,Building Repairs & Maintenance,60042510,RGE SERVICES, 585.37 ,27/01/2016
Commercial,Customer Support Group,Building Repairs & Maintenance,60042520,RGE SERVICES," 2,270.00 ",27/01/2016
Commercial,Customer Support Group,Building Repairs & Maintenance,60042521,RGE SERVICES," 1,245.15 ",28/01/2016
Commercial,Customer Support Group,Building Repairs & Maintenance,60042527,RGE SERVICES, 818.27 ,28/01/2016
Commercial,Customer Support Group,Building Repairs & Maintenance,60042534,RGE SERVICES, 151.58 ,28/01/2016
Commercial,Customer Support Group,Building Repairs & Maintenance,60042544,RGE SERVICES, 102.25 ,28/01/2016
Commercial,Customer Support Group,Building Repairs & Maintenance,60042565,RGE SERVICES, 819.31 ,28/01/2016
Commercial,Customer Support Group,Building Repairs & Maintenance,60042586,RGE SERVICES, 124.00 ,28/01/2016
Commercial,Customer Support Group,Building Repairs & Maintenance,60035441,S W BRUCE & CO LTD, 483.77 ,28/01/2016
Commercial,Customer Support Group,Building Repairs & Maintenance,60042764,S W BRUCE & CO LTD, 107.90 ,12/01/2016
Commercial,Customer Support Group,Building Repairs & Maintenance,60042775,S W BRUCE & CO LTD, 91.06 ,13/01/2016
Commercial,Customer Support Group,Building Repairs & Maintenance,60042776,S W BRUCE & CO LTD, 133.13 ,12/01/2016
Commercial,Customer Support Group,Building Repairs & Maintenance,60042782,S W BRUCE & CO LTD, 114.68 ,12/01/2016
Commercial,Customer Support Group,Building Repairs & Maintenance,60042784,S W BRUCE & CO LTD, 150.28 ,12/01/2016
Commercial,Customer Support Group,Building Repairs & Maintenance,60042785,S W BRUCE & CO LTD, 164.29 ,13/01/2016
Commercial,Customer Support Group,Building Repairs & Maintenance,60042787,S W BRUCE & CO LTD, 46.49 ,18/01/2016
Commercial,Customer Support Group,Building Repairs & Maintenance,60042790,S W BRUCE & CO LTD, 197.64 ,13/01/2016
Commercial,Customer Support Group,Building Repairs & Maintenance,60042797,S W BRUCE & CO LTD, 57.34 ,13/01/2016
Commercial,Customer Support Group,Building Repairs & Maintenance,60042803,S W BRUCE & CO LTD, 66.56 ,13/01/2016
Commercial,Customer Support Group,Building Repairs & Maintenance,60042805,S W BRUCE & CO LTD, 76.36 ,12/01/2016
Commercial,Customer Support Group,Building Repairs & Maintenance,60042810,S W BRUCE & CO LTD, 46.49 ,12/01/2016
Commercial,Customer Support Group,Building Repairs & Maintenance,60042815,S W BRUCE & CO LTD, 202.30 ,12/01/2016
Commercial,Customer Support Group,Building Repairs & Maintenance,60042823,S W BRUCE & CO LTD, 101.44 ,12/01/2016
Commercial,Customer Support Group,Building Repairs & Maintenance,60042828,S W BRUCE & CO LTD, 57.00 ,12/01/2016
Commercial,Customer Support Group,Building Repairs & Maintenance,60042830,S W BRUCE & CO LTD, 98.25 ,12/01/2016
Commercial,Customer Support Group,Building Repairs & Maintenance,60042835,S W BRUCE & CO LTD, 150.55 ,12/01/2016
Commercial,Customer Support Group,Building Repairs & Maintenance,60042840,S W BRUCE & CO LTD, 117.27 ,13/01/2016
Commercial,Customer Support Group,Building Repairs & Maintenance,60042842,S W BRUCE & CO LTD, 57.34 ,12/01/2016
Commercial,Customer Support Group,Building Repairs & Maintenance,60042852,S W BRUCE & CO LTD, 72.16 ,12/01/2016
Commercial,Customer Support Group,Building Repairs & Maintenance,60042855,S W BRUCE & CO LTD, 128.38 ,13/01/2016
Commercial,Customer Support Group,Building Repairs & Maintenance,60042861,S W BRUCE & CO LTD, 306.34 ,13/01/2016
Commercial,Customer Support Group,Building Repairs & Maintenance,60042875,S W BRUCE & CO LTD, 171.16 ,13/01/2016
Commercial,Customer Support Group,Building Repairs & Maintenance,10012969,SECOM PLC," 2,811.00 ",12/01/2016
Commercial,Customer Support Group,Building Repairs & Maintenance,60028314,SECOM PLC, 346.00 ,20/01/2016
Commercial,Customer Support Group,Building Repairs & Maintenance,60042591,SIMPLY ALARMING SECURITY LTD, 130.00 ,14/01/2016
Commercial,Customer Support Group,Building Repairs & Maintenance,60044335,WINTERS HAULAGE LTD, 230.00 ,22/01/2016
Commercial,Customer Support Group,Cleaning and domestic material,60043723,CHURCHILL CONTRACT SERVICES, 225.00 ,19/01/2016
Commercial,Customer Support Group,Cleaning and domestic material,60043896,CHURCHILL CONTRACT SERVICES, 45.00 ,19/01/2016
Commercial,Customer Support Group,Cleaning and domestic material,60043942,CHURCHILL CONTRACT SERVICES, 345.00 ,19/01/2016
Commercial,Customer Support Group,Cleaning and domestic material,60043165,HERTFORDSHIRE SUPPLIES   COUNTY CO," 1,156.68 ",18/01/2016
Commercial,Customer Support Group,Cleaning and domestic material,60043184,HERTFORDSHIRE SUPPLIES   COUNTY CO, 651.50 ,18/01/2016
Commercial,Customer Support Group,Cleaning and domestic material,60043264,HERTFORDSHIRE SUPPLIES   COUNTY CO," 1,473.00 ",18/01/2016
Commercial,Customer Support Group,Cleaning and domestic material,60043285,HERTFORDSHIRE SUPPLIES   COUNTY CO, 158.25 ,18/01/2016
Commercial,Customer Support Group,Cleaning and domestic material,60043304,HERTFORDSHIRE SUPPLIES   COUNTY CO, 284.40 ,18/01/2016
Commercial,Customer Support Group,Contract Cleaning,60036400,CHURCHILL CONTRACT SERVICES, 795.92 ,13/01/2016
Commercial,Customer Support Group,Contract Cleaning,60036814,CHURCHILL CONTRACT SERVICES, 664.48 ,13/01/2016
Commercial,Customer Support Group,Contract Cleaning,60036826,CHURCHILL CONTRACT SERVICES, 294.16 ,13/01/2016
Commercial,Customer Support Group,Contract Cleaning,60036861,CHURCHILL CONTRACT SERVICES," 1,133.45 ",13/01/2016
Commercial,Customer Support Group,Contract Cleaning,60036918,CHURCHILL CONTRACT SERVICES," 1,032.37 ",13/01/2016
Commercial,Customer Support Group,CSG Services Contract Payment,60042386,CAPITA BUSINESS SERVICES LTD," 39,307.24 ",08/01/2016
Commercial,Customer Support Group,Electricity,10012976,BRITISH GAS BUSINESS, 961.72 ,13/01/2016
Commercial,Customer Support Group,Electricity,60039239,BRITISH GAS BUSINESS, 102.47 ,28/01/2016
Commercial,Customer Support Group,Electricity,10013006,E-ON ENERGY, 113.91 ,21/01/2016
Commercial,Customer Support Group,Electricity,10012999,KENT COUNTY COUNCIL (KCS), 839.34 ,18/01/2016
Commercial,Customer Support Group,Electricity,60038580,KENT COUNTY COUNCIL (KCS)," 6,258.95 ",05/01/2016
Commercial,Customer Support Group,Electricity,60040913,KENT COUNTY COUNCIL (KCS)," 8,367.35 ",11/01/2016
Commercial,Customer Support Group,Electricity,60041462,KENT COUNTY COUNCIL (KCS)," 6,237.61 ",12/01/2016
Commercial,Customer Support Group,Electricity,60042324,KENT COUNTY COUNCIL (KCS)," 3,245.95 ",07/01/2016
Commercial,Customer Support Group,Electricity,60042391,KENT COUNTY COUNCIL (KCS), 426.49 ,07/01/2016
Commercial,Customer Support Group,Electricity,60042423,KENT COUNTY COUNCIL (KCS)," 1,137.60 ",07/01/2016
Commercial,Customer Support Group,Electricity,60042632,KENT COUNTY COUNCIL (KCS), 152.44 ,20/01/2016
Commercial,Customer Support Group,Electricity,60042659,KENT COUNTY COUNCIL (KCS)," 35,232.35 ",11/01/2016
Commercial,Customer Support Group,Electricity,60042831,KENT COUNTY COUNCIL (KCS)," 5,922.73 ",12/01/2016
Commercial,Customer Support Group,Electricity,60042897,KENT COUNTY COUNCIL (KCS), 593.45 ,13/01/2016
Commercial,Customer Support Group,Equipment and Materials Purcha,60042795,S W BRUCE & CO LTD, 59.18 ,12/01/2016
Commercial,Customer Support Group,Equipment and Materials Purcha,60042863,S W BRUCE & CO LTD, 251.68 ,13/01/2016
Commercial,Customer Support Group,Equipment and Materials Purcha,60043301,SM ELECTRICAL SERVICES," 1,400.00 ",28/01/2016
Commercial,Customer Support Group,Equipment and Materials Purcha,60044118,SM ELECTRICAL SERVICES, 162.00 ,27/01/2016
Commercial,Customer Support Group,Gas,60041418,KENT COUNTY COUNCIL (KCS), 881.63 ,12/01/2016
Commercial,Customer Support Group,Gas,60041490,KENT COUNTY COUNCIL (KCS)," 6,990.38 ",05/01/2016
Commercial,Customer Support Group,Gas,60041502,KENT COUNTY COUNCIL (KCS), 408.64 ,05/01/2016
Commercial,Customer Support Group,Gas,60041503,KENT COUNTY COUNCIL (KCS), 133.06 ,05/01/2016
Commercial,Customer Support Group,Gas,60041511,KENT COUNTY COUNCIL (KCS)," 10,159.01 ",05/01/2016
Commercial,Customer Support Group,Gas,60042694,KENT COUNTY COUNCIL (KCS), 47.14 ,11/01/2016
Commercial,Customer Support Group,Gas,60042730,KENT COUNTY COUNCIL (KCS), 158.29 ,11/01/2016
Commercial,Customer Support Group,Grounds maintenance,60044726,RIBBEX UK LTD, 941.75 ,27/01/2016
Commercial,Customer Support Group,Grounds maintenance,60044736,RIBBEX UK LTD, 941.75 ,27/01/2016
Commercial,Customer Support Group,Other Services,60039141,BLUE 9 SECURITY LIMITED, 50.00 ,05/01/2016
Commercial,Customer Support Group,Other Services,60042669,BLUE 9 SECURITY LIMITED," 21,204.00 ",13/01/2016
Commercial,Customer Support Group,Other Services,60042682,BLUE 9 SECURITY LIMITED, 72.50 ,14/01/2016
Commercial,Customer Support Group,Other Services,60042696,BLUE 9 SECURITY LIMITED," 1,410.00 ",13/01/2016
Commercial,Customer Support Group,Other Services,60042707,BLUE 9 SECURITY LIMITED," 1,537.00 ",13/01/2016
Commercial,Customer Support Group,Other Services,60042718,BLUE 9 SECURITY LIMITED, 58.00 ,14/01/2016
Commercial,Customer Support Group,Other Services,60042820,BLUE 9 SECURITY LIMITED," 19,718.25 ",13/01/2016
Commercial,Customer Support Group,Other Services,60036245,RESULT SOFTWARE LTD, 750.00 ,19/01/2016
Commercial,Customer Support Group,Postage,60041228,ROYAL MAIL GROUP LIMITED," 3,656.53 ",05/01/2016
Commercial,Customer Support Group,Postage,60041504,ROYAL MAIL GROUP LIMITED," 4,475.52 ",05/01/2016
Commercial,Customer Support Group,Printing-Contract,60044720,CPI LONDON, 15.00 ,27/01/2016
Commercial,Customer Support Group,Professional Services,60040134,EQUITA LTD HIGH COURT ENFORCEMENT, 135.00 ,11/01/2016
Commercial,Customer Support Group,Professional Services,60040154,EQUITA LTD HIGH COURT ENFORCEMENT, 135.00 ,11/01/2016
Commercial,Customer Support Group,Professional Services,60040194,EQUITA LTD HIGH COURT ENFORCEMENT, 135.00 ,11/01/2016
Commercial,Customer Support Group,Professional Services,60042328,EQUITA LTD HIGH COURT ENFORCEMENT, 135.00 ,27/01/2016
Commercial,Customer Support Group,Professional Services,60042381,EQUITA LTD HIGH COURT ENFORCEMENT, 135.00 ,27/01/2016
Commercial,Customer Support Group,Professional Services,60042411,ROSSENDALES (COLLECT) LTD, 969.78 ,22/01/2016
Commercial,Customer Support Group,Rubbish Collection,60043198,G.B.HOLDINGS LTD, 25.05 ,15/01/2016
Commercial,Customer Support Group,Rubbish Collection,60043202,G.B.HOLDINGS LTD, 77.10 ,21/01/2016
Commercial,Customer Support Group,Rubbish Collection,60043227,G.B.HOLDINGS LTD, 101.50 ,15/01/2016
Commercial,Customer Support Group,Rubbish Collection,60043253,G.B.HOLDINGS LTD, 768.90 ,21/01/2016
Commercial,Customer Support Group,Rubbish Collection,60043314,G.B.HOLDINGS LTD, 686.10 ,15/01/2016
Commercial,Customer Support Group,Rubbish Collection,60041285,PEARCE RECYCLING CO. LTD, 66.00 ,14/01/2016
Commercial,Customer Support Group,Rubbish Collection,60043505,PEARCE RECYCLING CO. LTD, 39.00 ,28/01/2016
Commercial,Customer Support Group,Rubbish Collection,60043606,PEARCE RECYCLING CO. LTD, 39.00 ,28/01/2016
Commercial,Customer Support Group,Rubbish Collection,60043644,PEARCE RECYCLING CO. LTD, 66.00 ,20/01/2016
Commercial,Customer Support Group,Telephones Calls,20027843,BRITISH TELECOM PLC, 55.89 ,20/01/2016
Commercial,Customer Support Group,Water Services,60040891,2468 LTD, 227.39 ,11/01/2016
Commercial,Customer Support Group,Water Services,60042387,AFFINITY WATER LIMITED, 529.87 ,20/01/2016
Commercial,Customer Support Group,Water Services,10013005,THAMES WATER UTILITIES LIMITED, 74.79 ,20/01/2016
Commercial,Customer Support Group,Water Services,10013010,THAMES WATER UTILITIES LIMITED, 58.73 ,25/01/2016
Commercial,Customer Support Group,Water Services,60042714,THAMES WATER UTILITIES LIMITED, 564.87 ,11/01/2016
Commercial,Customer Support Group,Water Services,60042960,THAMES WATER UTILITIES LIMITED, 432.88 ,26/01/2016
Commercial,Customer Support Group,Water Services,60042990,THAMES WATER UTILITIES LIMITED, 53.64 ,25/01/2016
Commercial,HB LAW,Legal and Court Fees,60040075,LONDON BOROUGH OF HARROW," 210,420.20 ",28/01/2016
Commercial,HB LAW,Legal and Court Fees,60044600,LONDON BOROUGH OF HARROW," 210,420.20 ",27/01/2016
Commercial,HB LAW,Legal Disbursements,60044627,LONDON BOROUGH OF HARROW," 73,186.00 ",27/01/2016
Commercial,Housing Needs Resources,Legal and Court Fees,60042796,THE BARNETGROUP LIMITED," 16,500.00 ",12/01/2016
Commercial,Housing Needs Resources,Private Contractors - Third Pa,10012948,THE BARNETGROUP LIMITED," 1,600,000.00 ",06/01/2016
Commercial,Housing Needs Resources,Private Contractors - Third Pa,60044765,THE BARNETGROUP LIMITED," 244,470.75 ",28/01/2016
Commercial,HRA,Consultants Fees,60041969,COPPING JOYCE SURVEYORS LIMITED," 1,000.00 ",05/01/2016
Commercial,HRA,Consultants Fees,60041945,P P C R ASSOCIATES LTD," 1,025.05 ",05/01/2016
Commercial,HRA,Consultants Fees,60041872,PRIORITY ESTATES PROJECT LTD," 2,724.15 ",07/01/2016
Commercial,HRA,Consultants Fees,20027431,REDACTED - PERSONAL DATA, 500.00 ,07/01/2016
Commercial,HRA,Consultants Fees,60041990,STRATEGIC URBAN FUTURES LIMITED," 1,466.58 ",08/01/2016
Commercial,HRA,Consultants Fees,60041890,THE BARNETGROUP LIMITED," 333,200.00 ",06/01/2016
Commercial,HRA,Consultants Fees,60042008,THE BARNETGROUP LIMITED," 7,646.57 ",12/01/2016
Commercial,HRA,Consultants Fees,60044331,THE BARNETGROUP LIMITED," 34,465.74 ",22/01/2016
Commercial,HRA,Consultants Fees,60044651,THE BARNETGROUP LIMITED," 25,662.50 ",28/01/2016
Commercial,HRA,Consultants Fees,60044464,TMP (UK) LTD, 129.90 ,25/01/2016
Commercial,HRA,Consultants Fees,60041953,TROWERS & HAMLINS," 2,385.50 ",05/01/2016
Commercial,HRA,Legal and Court Fees,60043775,THE BARNETGROUP LIMITED, 750.00 ,27/01/2016
Commercial,HRA,Water Services,10012797,AFFINITY WATER LIMITED," 12,513.43 ",22/01/2016
Commercial,HRA,Water Services,10012798,AFFINITY WATER LIMITED, 292.86 ,22/01/2016
Commercial,HRA,Water Services,10012979,THAMES WATER UTILITIES LIMITED," 243,576.68 ",28/01/2016
Commercial,Parking & Infrastructure,Advertising,60042693,LONDON WEEKLY NEWSPAPERS LTD, 650.00 ,11/01/2016
Commercial,Parking & Infrastructure,Equipment and Materials Purcha,60042137,ACCESS INNOVATIONS UK LTD, 580.00 ,20/01/2016
Commercial,Parking & Infrastructure,Equipment and Materials Purcha,60042139,ACCESS INNOVATIONS UK LTD," 1,523.00 ",20/01/2016
Commercial,Parking & Infrastructure,Equipment and Materials Purcha,60043780,AMARI PLASTICS LTD, 124.12 ,25/01/2016
Commercial,Parking & Infrastructure,Equipment and Materials Purcha,60043818,ANGEL SPRINGS LTD, 32.00 ,28/01/2016
Commercial,Parking & Infrastructure,Equipment and Materials Purcha,60044456,ANGEL SPRINGS LTD, 32.00 ,25/01/2016
Commercial,Parking & Infrastructure,Equipment and Materials Purcha,60044455,ASD METAL SERVICES, 936.00 ,25/01/2016
Commercial,Parking & Infrastructure,Equipment and Materials Purcha,60041086,COBURN SERVICES LTD, 185.00 ,05/01/2016
Commercial,Parking & Infrastructure,Equipment and Materials Purcha,60043631,COBURN SERVICES LTD," 1,113.00 ",20/01/2016
Commercial,Parking & Infrastructure,Equipment and Materials Purcha,60043317,CONWAY AECOM LTD," 1,104.66 ",28/01/2016
Commercial,Parking & Infrastructure,Equipment and Materials Purcha,10012951,GREENHAM TRADING LIMITED, 433.45 ,08/01/2016
Commercial,Parking & Infrastructure,Equipment and Materials Purcha,60040673,GREENHAM TRADING LIMITED, 33.74 ,14/01/2016
Commercial,Parking & Infrastructure,Equipment and Materials Purcha,60042442,LAFARGE TARMAC TRADING LIMITED, 108.12 ,11/01/2016
Commercial,Parking & Infrastructure,Equipment and Materials Purcha,60042465,LAFARGE TARMAC TRADING LIMITED, 115.33 ,11/01/2016
Commercial,Parking & Infrastructure,Equipment and Materials Purcha,60042485,LAFARGE TARMAC TRADING LIMITED, 108.12 ,11/01/2016
Commercial,Parking & Infrastructure,Equipment and Materials Purcha,60042596,LAFARGE TARMAC TRADING LIMITED, 112.63 ,11/01/2016
Commercial,Parking & Infrastructure,Equipment and Materials Purcha,60042603,LAFARGE TARMAC TRADING LIMITED, 115.33 ,12/01/2016
Commercial,Parking & Infrastructure,Equipment and Materials Purcha,60042637,LAFARGE TARMAC TRADING LIMITED, 109.92 ,12/01/2016
Commercial,Parking & Infrastructure,Equipment and Materials Purcha,60042725,LAFARGE TARMAC TRADING LIMITED, 117.13 ,12/01/2016
Commercial,Parking & Infrastructure,Equipment and Materials Purcha,60043515,LAFARGE TARMAC TRADING LIMITED, 115.33 ,20/01/2016
Commercial,Parking & Infrastructure,Equipment and Materials Purcha,60043517,LAFARGE TARMAC TRADING LIMITED, 232.46 ,20/01/2016
Commercial,Parking & Infrastructure,Equipment and Materials Purcha,60043686,LAFARGE TARMAC TRADING LIMITED, 104.52 ,22/01/2016
Commercial,Parking & Infrastructure,Equipment and Materials Purcha,60043843,LAFARGE TARMAC TRADING LIMITED, 117.13 ,25/01/2016
Commercial,Parking & Infrastructure,Equipment and Materials Purcha,60043882,LAFARGE TARMAC TRADING LIMITED, 104.52 ,25/01/2016
Commercial,Parking & Infrastructure,Equipment and Materials Purcha,60042715,NSL LTD," 2,120.08 ",12/01/2016
Commercial,Parking & Infrastructure,Equipment and Materials Purcha,60043830,RENNICK UK LTD, 378.40 ,19/01/2016
Commercial,Parking & Infrastructure,Equipment and Materials Purcha,60040988,SPANDEX LIMITED, 48.84 ,21/01/2016
Commercial,Parking & Infrastructure,Equipment and Materials Purcha,60041925,TOWNSCAPE PRODUCTS LTD," 2,378.00 ",14/01/2016
Commercial,Parking & Infrastructure,Equipment and Materials Purcha,60042518,WM SMITH & SONS LIMITED, 538.00 ,08/01/2016
Commercial,Parking & Infrastructure,Equipment and Materials Purcha,60042523,WM SMITH & SONS LIMITED, 118.75 ,08/01/2016
Commercial,Parking & Infrastructure,Equipment and Materials Purcha,60043801,WM SMITH & SONS LIMITED, 48.75 ,19/01/2016
Commercial,Parking & Infrastructure,Equipment and Materials Purcha,60044429,WM SMITH & SONS LIMITED, 48.75 ,25/01/2016
Commercial,Parking & Infrastructure,Other Services,60041524,LONDON COUNCILS," 10,654.00 ",08/01/2016
Commercial,Parking & Infrastructure,Other Services,60044316,LONDON COUNCILS," 6,678.00 ",27/01/2016
Commercial,Parking & Infrastructure,Other Services,60042612,NSL LTD, 824.10 ,11/01/2016
Commercial,Parking & Infrastructure,Other Services,60044474,NSL LTD, 852.45 ,29/01/2016
Commercial,Parking & Infrastructure,Software Licences & Support,60039051,NSL LTD, 835.42 ,19/01/2016
Commercial,Parking & Infrastructure,Software Licences & Support,60042644,NSL LTD," 5,114.70 ",20/01/2016
Commercial,Parking & Infrastructure,Software Licences & Support,60044304,NSL LTD," 3,000.00 ",27/01/2016
Commercial,Parking & Infrastructure,Software Licences & Support,60044498,NSL LTD," 28,935.55 ",25/01/2016
Commercial,Parking & Infrastructure,Software Licences & Support,60044509,NSL LTD," 4,536.95 ",29/01/2016
Commercial,Parking & Infrastructure,Stationery,40001329,OFFICE DEPOT UK LTD, 162.07 ,20/01/2016
Commercial,Parking & Infrastructure,Subscriptions,60041909,INST OF LIGHTING PROFESSIONALS, 150.00 ,13/01/2016
Commercial,Public Health,Employee Expenses,60042900,CENTRAL LONDONCOMMUNITY HEALTHCARE," 16,667.00 ",19/01/2016
Commercial,Public Health,Employee Expenses,60042963,CENTRAL LONDONCOMMUNITY HEALTHCARE," 16,667.00 ",19/01/2016
Commercial,Public Health,Equipment and Materials Purcha,60042090,CENTRAL LONDONCOMMUNITY HEALTHCARE," 335,167.00 ",06/01/2016
Commercial,Public Health,Equipment and Materials Purcha,60042108,CENTRAL LONDONCOMMUNITY HEALTHCARE," 335,167.00 ",06/01/2016
Commercial,Regional Enterprise,Advertising,60035218,TMP (UK) LTD, 115.64 ,13/01/2016
Commercial,Regional Enterprise,Advertising,60035226,TMP (UK) LTD, 32.08 ,13/01/2016
Commercial,Regional Enterprise,Advertising,60037427,TMP (UK) LTD, 35.64 ,07/01/2016
Commercial,Regional Enterprise,Advertising,60037431,TMP (UK) LTD, 389.79 ,08/01/2016
Commercial,Regional Enterprise,Advertising,60037449,TMP (UK) LTD, 32.08 ,08/01/2016
Commercial,Regional Enterprise,Advertising,60037455,TMP (UK) LTD, 32.08 ,07/01/2016
Commercial,Regional Enterprise,Advertising,60038309,TMP (UK) LTD, 122.77 ,07/01/2016
Commercial,Regional Enterprise,Advertising,60038613,TMP (UK) LTD, 42.77 ,07/01/2016
Commercial,Regional Enterprise,Advertising,60039658,TMP (UK) LTD, 396.92 ,13/01/2016
Commercial,Regional Enterprise,Advertising,60039673,TMP (UK) LTD, 112.08 ,07/01/2016
Commercial,Regional Enterprise,Advertising,60039799,TMP (UK) LTD, 357.72 ,13/01/2016
Commercial,Regional Enterprise,Advertising,60040975,TMP (UK) LTD, 32.08 ,13/01/2016
Commercial,Regional Enterprise,Advertising,60041029,TMP (UK) LTD, 32.08 ,13/01/2016
Commercial,Regional Enterprise,Advertising,60041622,TMP (UK) LTD, 361.28 ,05/01/2016
Commercial,Regional Enterprise,Advertising,60042099,TMP (UK) LTD, 144.16 ,13/01/2016
Commercial,Regional Enterprise,Advertising,60043842,TMP (UK) LTD, 385.54 ,25/01/2016
Commercial,Regional Enterprise,Advertising,60044443,TMP (UK) LTD, 144.16 ,28/01/2016
Commercial,Regional Enterprise,Advertising,60044454,TMP (UK) LTD, 112.08 ,28/01/2016
Commercial,Regional Enterprise,Advertising,60044476,TMP (UK) LTD, 165.54 ,28/01/2016
Commercial,Regional Enterprise,Advertising,60044479,TMP (UK) LTD, 112.08 ,28/01/2016
Commercial,Regional Enterprise,Advertising,60044544,TMP (UK) LTD, 119.20 ,28/01/2016
Commercial,Regional Enterprise,Advertising,60044583,TMP (UK) LTD, 158.40 ,28/01/2016
Commercial,Regional Enterprise,Advertising,60044584,TMP (UK) LTD, 144.16 ,28/01/2016
Commercial,Regional Enterprise,Capital Construction and Works,60041887,RGE SERVICES," 23,870.63 ",21/01/2016
Commercial,Regional Enterprise,Catering Sales - Schools,20027649,DP BUILDERS DISABLED ADAPTATIONS," 10,985.20 ",14/01/2016
Commercial,Regional Enterprise,Catering Sales - Schools,20027650,QUATRE FOILS," 2,014.80 ",15/01/2016
Commercial,Regional Enterprise,Consultants Fees,60041691,EVERSHEDS LLP," 11,802.10 ",12/01/2016
Commercial,Regional Enterprise,Consultants Fees,60041728,EVERSHEDS LLP," 90,269.39 ",18/01/2016
Commercial,Regional Enterprise,Consultants Fees,60044890,EVERSHEDS LLP," 30,000.00 ",28/01/2016
Commercial,Regional Enterprise,Consultants Fees,60044990,EVERSHEDS LLP," 12,117.00 ",28/01/2016
Commercial,Regional Enterprise,Consultants Fees,60042131,PRIORITY ESTATES PROJECT LTD," 4,295.77 ",05/01/2016
Commercial,Regional Enterprise,Consultants Fees,60042150,PRIORITY ESTATES PROJECT LTD," 5,021.33 ",07/01/2016
Commercial,Regional Enterprise,Consultants Fees,60042020,SAPIENS CONSULTANCY," 1,336.00 ",19/01/2016
Commercial,Regional Enterprise,Consultants Fees,60042040,WATES LIVING SPACE, 823.20 ,05/01/2016
Commercial,Regional Enterprise,Contract Cleaning,60039965,CHURCHILL CONTRACT SERVICES, 488.56 ,13/01/2016
Commercial,Regional Enterprise,Equipment and Materials Purcha,20027552,REDACTED - PERSONAL DATA, 175.00 ,08/01/2016
Commercial,Regional Enterprise,Grant Payments,20027529,AMWELL CONSTRUCTION LTD, 159.20 ,11/01/2016
Commercial,Regional Enterprise,Grant Payments,20027689,AMWELL CONSTRUCTION LTD," 5,097.00 ",14/01/2016
Commercial,Regional Enterprise,Grant Payments,20027787,AMWELL CONSTRUCTION LTD," 13,447.15 ",19/01/2016
Commercial,Regional Enterprise,Grant Payments,20027816,AMWELL CONSTRUCTION LTD," 6,230.00 ",19/01/2016
Commercial,Regional Enterprise,Grant Payments,20027829,AMWELL CONSTRUCTION LTD," 5,328.25 ",20/01/2016
Commercial,Regional Enterprise,Grant Payments,20027883,AMWELL CONSTRUCTION LTD," 2,615.55 ",22/01/2016
Commercial,Regional Enterprise,Grant Payments,20027535,ARTHUR J. FERRYMAN ASSOCIATES," 1,010.35 ",11/01/2016
Commercial,Regional Enterprise,Grant Payments,20027681,ARTHUR J. FERRYMAN ASSOCIATES, 471.16 ,14/01/2016
Commercial,Regional Enterprise,Grant Payments,20027785,ARTHUR J. FERRYMAN ASSOCIATES," 1,661.16 ",19/01/2016
Commercial,Regional Enterprise,Grant Payments,20027825,ARTHUR J. FERRYMAN ASSOCIATES, 827.52 ,20/01/2016
Commercial,Regional Enterprise,Grant Payments,20027828,ARTHUR J. FERRYMAN ASSOCIATES, 720.00 ,20/01/2016
Commercial,Regional Enterprise,Grant Payments,20027547,CAPITAL  LOCKSMITHS, 358.80 ,11/01/2016
Commercial,Regional Enterprise,Grant Payments,20027899,CAPITAL  LOCKSMITHS, 228.00 ,22/01/2016
Commercial,Regional Enterprise,Grant Payments,20027900,CAPITAL  LOCKSMITHS, 360.00 ,22/01/2016
Commercial,Regional Enterprise,Grant Payments,20027901,CAPITAL  LOCKSMITHS, 96.00 ,22/01/2016
Commercial,Regional Enterprise,Grant Payments,20027902,CAPITAL  LOCKSMITHS, 96.00 ,22/01/2016
Commercial,Regional Enterprise,Grant Payments,20027903,CAPITAL  LOCKSMITHS, 96.00 ,22/01/2016
Commercial,Regional Enterprise,Grant Payments,20027904,CAPITAL  LOCKSMITHS, 96.00 ,22/01/2016
Commercial,Regional Enterprise,Grant Payments,20027920,CAPITAL  LOCKSMITHS, 96.00 ,25/01/2016
Commercial,Regional Enterprise,Grant Payments,20027921,CAPITAL  LOCKSMITHS, 228.48 ,25/01/2016
Commercial,Regional Enterprise,Grant Payments,20027922,CAPITAL  LOCKSMITHS, 96.00 ,25/01/2016
Commercial,Regional Enterprise,Grant Payments,20027924,CAPITAL  LOCKSMITHS, 96.00 ,25/01/2016
Commercial,Regional Enterprise,Grant Payments,20027926,CAPITAL  LOCKSMITHS, 96.00 ,25/01/2016
Commercial,Regional Enterprise,Grant Payments,20027538,DOLPHIN MOBILITY LTD.," 2,963.00 ",11/01/2016
Commercial,Regional Enterprise,Grant Payments,20027683,DP BUILDERS DISABLED ADAPTATIONS, 948.00 ,14/01/2016
Commercial,Regional Enterprise,Grant Payments,20027684,DP BUILDERS DISABLED ADAPTATIONS," 5,504.00 ",14/01/2016
Commercial,Regional Enterprise,Grant Payments,20027685,DP BUILDERS DISABLED ADAPTATIONS," 20,000.00 ",14/01/2016
Commercial,Regional Enterprise,Grant Payments,20027686,DP BUILDERS DISABLED ADAPTATIONS," 4,996.75 ",14/01/2016
Commercial,Regional Enterprise,Grant Payments,20027824,DP BUILDERS DISABLED ADAPTATIONS," 2,090.00 ",20/01/2016
Commercial,Regional Enterprise,Grant Payments,20027821,GHYLLSIDE," 4,533.00 ",19/01/2016
Commercial,Regional Enterprise,Grant Payments,20027898,GHYLLSIDE," 3,103.00 ",22/01/2016
Commercial,Regional Enterprise,Grant Payments,20027534,H CAROLAN CONSTRUCTION," 5,898.86 ",11/01/2016
Commercial,Regional Enterprise,Grant Payments,20027679,H CAROLAN CONSTRUCTION," 2,000.00 ",14/01/2016
Commercial,Regional Enterprise,Grant Payments,20027648,H D PROPERTY SERVICES LTD," 8,974.00 ",14/01/2016
Commercial,Regional Enterprise,Grant Payments,20027682,H D PROPERTY SERVICES LTD," 5,235.00 ",14/01/2016
Commercial,Regional Enterprise,Grant Payments,20027826,H D PROPERTY SERVICES LTD," 5,003.00 ",20/01/2016
Commercial,Regional Enterprise,Grant Payments,20027830,H D PROPERTY SERVICES LTD," 4,520.00 ",20/01/2016
Commercial,Regional Enterprise,Grant Payments,20027927,H D PROPERTY SERVICES LTD," 4,629.00 ",25/01/2016
Commercial,Regional Enterprise,Grant Payments,20027541,MCP PROPERTY SERVICES LTD," 2,808.00 ",11/01/2016
Commercial,Regional Enterprise,Grant Payments,20027822,PRISM MEDICAL UK, 350.00 ,19/01/2016
Commercial,Regional Enterprise,Grant Payments,20027542,REDACTED - PERSONAL DATA," 3,029.25 ",11/01/2016
Commercial,Regional Enterprise,Grant Payments,20027544,REDACTED - PERSONAL DATA," 3,486.00 ",11/01/2016
Commercial,Regional Enterprise,Grant Payments,20027786,REDACTED - PERSONAL DATA," 4,969.99 ",19/01/2016
Commercial,Regional Enterprise,Grant Payments,20027690,SOUTH HERTFORDSHIRE," 6,682.00 ",14/01/2016
Commercial,Regional Enterprise,Grant Payments,20027791,SOUTH HERTFORDSHIRE," 2,940.00 ",19/01/2016
Commercial,Regional Enterprise,Grant Payments,20027897,SOUTH HERTFORDSHIRE," 5,783.00 ",22/01/2016
Commercial,Regional Enterprise,Grant Payments,20027827,STANNAH STAIRLIFTS LTD," 14,825.00 ",20/01/2016
Commercial,Regional Enterprise,Grant Payments,20027882,THYSSENKRUPP ENCASA," 4,559.50 ",28/01/2016
Commercial,Regional Enterprise,Grant Payments,20027540,W S W PROPERTY MAINTENANCE LTD, 150.00 ,08/01/2016
Commercial,Regional Enterprise,Grant Payments,20027929,WESSEX LIFT CO. LTD," 10,955.00 ",25/01/2016
Commercial,Regional Enterprise,Legal and Court Fees,20027853,TROWERS & HAMLINS," 15,000.00 ",20/01/2016
Commercial,Regional Enterprise,Other Services,10013021,AFFINITY WATER LIMITED, 67.78 ,25/01/2016
Commercial,Regional Enterprise,Other Services,60038787,AFFINITY WATER LIMITED, 35.08 ,11/01/2016
Commercial,Regional Enterprise,Other Services,60038084,BARNET LIGHTING SERVICES LTD," 15,000.00 ",28/01/2016
Commercial,Regional Enterprise,Other Services,10012896,CONWAY AECOM LTD," 82,000.00 ",25/01/2016
Commercial,Regional Enterprise,Other Services,10012897,CONWAY AECOM LTD," 80,000.00 ",25/01/2016
Commercial,Regional Enterprise,Other Services,10012898,CONWAY AECOM LTD," 76,731.00 ",25/01/2016
Commercial,Regional Enterprise,Other Services,10012908,CONWAY AECOM LTD," 15,000.00 ",25/01/2016
Commercial,Regional Enterprise,Other Services,60034528,CONWAY AECOM LTD," 36,143.47 ",13/01/2016
Commercial,Regional Enterprise,Other Services,60035436,CONWAY AECOM LTD, 337.60 ,28/01/2016
Commercial,Regional Enterprise,Other Services,60035588,CONWAY AECOM LTD, 607.68 ,28/01/2016
Commercial,Regional Enterprise,Other Services,60035646,CONWAY AECOM LTD," 7,344.00 ",28/01/2016
Commercial,Regional Enterprise,Other Services,60039359,CONWAY AECOM LTD," 1,300.25 ",13/01/2016
Commercial,Regional Enterprise,Other Services,60039408,CONWAY AECOM LTD," 51,154.00 ",25/01/2016
Commercial,Regional Enterprise,Other Services,60039423,CONWAY AECOM LTD," 21,908.00 ",13/01/2016
Commercial,Regional Enterprise,Other Services,60039425,CONWAY AECOM LTD," 42,127.00 ",13/01/2016
Commercial,Regional Enterprise,Other Services,60039435,CONWAY AECOM LTD," 34,560.00 ",25/01/2016
Commercial,Regional Enterprise,Other Services,60039440,CONWAY AECOM LTD," 31,816.00 ",25/01/2016
Commercial,Regional Enterprise,Other Services,60039530,CONWAY AECOM LTD," 8,625.50 ",25/01/2016
Commercial,Regional Enterprise,Other Services,60040721,CONWAY AECOM LTD, 363.77 ,06/01/2016
Commercial,Regional Enterprise,Other Services,60041043,CONWAY AECOM LTD," 7,920.58 ",13/01/2016
Commercial,Regional Enterprise,Other Services,60041059,CONWAY AECOM LTD," 7,253.41 ",13/01/2016
Commercial,Regional Enterprise,Other Services,60041255,CONWAY AECOM LTD," 3,907.22 ",28/01/2016
Commercial,Regional Enterprise,Other Services,60041293,CONWAY AECOM LTD, 661.03 ,28/01/2016
Commercial,Regional Enterprise,Other Services,60041299,CONWAY AECOM LTD," 9,969.48 ",13/01/2016
Commercial,Regional Enterprise,Other Services,60041317,CONWAY AECOM LTD," 55,872.54 ",28/01/2016
Commercial,Regional Enterprise,Other Services,60042443,CONWAY AECOM LTD, 168.80 ,28/01/2016
Commercial,Regional Enterprise,Other Services,60042447,CONWAY AECOM LTD, 784.92 ,28/01/2016
Commercial,Regional Enterprise,Other Services,60042456,CONWAY AECOM LTD, 708.96 ,28/01/2016
Commercial,Regional Enterprise,Other Services,60042464,CONWAY AECOM LTD, 911.52 ,28/01/2016
Commercial,Regional Enterprise,Other Services,60042467,CONWAY AECOM LTD, 722.68 ,28/01/2016
Commercial,Regional Enterprise,Other Services,60042497,CONWAY AECOM LTD," 1,484.39 ",28/01/2016
Commercial,Regional Enterprise,Other Services,60042499,CONWAY AECOM LTD," 1,063.44 ",28/01/2016
Commercial,Regional Enterprise,Other Services,60042501,CONWAY AECOM LTD, 912.58 ,28/01/2016
Commercial,Regional Enterprise,Other Services,60042526,CONWAY AECOM LTD, 455.76 ,28/01/2016
Commercial,Regional Enterprise,Other Services,60042530,CONWAY AECOM LTD, 527.50 ,28/01/2016
Commercial,Regional Enterprise,Other Services,60042532,CONWAY AECOM LTD, 607.68 ,28/01/2016
Commercial,Regional Enterprise,Other Services,60042536,CONWAY AECOM LTD," 3,143.90 ",28/01/2016
Commercial,Regional Enterprise,Other Services,60042550,CONWAY AECOM LTD," 2,813.93 ",28/01/2016
Commercial,Regional Enterprise,Other Services,60042555,CONWAY AECOM LTD, 422.00 ,28/01/2016
Commercial,Regional Enterprise,Other Services,60042556,CONWAY AECOM LTD," 1,063.44 ",28/01/2016
Commercial,Regional Enterprise,Other Services,60042559,CONWAY AECOM LTD, 873.54 ,28/01/2016
Commercial,Regional Enterprise,Other Services,60042564,CONWAY AECOM LTD," 1,740.45 ",28/01/2016
Commercial,Regional Enterprise,Other Services,60042575,CONWAY AECOM LTD," 1,709.10 ",28/01/2016
Commercial,Regional Enterprise,Other Services,60042580,CONWAY AECOM LTD, 854.55 ,28/01/2016
Commercial,Regional Enterprise,Other Services,60042583,CONWAY AECOM LTD," 3,639.68 ",28/01/2016
Commercial,Regional Enterprise,Other Services,60042590,CONWAY AECOM LTD," 23,500.00 ",28/01/2016
Commercial,Regional Enterprise,Other Services,60042600,CONWAY AECOM LTD, 405.12 ,28/01/2016
Commercial,Regional Enterprise,Other Services,60043356,CONWAY AECOM LTD," 1,698.12 ",28/01/2016
Commercial,Regional Enterprise,Other Services,60043403,CONWAY AECOM LTD," 3,086.17 ",28/01/2016
Commercial,Regional Enterprise,Other Services,60043479,CONWAY AECOM LTD," 25,620.75 ",28/01/2016
Commercial,Regional Enterprise,Other Services,60043480,CONWAY AECOM LTD," 1,551.24 ",28/01/2016
Commercial,Regional Enterprise,Other Services,60043552,CONWAY AECOM LTD, 934.99 ,28/01/2016
Commercial,Regional Enterprise,Other Services,60043630,CONWAY AECOM LTD," 16,828.39 ",28/01/2016
Commercial,Regional Enterprise,Other Services,60043720,CONWAY AECOM LTD," 6,666.35 ",28/01/2016
Commercial,Regional Enterprise,Other Services,60043731,CONWAY AECOM LTD," 14,234.91 ",28/01/2016
Commercial,Regional Enterprise,Other Services,60043743,CONWAY AECOM LTD," 1,376.36 ",28/01/2016
Commercial,Regional Enterprise,Other Services,60043762,CONWAY AECOM LTD," 1,580.64 ",28/01/2016
Commercial,Regional Enterprise,Other Services,60043779,CONWAY AECOM LTD," 1,019.01 ",28/01/2016
Commercial,Regional Enterprise,Other Services,60043781,CONWAY AECOM LTD," 4,836.31 ",28/01/2016
Commercial,Regional Enterprise,Other Services,60043799,CONWAY AECOM LTD, 273.34 ,28/01/2016
Commercial,Regional Enterprise,Other Services,60043895,CONWAY AECOM LTD," 2,873.17 ",28/01/2016
Commercial,Regional Enterprise,Other Services,60044778,CONWAY AECOM LTD," 1,239.68 ",27/01/2016
Commercial,Regional Enterprise,Other Services,60040624,CYCLE CONFIDENT LTD, 975.00 ,06/01/2016
Commercial,Regional Enterprise,Other Services,60040680,CYCLE CONFIDENT LTD," 4,000.00 ",06/01/2016
Commercial,Regional Enterprise,Other Services,60040681,CYCLE CONFIDENT LTD," 7,501.36 ",06/01/2016
Commercial,Regional Enterprise,Other Services,60039620,KENT COUNTY COUNCIL (KCS), 7.08 ,11/01/2016
Commercial,Regional Enterprise,Other Services,60039644,KENT COUNTY COUNCIL (KCS), 11.78 ,11/01/2016
Commercial,Regional Enterprise,Other Services,10012978,SARG ENGINEERING (UK) LIMITED," 12,000.00 ",15/01/2016
Commercial,Regional Enterprise,Other Services,60040899,THE BARNETGROUP LIMITED," 21,940.00 ",07/01/2016
Commercial,Regional Enterprise,Other Services,60041016,THE BARNETGROUP LIMITED," 4,440.00 ",11/01/2016
Commercial,Regional Enterprise,Printing-Contract,60040029,TMP (UK) LTD, 130.88 ,07/01/2016
Commercial,Regional Enterprise,Professional Services,60044063,PUBLIC ANALYST SCIENTIFIC SERVS. LT, 575.00 ,25/01/2016
Commercial,Regional Enterprise,Proj Consultancy Pep Recharge,60032195,OPINION RESEARCH SERVICES," 13,887.50 ",28/01/2016
Commercial,Regional Enterprise,Training,60042140,FUTURE OF LONDON 2011 LTD," 12,000.00 ",05/01/2016
Commissioning,Commissioning,Advertising,60041948,REDACTED - PERSONAL DATA, 150.00 ,06/01/2016
Commissioning,Commissioning,Agency/Interim Non Hays,60044648,NHS BARNET CCG," 10,880.70 ",26/01/2016
Commissioning,Commissioning,Agency/Interim Non Hays,60044670,NHS BARNET CCG," 10,317.83 ",26/01/2016
Commissioning,Commissioning,Building Repairs & Maintenance,60037614,AJS LTD," 1,461.75 ",12/01/2016
Commissioning,Commissioning,Building Repairs & Maintenance,60043406,GRISTWOOD & TOM LTD," 5,230.00 ",28/01/2016
Commissioning,Commissioning,Building Repairs & Maintenance,60018942,LIFT & ENGINEERING SERVICES LTD, 142.10 ,07/01/2016
Commissioning,Commissioning,Building Repairs & Maintenance,60028415,OAKRAY LIMITED, 96.00 ,26/01/2016
Commissioning,Commissioning,Building Repairs & Maintenance,60028459,OAKRAY LIMITED, 88.00 ,26/01/2016
Commissioning,Commissioning,Building Repairs & Maintenance,60028465,OAKRAY LIMITED, 96.00 ,26/01/2016
Commissioning,Commissioning,Building Repairs & Maintenance,60028470,OAKRAY LIMITED, 96.00 ,26/01/2016
Commissioning,Commissioning,Building Repairs & Maintenance,60028474,OAKRAY LIMITED, 48.00 ,26/01/2016
Commissioning,Commissioning,Building Repairs & Maintenance,60028478,OAKRAY LIMITED, 80.00 ,26/01/2016
Commissioning,Commissioning,Building Repairs & Maintenance,60028510,OAKRAY LIMITED, 64.00 ,26/01/2016
Commissioning,Commissioning,Building Repairs & Maintenance,60028535,OAKRAY LIMITED, 80.00 ,26/01/2016
Commissioning,Commissioning,Building Repairs & Maintenance,60028551,OAKRAY LIMITED, 64.00 ,26/01/2016
Commissioning,Commissioning,Building Repairs & Maintenance,60031000,OAKRAY LIMITED, 64.00 ,26/01/2016
Commissioning,Commissioning,Building Repairs & Maintenance,60043327,OAKRAY LIMITED," 5,173.94 ",18/01/2016
Commissioning,Commissioning,Capital Construction and Works,10012884,BUSH WHEELER SERVICES LIMITED," 2,465.00 ",06/01/2016
Commissioning,Commissioning,Consultants Fees,60042030,BARNET & DISTRICT ATHLETIC CLUB, 25.00 ,06/01/2016
Commissioning,Commissioning,Consultants Fees,60035871,COPPER CONSULTING LTD," 3,478.72 ",28/01/2016
Commissioning,Commissioning,Consultants Fees,60042515,JON SHEAFF AND ASSOCIATES, 960.00 ,28/01/2016
Commissioning,Commissioning,Consultants Fees,60037979,KAZOU CONSULTANCY LTD, 376.72 ,28/01/2016
Commissioning,Commissioning,Consultants Fees,60040860,KAZOU CONSULTANCY LTD, 430.52 ,12/01/2016
Commissioning,Commissioning,Consultants Fees,60040896,KAZOU CONSULTANCY LTD, 472.97 ,12/01/2016
Commissioning,Commissioning,Consultants Fees,60044616,PRECIOUS MOMENTS AND HEALTH LTD," 1,212.50 ",27/01/2016
Commissioning,Commissioning,Consultants Fees,60044699,PUBLIC POLICY EXCHANGE LTD, 295.00 ,26/01/2016
Commissioning,Commissioning,Consultants Fees,60030647,REDACTED - PERSONAL DATA, 25.00 ,06/01/2016
Commissioning,Commissioning,Consultants Fees,60030691,REDACTED - PERSONAL DATA, 100.00 ,06/01/2016
Commissioning,Commissioning,Consultants Fees,10012871,TMP (UK) LTD, 297.00 ,06/01/2016
Commissioning,Commissioning,Consultants Fees,60035594,VALUATION OFFICE AGENCY," 4,858.47 ",28/01/2016
Commissioning,Commissioning,Consultants Fees,60044117,WATES CONSTRUCTION LTD," 42,746.00 ",21/01/2016
Commissioning,Commissioning,Consultants Fees,60044123,WATES CONSTRUCTION LTD," 19,477.00 ",21/01/2016
Commissioning,Commissioning,Consultants Fees,60044128,WATES CONSTRUCTION LTD," 9,174.00 ",21/01/2016
Commissioning,Commissioning,Consultants Fees,60044222,WATES CONSTRUCTION LTD," 19,392.00 ",26/01/2016
Commissioning,Commissioning,Consultants Fees,60044225,WATES CONSTRUCTION LTD," 9,156.00 ",26/01/2016
Commissioning,Commissioning,Consultants Fees,60044243,WATES CONSTRUCTION LTD," 28,656.00 ",26/01/2016
Commissioning,Commissioning,Consultants Fees,60044260,WATES CONSTRUCTION LTD," 151,384.00 ",26/01/2016
Commissioning,Commissioning,Consultants Fees,60044307,WATES CONSTRUCTION LTD," 80,976.00 ",26/01/2016
Commissioning,Commissioning,Consultants Fees,60044399,WATES CONSTRUCTION LTD," 83,163.00 ",26/01/2016
Commissioning,Commissioning,Consultants Fees,60044407,WATES CONSTRUCTION LTD," 145,762.00 ",26/01/2016
Commissioning,Commissioning,Discretionary awards,20027943,HENDON SEA TRAINING CORPS.," 3,700.00 ",26/01/2016
Commissioning,Commissioning,Discretionary awards,20027405,HOME START BARNET," 3,999.60 ",07/01/2016
Commissioning,Commissioning,Discretionary awards,20027636,MILL HILL NEIGHBOURHOOD FORUM," 9,999.00 ",13/01/2016
Commissioning,Commissioning,Employee Expenses,60045011,GATENBY SANDERSON," 1,750.00 ",29/01/2016
Commissioning,Commissioning,Equipment and Materials Purcha,10012977,GALLIFORD TRY," 100,000.00 ",14/01/2016
Commissioning,Commissioning,Equipment and Materials Purcha,60042307,OCS GROUP UK LIMITED," 1,624.00 ",19/01/2016
Commissioning,Commissioning,Equipment and Materials Purcha,60042320,OCS GROUP UK LIMITED," 2,848.00 ",19/01/2016
Commissioning,Commissioning,Equipment and Materials Purcha,60042332,OCS GROUP UK LIMITED, 400.00 ,19/01/2016
Commissioning,Commissioning,Equipment and Materials Purcha,60043279,OCS GROUP UK LIMITED," 46,304.00 ",28/01/2016
Commissioning,Commissioning,Equipment and Materials Purcha,40001307,OFFICE DEPOT UK LTD, 77.04 ,07/01/2016
Commissioning,Commissioning,Equipment and Materials Purcha,60041905,SHAYLOR GROUP PLC," 226,749.90 ",14/01/2016
Commissioning,Commissioning,Furniture-Purchase-Repair,60042338,SENATOR INTERNATIONAL, 717.00 ,07/01/2016
Commissioning,Commissioning,Grant Payments,80001681,AVENUE HOUSE ESTATE TRUST," 41,667.00 ",13/01/2016
Commissioning,Commissioning,Grant Payments,60044102,COMMUNITY BARNET," 10,000.00 ",28/01/2016
Commissioning,Commissioning,Grant Payments,80001860,COMMUNITY FOCUS," 17,100.00 ",26/01/2016
Commissioning,Commissioning,Grant Payments,80001684,SARACENS SPORTS FOUNDATION," 2,500.00 ",07/01/2016
Commissioning,Commissioning,Health authorities - Third Par,10012942,REDACTED - PERSONAL DATA, 50.00 ,06/01/2016
Commissioning,Commissioning,Health authorities - Third Par,10012943,REDACTED - PERSONAL DATA, 25.00 ,06/01/2016
Commissioning,Commissioning,It Strategy Pep Recharge,60044673,GENERAL DYNAMICS INFORMATION TECHNOLOGY," 5,469.36 ",28/01/2016
Commissioning,Commissioning,Miscellaneous Expenses,20027197,REPROPOINT LIMITED," 1,160.00 ",08/01/2016
Commissioning,Commissioning,Other Agencies - Third Party P,10012952,FAMILY FUND TRADING LTD,"-1,348.27 ",12/01/2016
Commissioning,Commissioning,Other Agencies - Third Party P,60030581,FAMILY FUND TRADING LTD,-24.16 ,12/01/2016
Commissioning,Commissioning,Other Agencies - Third Party P,60040609,FAMILY FUND TRADING LTD," 1,133.33 ",12/01/2016
Commissioning,Commissioning,Other Agencies - Third Party P,60040667,FAMILY FUND TRADING LTD, 500.00 ,12/01/2016
Commissioning,Commissioning,Other Agencies - Third Party P,60041052,FAMILY FUND TRADING LTD," 2,625.83 ",27/01/2016
Commissioning,Commissioning,Other Agencies - Third Party P,60041947,FAMILY FUND TRADING LTD," 1,797.50 ",27/01/2016
Commissioning,Commissioning,Other Agencies - Third Party P,60042197,FAMILY FUND TRADING LTD," 1,330.83 ",12/01/2016
Commissioning,Commissioning,Other Agencies - Third Party P,60042772,FAMILY FUND TRADING LTD, 44.00 ,27/01/2016
Commissioning,Commissioning,Other Agencies - Third Party P,60042811,FAMILY FUND TRADING LTD,-662.23 ,28/01/2016
Commissioning,Commissioning,Other Agencies - Third Party P,60042829,FAMILY FUND TRADING LTD, 131.00 ,13/01/2016
Commissioning,Commissioning,Other Agencies - Third Party P,60043203,FAMILY FUND TRADING LTD, 316.67 ,20/01/2016
Commissioning,Commissioning,Other Agencies - Third Party P,60044177,FAMILY FUND TRADING LTD," 1,160.83 ",25/01/2016
Commissioning,Commissioning,Other Agencies - Third Party P,60044940,FAMILY FUND TRADING LTD," 1,865.84 ",28/01/2016
Commissioning,Commissioning,Other Agencies - Third Party P,60010047,PREMIER PEOPLE SOLUTIONS LTD," 1,180.00 ",12/01/2016
Commissioning,Commissioning,Other Services,20027643,BARNET COMMUNITY PROJECTS," 5,042.00 ",14/01/2016
Commissioning,Commissioning,Other Services,20027714,BASKETBALL ENGLAND, 25.00 ,18/01/2016
Commissioning,Commissioning,Other Services,60042899,BLUE 9 SECURITY LIMITED," 5,000.00 ",13/01/2016
Commissioning,Commissioning,Other Services,60041212,HARROW GREEN LTD," 2,291.28 ",11/01/2016
Commissioning,Commissioning,Other Services,60041215,HARROW GREEN LTD, 803.88 ,11/01/2016
Commissioning,Commissioning,Other Services,60041217,HARROW GREEN LTD," 9,979.13 ",11/01/2016
Commissioning,Commissioning,Other Services,60041222,HARROW GREEN LTD," 26,350.28 ",11/01/2016
Commissioning,Commissioning,Other Services,60041260,HARROW GREEN LTD," 3,077.14 ",11/01/2016
Commissioning,Commissioning,Other Services,60041273,HARROW GREEN LTD, 870.39 ,11/01/2016
Commissioning,Commissioning,Other Services,60041281,HARROW GREEN LTD," 8,733.45 ",11/01/2016
Commissioning,Commissioning,Other Services,60041296,HARROW GREEN LTD," 1,302.40 ",11/01/2016
Commissioning,Commissioning,Other Services,60041314,HARROW GREEN LTD," 1,767.22 ",08/01/2016
Commissioning,Commissioning,Other Services,60041331,HARROW GREEN LTD," 1,713.01 ",11/01/2016
Commissioning,Commissioning,Other Services,60041354,HARROW GREEN LTD," 1,538.27 ",08/01/2016
Commissioning,Commissioning,Other Services,60041398,HARROW GREEN LTD," 13,408.19 ",11/01/2016
Commissioning,Commissioning,Other Services,60041441,HARROW GREEN LTD," 4,370.00 ",06/01/2016
Commissioning,Commissioning,Other Services,60041449,HARROW GREEN LTD," 2,037.22 ",07/01/2016
Commissioning,Commissioning,Other Services,60041451,HARROW GREEN LTD," 4,074.90 ",11/01/2016
Commissioning,Commissioning,Other Services,60041454,HARROW GREEN LTD, 773.12 ,11/01/2016
Commissioning,Commissioning,Other Services,60041461,HARROW GREEN LTD," 1,362.03 ",11/01/2016
Commissioning,Commissioning,Other Services,60041464,HARROW GREEN LTD," 1,508.10 ",11/01/2016
Commissioning,Commissioning,Other Services,60041467,HARROW GREEN LTD, 229.50 ,11/01/2016
Commissioning,Commissioning,Other Services,60041472,HARROW GREEN LTD," 13,941.85 ",11/01/2016
Commissioning,Commissioning,Other Services,60041473,HARROW GREEN LTD," 1,077.38 ",11/01/2016
Commissioning,Commissioning,Other Services,60041474,HARROW GREEN LTD," 10,983.94 ",11/01/2016
Commissioning,Commissioning,Other Services,60041477,HARROW GREEN LTD," 1,215.19 ",11/01/2016
Commissioning,Commissioning,Other Services,60041478,HARROW GREEN LTD, 812.50 ,11/01/2016
Commissioning,Commissioning,Other Services,60041479,HARROW GREEN LTD," 6,812.00 ",07/01/2016
Commissioning,Commissioning,Other Services,60041480,HARROW GREEN LTD," 7,200.93 ",11/01/2016
Commissioning,Commissioning,Other Services,60041496,HARROW GREEN LTD," 1,355.77 ",11/01/2016
Commissioning,Commissioning,Other Services,60041501,HARROW GREEN LTD, 465.74 ,11/01/2016
Commissioning,Commissioning,Other Services,60041512,HARROW GREEN LTD, 235.88 ,07/01/2016
Commissioning,Commissioning,Other Services,60041514,HARROW GREEN LTD," 5,862.43 ",12/01/2016
Commissioning,Commissioning,Other Services,60041516,HARROW GREEN LTD," 4,302.84 ",11/01/2016
Commissioning,Commissioning,Other Services,60043316,HARROW GREEN LTD," 3,606.31 ",27/01/2016
Commissioning,Commissioning,Other Services,60043396,HARROW GREEN LTD, 920.12 ,20/01/2016
Commissioning,Commissioning,Other Services,60043407,HARROW GREEN LTD, 915.84 ,27/01/2016
Commissioning,Commissioning,Other Services,60043428,HARROW GREEN LTD, 460.64 ,25/01/2016
Commissioning,Commissioning,Other Services,60042425,IMPOWER CONSULTING LIMITED," 7,800.00 ",20/01/2016
Commissioning,Commissioning,Other Services,20028030,MILL HILL RESIDENTS ASSOCIATION," 4,958.00 ",29/01/2016
Commissioning,Commissioning,Other Services,60043659,PUBLIC SECTOR CONNECT LTD, 160.00 ,19/01/2016
Commissioning,Commissioning,Other Services,60036739,THE ULTIMATE PROMOTION CO LTD, 505.00 ,28/01/2016
Commissioning,Commissioning,Printing-Contract,60042618,LETTERBOX DISTRIBUTION.COM," 9,246.00 ",11/01/2016
Commissioning,Commissioning,Printing-Contract,60042075,MPC PRINT SOLUTIONS, 525.00 ,05/01/2016
Commissioning,Commissioning,Printing-Contract,40001335,OFFICE DEPOT UK LTD, 29.20 ,20/01/2016
Commissioning,Commissioning,Private Contractors - Third Pa,60034015,GREENWICH LEISURE LTD," 100,273.55 ",28/01/2016
Commissioning,Commissioning,Private Contractors - Third Pa,60036922,GREENWICH LEISURE LTD," 100,273.55 ",28/01/2016
Commissioning,Commissioning,Private Contractors - Third Pa,60040925,GREENWICH LEISURE LTD," 100,273.55 ",28/01/2016
Commissioning,Commissioning,Private Contractors - Third Pa,60043683,GREENWICH LEISURE LTD," 100,273.55 ",22/01/2016
Commissioning,Commissioning,Professional Services,60044356,IMPOWER CONSULTING LIMITED," 24,824.00 ",22/01/2016
Commissioning,Commissioning,Professional Services,60040916,MUTUAL VENTURES LTD," 25,000.00 ",07/01/2016
Commissioning,Commissioning,Professional Services,60035924,NATIONAL DEVELOPMENT TEAM FOR INCLUSION," 18,666.67 ",11/01/2016
Commissioning,Commissioning,Publications,60042729,INTERNATIONAL PRESS CUTTING BUREAU," 1,080.00 ",27/01/2016
Commissioning,Commissioning,Publications,60038320,KAZOU CONSULTANCY LTD," 1,657.25 ",28/01/2016
Commissioning,Commissioning,Publications,60041730,MEETINGSPHERE LTD," 1,800.00 ",14/01/2016
Commissioning,Commissioning,Publications,60043516,MELTWATER UK LTD," 1,420.00 ",18/01/2016
Commissioning,Commissioning,Rubbish Collection,60041417,ANTHESIS (UK) LTD," 10,686.00 ",14/01/2016
Commissioning,Commissioning,Settlement of WOM Costs,60029816,S W BRUCE & CO LTD, 750.00 ,05/01/2016
Commissioning,Commissioning,Settlement of WOM Costs,60038212,S W BRUCE & CO LTD," 4,602.14 ",18/01/2016
Commissioning,Commissioning,Software Licences & Support,60043507,CIPFA BUSINESS LIMITED, 775.00 ,20/01/2016
Commissioning,Commissioning,Software Licences & Support,60042082,DIGITALISSUE LIMITED, 150.00 ,14/01/2016
Commissioning,Commissioning,Software Licences & Support,10012984,HOOTSUITE  MEDIA INC.," 4,500.00 ",14/01/2016
Commissioning,Commissioning,Training,60044601,COMER BUSINESS AND INNOVATION CENTRES, 60.00 ,26/01/2016
Commissioning,Commissioning,Training,60041940,PREMIER PEOPLE SOLUTIONS LTD, 475.00 ,20/01/2016
Commissioning,Commissioning,Ttl IT & Comms,60022291,AIRWAVE SOLUTIONS LIMITED, 500.88 ,27/01/2016
Commissioning,Commissioning,Ttl IT & Comms,60035909,BRITISH TELECOM PLC, 101.03 ,28/01/2016
Commissioning,Commissioning,Ttl IT & Comms,60040857,BRITISH TELECOM PLC, 95.25 ,14/01/2016
Commissioning,Commissioning,Ttl IT & Comms,60040846,KAZOU CONSULTANCY LTD, 849.16 ,06/01/2016
Commissioning,Commissioning,Ttl IT & Comms,60037846,STOR-A FILE LTD, 977.92 ,22/01/2016
Commissioning,Commissioning,Ttl IT & Comms,60040753,STOR-A FILE LTD, 837.36 ,22/01/2016
Commissioning,Commissioning,Ttl IT & Comms,60042885,STOR-A FILE LTD," 14,852.18 ",28/01/2016
Commissioning,Commissioning,Venue Hire,60042098,ARIANA BANQUETING HALL," 1,945.00 ",18/01/2016
Commissioning,Commissioning,Venue Hire,60041903,BARNET & SOUTHGATE COLLEGE, 279.00 ,11/01/2016
Commissioning,Commissioning,Venue Hire,60043803,BARNET & SOUTHGATE COLLEGE, 31.00 ,27/01/2016
Commissioning,Commissioning,Venue Hire,60043833,BARNET & SOUTHGATE COLLEGE, 310.00 ,27/01/2016
Commissioning,Commissioning,Venue Hire,60043904,BARNET & SOUTHGATE COLLEGE, 465.00 ,27/01/2016
Commissioning,Commissioning,Venue Hire,60043929,BARNET & SOUTHGATE COLLEGE, 232.50 ,27/01/2016
Commissioning,Commissioning,Venue Hire,60041956,COMMUNITY LINKS TRADING LTD," 1,130.00 ",05/01/2016
Commissioning,Commissioning,Venue Hire,60042100,ROYAL AIR FORCE MUSEUM, 625.00 ,05/01/2016
Corporate Accounting,Corporate Accounting,CR & DR Card Contra,30106333,RIMON JEWISH PRIMARY SCHOOL, 478.40 ,13/01/2016
Corporate Accounting,Corporate Accounting,Fees and Charges,20027400,MACE MONTESSORI SCHOOLS LIMITED," 3,618.07 ",07/01/2016
Corporate Accounting,Corporate Accounting,Other Agencies - Third Party P,10012945,THE BARNETGROUP LIMITED," 1,000,000.00 ",06/01/2016
Corporate Accounting,Corporate Accounting,Other Agencies - Third Party P,60044265,THE BARNETGROUP LIMITED," 1,950,000.00 ",26/01/2016
Corporate Accounting,Corporate Accounting,Other Establishments - Third P,30107709,BROADFIELDS ACADEMY," 2,192.83 ",22/01/2016
Corporate Accounting,Corporate Accounting,Other Establishments - Third P,30107744,BROADFIELDS ACADEMY," 21,204.00 ",22/01/2016
Corporate Accounting,Corporate Accounting,Other Establishments - Third P,30107677,CHRIST'S COLLEGE FINCHLEY ACADEMY," 12,426.00 ",22/01/2016
Corporate Accounting,Corporate Accounting,Other Establishments - Third P,30107712,CHRIST'S COLLEGE FINCHLEY ACADEMY," 5,700.00 ",22/01/2016
Corporate Accounting,Corporate Accounting,Other Establishments - Third P,30107746,CHRIST'S COLLEGE FINCHLEY ACADEMY, 923.40 ,22/01/2016
Corporate Accounting,Corporate Accounting,Other Establishments - Third P,30107678,COPTHALL SCHOOL (ACADEMY)," 1,371.96 ",22/01/2016
Corporate Accounting,Corporate Accounting,Other Establishments - Third P,30107747,COPTHALL SCHOOL (ACADEMY)," 24,282.00 ",22/01/2016
Corporate Accounting,Corporate Accounting,Other Establishments - Third P,30107679,QUEEN ELIZABETH'S GIRLS ACADEMY, 576.35 ,22/01/2016
Corporate Accounting,Corporate Accounting,Other Establishments - Third P,30107748,QUEEN ELIZABETH'S GIRLS ACADEMY," 12,996.00 ",22/01/2016
Corporate Accounting,Corporate Accounting,Other Establishments - Third P,30107676,THE HYDE EF ACADEMY," 7,928.45 ",22/01/2016
Corporate Accounting,Corporate Accounting,Other Establishments - Third P,30107711,THE HYDE EF ACADEMY," 6,289.40 ",22/01/2016
Corporate Accounting,Corporate Accounting,Other Establishments - Third P,30107745,THE HYDE EF ACADEMY, 509.85 ,22/01/2016
Corporate Accounting,Corporate Accounting,Other Establishments - Third P,30107749,TOTTERIDGE ACADEMY," 9,405.00 ",22/01/2016
Corporate Accounting,Corporate Accounting,Other Local Authorities - Thir, EBX0095829 ,GREATER LONDON AUTHORITY," 1,642,337.00 ",11/01/2016
Corporate Accounting,Corporate Accounting,Other Local Authorities - Thir, EBX0097751 ,GREATER LONDON AUTHORITY," 233,647.00 ",21/01/2016
Corporate Accounting,Corporate Accounting,Other Transfer Payments to Soc,60039577,CITIBANK NA LONDON, 332.80 ,13/01/2016
Corporate Accounting,Corporate Accounting,Other Transfer Payments to Soc,60039687,CITIBANK NA LONDON," 2,727.95 ",11/01/2016
Corporate Accounting,Corporate Accounting,Other Transfer Payments to Soc,60041346,CITIBANK NA LONDON," 2,150.86 ",06/01/2016
Corporate Accounting,Corporate Accounting,Other Transfer Payments to Soc,60042006,CITIBANK NA LONDON," 2,311.30 ",08/01/2016
Corporate Accounting,Corporate Accounting,Other Transfer Payments to Soc,60042021,CITIBANK NA LONDON, 263.30 ,08/01/2016
Corporate Accounting,Corporate Accounting,Other Transfer Payments to Soc,60042052,CITIBANK NA LONDON, 330.00 ,08/01/2016
Corporate Accounting,Corporate Accounting,Other Transfer Payments to Soc,60042063,CITIBANK NA LONDON, 402.00 ,08/01/2016
Corporate Accounting,Corporate Accounting,Other Transfer Payments to Soc,60042067,CITIBANK NA LONDON, 50.00 ,08/01/2016
Corporate Accounting,Corporate Accounting,Other Transfer Payments to Soc,60042101,CITIBANK NA LONDON, 251.53 ,08/01/2016
Corporate Accounting,Corporate Accounting,Other Transfer Payments to Soc,60042478,CITIBANK NA LONDON, 301.50 ,11/01/2016
Corporate Accounting,Corporate Accounting,Other Transfer Payments to Soc,60042538,CITIBANK NA LONDON," 17,759.26 ",11/01/2016
Corporate Accounting,Corporate Accounting,Other Transfer Payments to Soc,60042568,CITIBANK NA LONDON, 176.75 ,11/01/2016
Corporate Accounting,Corporate Accounting,Other Transfer Payments to Soc,60042695,CITIBANK NA LONDON, 232.50 ,12/01/2016
Corporate Accounting,Corporate Accounting,Other Transfer Payments to Soc,60042717,CITIBANK NA LONDON, 190.00 ,12/01/2016
Corporate Accounting,Corporate Accounting,Other Transfer Payments to Soc,60042719,CITIBANK NA LONDON, 981.35 ,12/01/2016
Corporate Accounting,Corporate Accounting,Other Transfer Payments to Soc,60042741,CITIBANK NA LONDON," 1,306.30 ",12/01/2016
Corporate Accounting,Corporate Accounting,Other Transfer Payments to Soc,60043600,CITIBANK NA LONDON, 115.80 ,20/01/2016
Corporate Accounting,Corporate Accounting,Other Transfer Payments to Soc,60043634,CITIBANK NA LONDON," 3,532.70 ",20/01/2016
Corporate Accounting,Corporate Accounting,Other Transfer Payments to Soc,60043638,CITIBANK NA LONDON," 1,650.70 ",20/01/2016
Corporate Accounting,Corporate Accounting,Other Transfer Payments to Soc,60043648,CITIBANK NA LONDON, 24.00 ,20/01/2016
Corporate Accounting,Corporate Accounting,Other Transfer Payments to Soc,60044725,CITIBANK NA LONDON, 695.59 ,28/01/2016
Corporate Accounting,Corporate Accounting,Other Transfer Payments to Soc,60044740,CITIBANK NA LONDON, 46.00 ,28/01/2016
Corporate Accounting,Corporate Accounting,Other Transfer Payments to Soc,60044775,CITIBANK NA LONDON," 2,354.00 ",28/01/2016
Corporate Accounting,Corporate Accounting,Other Transfer Payments to Soc,60044790,CITIBANK NA LONDON," 2,271.75 ",28/01/2016
Corporate Accounting,Corporate Accounting,Other Transfer Payments to Soc,60044793,CITIBANK NA LONDON, 105.00 ,28/01/2016
Delivery Units,Adults and Communities,Advertising,60042034,TMP (UK) LTD, 841.00 ,05/01/2016
Delivery Units,Adults and Communities,Capital Construction and Works,10012974,BARNET & SOUTHGATE COLLEGE," 840,448.00 ",13/01/2016
Delivery Units,Adults and Communities,Cleaning and domestic material,60040834,HERTFORDSHIRE SUPPLIES   COUNTY CO, 15.60 ,28/01/2016
Delivery Units,Adults and Communities,Consultants Fees,60040399,FOCUS CONSULTANTS 2010 LLP, 450.00 ,12/01/2016
Delivery Units,Adults and Communities,Consultants Fees,60043372,VOICEABILITY," 1,932.00 ",27/01/2016
Delivery Units,Adults and Communities,Contract Cleaning,60023237,CHURCHILL CONTRACT SERVICES, 381.08 ,14/01/2016
Delivery Units,Adults and Communities,Contract Cleaning,60036836,CHURCHILL CONTRACT SERVICES, 377.81 ,13/01/2016
Delivery Units,Adults and Communities,Contract Cleaning,60036914,CHURCHILL CONTRACT SERVICES, 391.37 ,13/01/2016
Delivery Units,Adults and Communities,CSG  - SPIRR/SPRR,60038741,MURPHY SURVEYS LIMITED," 38,685.00 ",12/01/2016
Delivery Units,Adults and Communities,Employee Expenses,60042133,BARNET ENFIELD & HARINGEY MENTAL," 51,174.00 ",08/01/2016
Delivery Units,Adults and Communities,Employee Expenses,60042151,BARNET ENFIELD & HARINGEY MENTAL," 51,174.00 ",08/01/2016
Delivery Units,Adults and Communities,Employee Expenses,60042152,BARNET ENFIELD & HARINGEY MENTAL," 51,174.00 ",08/01/2016
Delivery Units,Adults and Communities,Equipment and Materials Purcha,60042768,MEDEQUIP ASSISTIVE TECHNOLOGY LTD, 869.40 ,13/01/2016
Delivery Units,Adults and Communities,Equipment and Materials Purcha,60042802,MEDEQUIP ASSISTIVE TECHNOLOGY LTD," 1,074.68 ",13/01/2016
Delivery Units,Adults and Communities,Equipment and Materials Purcha,60042826,MEDEQUIP ASSISTIVE TECHNOLOGY LTD, 761.40 ,13/01/2016
Delivery Units,Adults and Communities,Equipment and Materials Purcha,60042847,MEDEQUIP ASSISTIVE TECHNOLOGY LTD," 2,007.21 ",13/01/2016
Delivery Units,Adults and Communities,Equipment and Materials Purcha,60042864,MEDEQUIP ASSISTIVE TECHNOLOGY LTD," 202,734.42 ",13/01/2016
Delivery Units,Adults and Communities,Equipment and Materials Purcha,60042871,MEDEQUIP ASSISTIVE TECHNOLOGY LTD," 220,510.63 ",13/01/2016
Delivery Units,Adults and Communities,Equipment and Materials Purcha,60043426,MEDEQUIP ASSISTIVE TECHNOLOGY LTD, 960.26 ,18/01/2016
Delivery Units,Adults and Communities,Equipment and Materials Purcha,40001316,OFFICE DEPOT UK LTD, 39.08 ,07/01/2016
Delivery Units,Adults and Communities,Equipment and Materials Purcha,60041416,REDLAND HEALTHCARE LTD, 556.18 ,05/01/2016
Delivery Units,Adults and Communities,Food Costs,60041688,DAIRY CREST LIMITED, 2.88 ,08/01/2016
Delivery Units,Adults and Communities,Food Costs,60042505,DAIRY CREST LIMITED, 2.88 ,15/01/2016
Delivery Units,Adults and Communities,Food Costs,60042570,DAIRY CREST LIMITED, 2.88 ,22/01/2016
Delivery Units,Adults and Communities,Furniture-Purchase-Repair,60037707,NORTH LONDON LOCKSMITHS LTD, 75.00 ,19/01/2016
Delivery Units,Adults and Communities,Furniture-Purchase-Repair,60038667,NORTH LONDON LOCKSMITHS LTD, 75.00 ,05/01/2016
Delivery Units,Adults and Communities,Furniture-Purchase-Repair,60042050,NORTH LONDON LOCKSMITHS LTD, 75.00 ,06/01/2016
Delivery Units,Adults and Communities,Furniture-Purchase-Repair,60035551,REDACTED - PERSONAL DATA, 100.00 ,22/01/2016
Delivery Units,Adults and Communities,Gas,60034780,BRITISH GAS TRADING LIMITED, 187.47 ,28/01/2016
Delivery Units,Adults and Communities,Grant Payments,20027530,AMWELL CONSTRUCTION LTD, 585.56 ,11/01/2016
Delivery Units,Adults and Communities,Grant Payments,20027533,AMWELL CONSTRUCTION LTD, 226.80 ,11/01/2016
Delivery Units,Adults and Communities,Health authorities - Third Par,10012987,NHS BARNET CCG," 117,050.00 ",18/01/2016
Delivery Units,Adults and Communities,Health authorities - Third Par,10012988,NHS BARNET CCG," 567,609.00 ",18/01/2016
Delivery Units,Adults and Communities,Health authorities - Third Par,10012989,NHS BARNET CCG," 298,650.00 ",18/01/2016
Delivery Units,Adults and Communities,Health authorities - Third Par,10012990,NHS BARNET CCG," 254,278.00 ",18/01/2016
Delivery Units,Adults and Communities,Health authorities - Third Par,10012991,NHS BARNET CCG," 96,350.00 ",18/01/2016
Delivery Units,Adults and Communities,Health authorities - Third Par,10012992,NHS BARNET CCG," 60,138.00 ",18/01/2016
Delivery Units,Adults and Communities,Health authorities - Third Par,10012993,NHS BARNET CCG," 20,000.00 ",18/01/2016
Delivery Units,Adults and Communities,Other Agencies - Third Party P,30106116,AARON COURT CARE HOME," 2,216.41 ",11/01/2016
Delivery Units,Adults and Communities,Other Agencies - Third Party P,30106083,ABBEY RAVENSCROFT PARK NURSING HOME," 2,655.55 ",11/01/2016
Delivery Units,Adults and Communities,Other Agencies - Third Party P,30106085,ABBEY RAVENSCROFT PARK NURSING HOME," 2,657.14 ",11/01/2016
Delivery Units,Adults and Communities,Other Agencies - Third Party P,30106086,ABBEY RAVENSCROFT PARK NURSING HOME," 2,397.72 ",11/01/2016
Delivery Units,Adults and Communities,Other Agencies - Third Party P,30106087,ABBEY RAVENSCROFT PARK NURSING HOME," 2,655.55 ",11/01/2016
Delivery Units,Adults and Communities,Other Agencies - Third Party P,30106088,ABBEY RAVENSCROFT PARK NURSING HOME," 2,655.55 ",11/01/2016
Delivery Units,Adults and Communities,Other Agencies - Third Party P,30106089,ABBEY RAVENSCROFT PARK NURSING HOME," 2,655.55 ",11/01/2016
Delivery Units,Adults and Communities,Other Agencies - Third Party P,30106093,ABBEY RAVENSCROFT PARK NURSING HOME," 2,655.55 ",11/01/2016
Delivery Units,Adults and Communities,Other Agencies - Third Party P,30106094,ABBEY RAVENSCROFT PARK NURSING HOME," 2,655.55 ",11/01/2016
Delivery Units,Adults and Communities,Other Agencies - Third Party P,30106096,ABBEY RAVENSCROFT PARK NURSING HOME," 3,100.00 ",11/01/2016
Delivery Units,Adults and Communities,Other Agencies - Third Party P,30106098,ABBEY RAVENSCROFT PARK NURSING HOME," 3,100.00 ",11/01/2016
Delivery Units,Adults and Communities,Other Agencies - Third Party P,30106101,ABBEY RAVENSCROFT PARK NURSING HOME," 3,100.00 ",11/01/2016
Delivery Units,Adults and Communities,Other Agencies - Third Party P,30106104,ABBEY RAVENSCROFT PARK NURSING HOME," 2,448.78 ",11/01/2016
Delivery Units,Adults and Communities,Other Agencies - Third Party P,30106108,ABBEY RAVENSCROFT PARK NURSING HOME," 2,397.72 ",11/01/2016
Delivery Units,Adults and Communities,Other Agencies - Third Party P,30106942,ABBEY RAVENSCROFT PARK NURSING HOME," 2,655.55 ",18/01/2016
Delivery Units,Adults and Communities,Other Agencies - Third Party P,30107800,ABBEY RAVENSCROFT PARK NURSING HOME," 2,655.55 ",22/01/2016
Delivery Units,Adults and Communities,Other Agencies - Third Party P,30107801,ABBEY RAVENSCROFT PARK NURSING HOME," 2,654.88 ",22/01/2016
Delivery Units,Adults and Communities,Other Agencies - Third Party P,30105707,ABOUT ME CARE & SUPPORT LTD," 1,365.84 ",06/01/2016
Delivery Units,Adults and Communities,Other Agencies - Third Party P,30108431,ABOUT ME CARE & SUPPORT LTD," 1,365.84 ",25/01/2016
Delivery Units,Adults and Communities,Other Agencies - Third Party P,30105606,ACCEDO CARE LTD," 8,960.00 ",06/01/2016
Delivery Units,Adults and Communities,Other Agencies - Third Party P,30105607,ACCEDO CARE LTD," 4,360.00 ",06/01/2016
Delivery Units,Adults and Communities,Other Agencies - Third Party P,30105608,ACCEDO CARE LTD," 5,600.00 ",06/01/2016
Delivery Units,Adults and Communities,Other Agencies - Third Party P,30105609,ACCEDO CARE LTD, 350.00 ,06/01/2016
Delivery Units,Adults and Communities,Other Agencies - Third Party P,30108036,ACCEDO CARE LTD," 1,120.00 ",25/01/2016
Delivery Units,Adults and Communities,Other Agencies - Third Party P,30106518,ADDICTION RECOVERY CENTRE," 2,320.00 ",18/01/2016
Delivery Units,Adults and Communities,Other Agencies - Third Party P,30107540,ADDICTION RECOVERY CENTRE," 1,491.43 ",21/01/2016
Delivery Units,Adults and Communities,Other Agencies - Third Party P,30108450,ADDICTION RECOVERY CENTRE, 37.00 ,25/01/2016
Delivery Units,Adults and Communities,Other Agencies - Third Party P,30104062,ADVANTAGE HEALTHCARE GROUP LTD," 1,578.50 ",06/01/2016
Delivery Units,Adults and Communities,Other Agencies - Third Party P,30104063,ADVANTAGE HEALTHCARE GROUP LTD," 1,451.19 ",06/01/2016
Delivery Units,Adults and Communities,Other Agencies - Third Party P,30104064,ADVANTAGE HEALTHCARE GROUP LTD," 1,338.49 ",06/01/2016
Delivery Units,Adults and Communities,Other Agencies - Third Party P,30104065,ADVANTAGE HEALTHCARE GROUP LTD," 1,417.69 ",06/01/2016
Delivery Units,Adults and Communities,Other Agencies - Third Party P,30104066,ADVANTAGE HEALTHCARE GROUP LTD," 1,358.58 ",06/01/2016
Delivery Units,Adults and Communities,Other Agencies - Third Party P,30104067,ADVANTAGE HEALTHCARE GROUP LTD," 1,634.75 ",06/01/2016
Delivery Units,Adults and Communities,Other Agencies - Third Party P,30104283,ADVANTAGE HEALTHCARE GROUP LTD," 1,547.00 ",07/01/2016
Delivery Units,Adults and Communities,Other Agencies - Third Party P,30104284,ADVANTAGE HEALTHCARE GROUP LTD," 1,329.94 ",07/01/2016
Delivery Units,Adults and Communities,Other Agencies - Third Party P,30104285,ADVANTAGE HEALTHCARE GROUP LTD," 1,112.88 ",07/01/2016
Delivery Units,Adults and Communities,Other Agencies - Third Party P,30104286,ADVANTAGE HEALTHCARE GROUP LTD, 609.62 ,07/01/2016
Delivery Units,Adults and Communities,Other Agencies - Third Party P,30104287,ADVANTAGE HEALTHCARE GROUP LTD," 1,459.25 ",07/01/2016
Delivery Units,Adults and Communities,Other Agencies - Third Party P,30104288,ADVANTAGE HEALTHCARE GROUP LTD," 1,547.00 ",07/01/2016
Delivery Units,Adults and Communities,Other Agencies - Third Party P,30104289,ADVANTAGE HEALTHCARE GROUP LTD," 1,547.00 ",07/01/2016
Delivery Units,Adults and Communities,Other Agencies - Third Party P,30104290,ADVANTAGE HEALTHCARE GROUP LTD," 1,459.25 ",07/01/2016
Delivery Units,Adults and Communities,Other Agencies - Third Party P,30104291,ADVANTAGE HEALTHCARE GROUP LTD, 720.32 ,07/01/2016
Delivery Units,Adults and Communities,Other Agencies - Third Party P,30104292,ADVANTAGE HEALTHCARE GROUP LTD, 720.32 ,07/01/2016
Delivery Units,Adults and Communities,Other Agencies - Third Party P,30104293,ADVANTAGE HEALTHCARE GROUP LTD," 1,322.23 ",07/01/2016
Delivery Units,Adults and Communities,Other Agencies - Third Party P,30104294,ADVANTAGE HEALTHCARE GROUP LTD," 1,593.19 ",07/01/2016
Delivery Units,Adults and Communities,Other Agencies - Third Party P,30106705,AGUDAS ISRAEL HOUSING ASSCTN LTD," 3,154.25 ",18/01/2016
Delivery Units,Adults and Communities,Other Agencies - Third Party P,30106706,AGUDAS ISRAEL HOUSING ASSCTN LTD," 2,527.83 ",18/01/2016
Delivery Units,Adults and Communities,Other Agencies - Third Party P,30105969,ALDWYCK HOUSING GROUP, 500.48 ,11/01/2016
Delivery Units,Adults and Communities,Other Agencies - Third Party P,30107555,ALDWYCK HOUSING GROUP," 2,645.39 ",22/01/2016
Delivery Units,Adults and Communities,Other Agencies - Third Party P,30106048,ANASTASIA LODGE," 3,000.00 ",11/01/2016
Delivery Units,Adults and Communities,Other Agencies - Third Party P,30106965,ANCASTER COURT NURSING HOME, 829.26 ,18/01/2016
Delivery Units,Adults and Communities,Other Agencies - Third Party P,30106931,ANCHOR TRUST," 2,232.64 ",18/01/2016
Delivery Units,Adults and Communities,Other Agencies - Third Party P,30107799,ANCHOR TRUST," 2,232.64 ",22/01/2016
Delivery Units,Adults and Communities,Other Agencies - Third Party P,30106286,AREA 51 EDUCATION LTD, 395.00 ,12/01/2016
Delivery Units,Adults and Communities,Other Agencies - Third Party P,30106287,AREA 51 EDUCATION LTD, 632.00 ,12/01/2016
Delivery Units,Adults and Communities,Other Agencies - Third Party P,30106288,AREA 51 EDUCATION LTD," 1,580.00 ",12/01/2016
Delivery Units,Adults and Communities,Other Agencies - Third Party P,30106289,AREA 51 EDUCATION LTD, 948.00 ,12/01/2016
Delivery Units,Adults and Communities,Other Agencies - Third Party P,30106290,AREA 51 EDUCATION LTD, 474.00 ,12/01/2016
Delivery Units,Adults and Communities,Other Agencies - Third Party P,30106291,AREA 51 EDUCATION LTD," 1,185.00 ",12/01/2016
Delivery Units,Adults and Communities,Other Agencies - Third Party P,30106292,AREA 51 EDUCATION LTD, 711.00 ,12/01/2016
Delivery Units,Adults and Communities,Other Agencies - Third Party P,20027639,ASHFIELDS RESIDENTIAL CARE HOME," 2,448.78 ",13/01/2016
Delivery Units,Adults and Communities,Other Agencies - Third Party P,30106151,ASHTON LODGE CARE CENTRE," 2,397.72 ",11/01/2016
Delivery Units,Adults and Communities,Other Agencies - Third Party P,30106152,ASHTON LODGE CARE CENTRE," 2,657.14 ",11/01/2016
Delivery Units,Adults and Communities,Other Agencies - Third Party P,30106162,ASHTON LODGE CARE CENTRE," 2,448.78 ",11/01/2016
Delivery Units,Adults and Communities,Other Agencies - Third Party P,30106255,ASHTON LODGE CARE CENTRE," 2,448.78 ",11/01/2016
Delivery Units,Adults and Communities,Other Agencies - Third Party P,30106266,ASHTON LODGE CARE CENTRE," 2,397.72 ",11/01/2016
Delivery Units,Adults and Communities,Other Agencies - Third Party P,30106270,ASHTON LODGE CARE CENTRE," 2,655.55 ",11/01/2016
Delivery Units,Adults and Communities,Other Agencies - Third Party P,30107058,ASHTON LODGE CARE CENTRE," 2,448.78 ",18/01/2016
Delivery Units,Adults and Communities,Other Agencies - Third Party P,30107652,ASHTON LODGE CARE CENTRE," 2,448.78 ",22/01/2016
Delivery Units,Adults and Communities,Other Agencies - Third Party P,30105756,ASPEN VILLAGES LTD," 2,216.41 ",06/01/2016
Delivery Units,Adults and Communities,Other Agencies - Third Party P,30105757,ASPEN VILLAGES LTD," 4,871.43 ",06/01/2016
Delivery Units,Adults and Communities,Other Agencies - Third Party P,30105758,ASPEN VILLAGES LTD," 3,321.43 ",06/01/2016
Delivery Units,Adults and Communities,Other Agencies - Third Party P,30105760,ASPEN VILLAGES LTD," 3,542.86 ",06/01/2016
Delivery Units,Adults and Communities,Other Agencies - Third Party P,30105761,ASPEN VILLAGES LTD," 4,871.43 ",06/01/2016
Delivery Units,Adults and Communities,Other Agencies - Third Party P,30107617,ASPEN VILLAGES LTD," 3,764.29 ",22/01/2016
Delivery Units,Adults and Communities,Other Agencies - Third Party P,30108445,ASPEN VILLAGES LTD,-746.33 ,27/01/2016
Delivery Units,Adults and Communities,Other Agencies - Third Party P,30108598,ASPEN VILLAGES LTD," 3,457.14 ",27/01/2016
Delivery Units,Adults and Communities,Other Agencies - Third Party P,30108599,ASPEN VILLAGES LTD," 4,871.43 ",27/01/2016
Delivery Units,Adults and Communities,Other Agencies - Third Party P,30108601,ASPEN VILLAGES LTD," 4,714.29 ",27/01/2016
Delivery Units,Adults and Communities,Other Agencies - Third Party P,30108603,ASPEN VILLAGES LTD," 5,978.57 ",27/01/2016
Delivery Units,Adults and Communities,Other Agencies - Third Party P,30108604,ASPEN VILLAGES LTD," 2,035.71 ",27/01/2016
Delivery Units,Adults and Communities,Other Agencies - Third Party P,30108872,ASPEN VILLAGES LTD, 643.47 ,28/01/2016
Delivery Units,Adults and Communities,Other Agencies - Third Party P,30108873,ASPEN VILLAGES LTD," 2,444.04 ",28/01/2016
Delivery Units,Adults and Communities,Other Agencies - Third Party P,30108874,ASPEN VILLAGES LTD," 2,914.04 ",28/01/2016
Delivery Units,Adults and Communities,Other Agencies - Third Party P,30108875,ASPEN VILLAGES LTD," 4,207.14 ",28/01/2016
Delivery Units,Adults and Communities,Other Agencies - Third Party P,30108876,ASPEN VILLAGES LTD," 2,914.04 ",28/01/2016
Delivery Units,Adults and Communities,Other Agencies - Third Party P,30108878,ASPEN VILLAGES LTD, 500.48 ,28/01/2016
Delivery Units,Adults and Communities,Other Agencies - Third Party P,30108879,ASPEN VILLAGES LTD, 523.63 ,28/01/2016
Delivery Units,Adults and Communities,Other Agencies - Third Party P,30108880,ASPEN VILLAGES LTD,"-8,272.12 ",28/01/2016
Delivery Units,Adults and Communities,Other Agencies - Third Party P,30108881,ASPEN VILLAGES LTD," 6,864.13 ",28/01/2016
Delivery Units,Adults and Communities,Other Agencies - Third Party P,30106067,AUTUMN GARDENS," 2,184.04 ",11/01/2016
Delivery Units,Adults and Communities,Other Agencies - Third Party P,30106068,AUTUMN GARDENS," 2,880.00 ",11/01/2016
Delivery Units,Adults and Communities,Other Agencies - Third Party P,30106130,B & M CARE," 1,500.00 ",11/01/2016
Delivery Units,Adults and Communities,Other Agencies - Third Party P,30107619,B & M CARE," 1,248.02 ",22/01/2016
Delivery Units,Adults and Communities,Other Agencies - Third Party P,30108608,B & M CARE," 2,448.78 ",27/01/2016
Delivery Units,Adults and Communities,Other Agencies - Third Party P,30108871,B & M CARE,-631.94 ,28/01/2016
Delivery Units,Adults and Communities,Other Agencies - Third Party P,30108883,B & M CARE," 2,811.43 ",28/01/2016
Delivery Units,Adults and Communities,Other Agencies - Third Party P,30108884,B & M CARE," 2,494.40 ",28/01/2016
Delivery Units,Adults and Communities,Other Agencies - Third Party P,30106007,BARNET EXECUTIVE CAR SERVICE, 480.00 ,11/01/2016
Delivery Units,Adults and Communities,Other Agencies - Third Party P,30106008,BARNET EXECUTIVE CAR SERVICE, 456.00 ,11/01/2016
Delivery Units,Adults and Communities,Other Agencies - Third Party P,30106009,BARNET EXECUTIVE CAR SERVICE, 480.00 ,11/01/2016
Delivery Units,Adults and Communities,Other Agencies - Third Party P,30106010,BARNET EXECUTIVE CAR SERVICE, 480.00 ,11/01/2016
Delivery Units,Adults and Communities,Other Agencies - Third Party P,30106011,BARNET EXECUTIVE CAR SERVICE, 480.00 ,11/01/2016
Delivery Units,Adults and Communities,Other Agencies - Third Party P,30106012,BARNET EXECUTIVE CAR SERVICE, 456.00 ,11/01/2016
Delivery Units,Adults and Communities,Other Agencies - Third Party P,30106013,BARNET EXECUTIVE CAR SERVICE, 400.00 ,11/01/2016
Delivery Units,Adults and Communities,Other Agencies - Third Party P,30106014,BARNET EXECUTIVE CAR SERVICE, 400.00 ,11/01/2016
Delivery Units,Adults and Communities,Other Agencies - Third Party P,30106015,BARNET EXECUTIVE CAR SERVICE, 400.00 ,11/01/2016
Delivery Units,Adults and Communities,Other Agencies - Third Party P,30106016,BARNET EXECUTIVE CAR SERVICE, 400.00 ,11/01/2016
Delivery Units,Adults and Communities,Other Agencies - Third Party P,30106017,BARNET EXECUTIVE CAR SERVICE, 400.00 ,11/01/2016
Delivery Units,Adults and Communities,Other Agencies - Third Party P,30106018,BARNET EXECUTIVE CAR SERVICE, 480.00 ,11/01/2016
Delivery Units,Adults and Communities,Other Agencies - Third Party P,30106019,BARNET EXECUTIVE CAR SERVICE, 480.00 ,11/01/2016
Delivery Units,Adults and Communities,Other Agencies - Third Party P,30106020,BARNET EXECUTIVE CAR SERVICE, 480.00 ,11/01/2016
Delivery Units,Adults and Communities,Other Agencies - Third Party P,30106021,BARNET EXECUTIVE CAR SERVICE, 480.00 ,11/01/2016
Delivery Units,Adults and Communities,Other Agencies - Third Party P,30106022,BARNET EXECUTIVE CAR SERVICE, 480.00 ,11/01/2016
Delivery Units,Adults and Communities,Other Agencies - Third Party P,30108009,BARNET HOMES LIMITED," 1,097.61 ",25/01/2016
Delivery Units,Adults and Communities,Other Agencies - Third Party P,30105674,BAYTREE COMMUNITY CARE (LONDON) LTD," 3,538.37 ",06/01/2016
Delivery Units,Adults and Communities,Other Agencies - Third Party P,30105706,BLUEBIRD CARE (BARNET)," 2,828.00 ",06/01/2016
Delivery Units,Adults and Communities,Other Agencies - Third Party P,30107528,BLUEBIRD CARE (BARNET)," 2,828.00 ",21/01/2016
Delivery Units,Adults and Communities,Other Agencies - Third Party P,30105959,BROOKDALE HEALTHCARE," 3,759.36 ",11/01/2016
Delivery Units,Adults and Communities,Other Agencies - Third Party P,30105766,BRUNSWICK SUPPORTED LIVING SERVICES," 1,412.68 ",06/01/2016
Delivery Units,Adults and Communities,Other Agencies - Third Party P,30105768,BRUNSWICK SUPPORTED LIVING SERVICES," 1,942.84 ",06/01/2016
Delivery Units,Adults and Communities,Other Agencies - Third Party P,30105778,BRUNSWICK SUPPORTED LIVING SERVICES," 2,153.92 ",06/01/2016
Delivery Units,Adults and Communities,Other Agencies - Third Party P,30107311,BRUNSWICK SUPPORTED LIVING SERVICES," 1,412.68 ",20/01/2016
Delivery Units,Adults and Communities,Other Agencies - Third Party P,30107312,BRUNSWICK SUPPORTED LIVING SERVICES," 1,942.84 ",20/01/2016
Delivery Units,Adults and Communities,Other Agencies - Third Party P,30107315,BRUNSWICK SUPPORTED LIVING SERVICES," 2,153.92 ",20/01/2016
Delivery Units,Adults and Communities,Other Agencies - Third Party P,30105875,BUPA CARE HOMES, 448.83 ,06/01/2016
Delivery Units,Adults and Communities,Other Agencies - Third Party P,30105876,BUPA CARE HOMES," 1,196.87 ",06/01/2016
Delivery Units,Adults and Communities,Other Agencies - Third Party P,30106133,BUPA CARE HOMES," 2,216.41 ",11/01/2016
Delivery Units,Adults and Communities,Other Agencies - Third Party P,30106134,BUPA CARE HOMES," 2,570.70 ",11/01/2016
Delivery Units,Adults and Communities,Other Agencies - Third Party P,30106135,BUPA CARE HOMES," 2,612.86 ",11/01/2016
Delivery Units,Adults and Communities,Other Agencies - Third Party P,30106137,BUPA CARE HOMES," 7,750.00 ",11/01/2016
Delivery Units,Adults and Communities,Other Agencies - Third Party P,30106138,BUPA CARE HOMES," 3,258.81 ",11/01/2016
Delivery Units,Adults and Communities,Other Agencies - Third Party P,30106139,BUPA CARE HOMES," 3,321.43 ",11/01/2016
Delivery Units,Adults and Communities,Other Agencies - Third Party P,30106140,BUPA CARE HOMES," 3,321.43 ",11/01/2016
Delivery Units,Adults and Communities,Other Agencies - Third Party P,30106141,BUPA CARE HOMES," 2,184.04 ",11/01/2016
Delivery Units,Adults and Communities,Other Agencies - Third Party P,30106257,BUPA CARE HOMES," 2,314.02 ",08/01/2016
Delivery Units,Adults and Communities,Other Agencies - Third Party P,30106258,BUPA CARE HOMES," 2,314.02 ",08/01/2016
Delivery Units,Adults and Communities,Other Agencies - Third Party P,30106259,BUPA CARE HOMES," 2,570.70 ",08/01/2016
Delivery Units,Adults and Communities,Other Agencies - Third Party P,30106989,BUPA CARE HOMES," 1,778.95 ",18/01/2016
Delivery Units,Adults and Communities,Other Agencies - Third Party P,30106990,BUPA CARE HOMES," 1,668.95 ",18/01/2016
Delivery Units,Adults and Communities,Other Agencies - Third Party P,30107060,BUPA CARE HOMES, 776.73 ,18/01/2016
Delivery Units,Adults and Communities,Other Agencies - Third Party P,30107061,BUPA CARE HOMES," 2,570.70 ",18/01/2016
Delivery Units,Adults and Communities,Other Agencies - Third Party P,30107062,BUPA CARE HOMES," 2,407.86 ",18/01/2016
Delivery Units,Adults and Communities,Other Agencies - Third Party P,30107063,BUPA CARE HOMES," 4,842.64 ",15/01/2016
Delivery Units,Adults and Communities,Other Agencies - Third Party P,30107613,BUPA CARE HOMES," 1,824.37 ",22/01/2016
Delivery Units,Adults and Communities,Other Agencies - Third Party P,30107614,BUPA CARE HOMES, 312.01 ,22/01/2016
Delivery Units,Adults and Communities,Other Agencies - Third Party P,30107615,BUPA CARE HOMES,-78.00 ,22/01/2016
Delivery Units,Adults and Communities,Other Agencies - Third Party P,30107616,BUPA CARE HOMES,-702.01 ,22/01/2016
Delivery Units,Adults and Communities,Other Agencies - Third Party P,30107620,BUPA CARE HOMES," 2,487.77 ",22/01/2016
Delivery Units,Adults and Communities,Other Agencies - Third Party P,30107623,BUPA CARE HOMES," 2,318.93 ",22/01/2016
Delivery Units,Adults and Communities,Other Agencies - Third Party P,30107624,BUPA CARE HOMES," 2,318.93 ",22/01/2016
Delivery Units,Adults and Communities,Other Agencies - Third Party P,30107625,BUPA CARE HOMES," 2,878.57 ",22/01/2016
Delivery Units,Adults and Communities,Other Agencies - Third Party P,30107626,BUPA CARE HOMES, 714.28 ,22/01/2016
Delivery Units,Adults and Communities,Other Agencies - Third Party P,30107627,BUPA CARE HOMES, 714.29 ,22/01/2016
Delivery Units,Adults and Communities,Other Agencies - Third Party P,30107628,BUPA CARE HOMES," 2,924.05 ",22/01/2016
Delivery Units,Adults and Communities,Other Agencies - Third Party P,30107629,BUPA CARE HOMES," 2,302.06 ",22/01/2016
Delivery Units,Adults and Communities,Other Agencies - Third Party P,30107630,BUPA CARE HOMES," 2,318.93 ",22/01/2016
Delivery Units,Adults and Communities,Other Agencies - Third Party P,30108885,BUPA CARE HOMES," 2,244.13 ",28/01/2016
Delivery Units,Adults and Communities,Other Agencies - Third Party P,30108886,BUPA CARE HOMES," 3,321.43 ",28/01/2016
Delivery Units,Adults and Communities,Other Agencies - Third Party P,30109059,BUPA CARE HOMES," 1,421.28 ",29/01/2016
Delivery Units,Adults and Communities,Other Agencies - Third Party P,30109061,BUPA CARE HOMES," 4,428.57 ",29/01/2016
Delivery Units,Adults and Communities,Other Agencies - Third Party P,30105717,BUPA NURSING HOMES LTD - ARKLEY," 1,409.74 ",06/01/2016
Delivery Units,Adults and Communities,Other Agencies - Third Party P,30105718,BUPA NURSING HOMES LTD - ARKLEY," 2,570.70 ",06/01/2016
Delivery Units,Adults and Communities,Other Agencies - Third Party P,30105719,BUPA NURSING HOMES LTD - ARKLEY," 2,487.77 ",06/01/2016
Delivery Units,Adults and Communities,Other Agencies - Third Party P,30105720,BUPA NURSING HOMES LTD - ARKLEY," 2,570.70 ",06/01/2016
Delivery Units,Adults and Communities,Other Agencies - Third Party P,30107578,BUPA NURSING HOMES LTD - ARKLEY," 1,604.52 ",22/01/2016
Delivery Units,Adults and Communities,Other Agencies - Third Party P,30107579,BUPA NURSING HOMES LTD - ARKLEY," 2,094.52 ",22/01/2016
Delivery Units,Adults and Communities,Other Agencies - Third Party P,30107580,BUPA NURSING HOMES LTD - ARKLEY," 2,094.52 ",22/01/2016
Delivery Units,Adults and Communities,Other Agencies - Third Party P,30107581,BUPA NURSING HOMES LTD - ARKLEY," 2,094.52 ",22/01/2016
Delivery Units,Adults and Communities,Other Agencies - Third Party P,30107582,BUPA NURSING HOMES LTD - ARKLEY, 55.50 ,22/01/2016
Delivery Units,Adults and Communities,Other Agencies - Third Party P,30107583,BUPA NURSING HOMES LTD - ARKLEY," 1,553.92 ",22/01/2016
Delivery Units,Adults and Communities,Other Agencies - Third Party P,30107584,BUPA NURSING HOMES LTD - ARKLEY," 2,094.52 ",22/01/2016
Delivery Units,Adults and Communities,Other Agencies - Third Party P,30107585,BUPA NURSING HOMES LTD - ARKLEY,-256.00 ,22/01/2016
Delivery Units,Adults and Communities,Other Agencies - Third Party P,30107586,BUPA NURSING HOMES LTD - ARKLEY,-448.00 ,22/01/2016
Delivery Units,Adults and Communities,Other Agencies - Third Party P,30107587,BUPA NURSING HOMES LTD - ARKLEY,-448.00 ,22/01/2016
Delivery Units,Adults and Communities,Other Agencies - Third Party P,30107589,BUPA NURSING HOMES LTD - ARKLEY,-448.00 ,22/01/2016
Delivery Units,Adults and Communities,Other Agencies - Third Party P,30107590,BUPA NURSING HOMES LTD - ARKLEY,-448.00 ,22/01/2016
Delivery Units,Adults and Communities,Other Agencies - Third Party P,30107591,BUPA NURSING HOMES LTD - ARKLEY,-448.00 ,22/01/2016
Delivery Units,Adults and Communities,Other Agencies - Third Party P,30107592,BUPA NURSING HOMES LTD - ARKLEY,-448.00 ,22/01/2016
Delivery Units,Adults and Communities,Other Agencies - Third Party P,30107593,BUPA NURSING HOMES LTD - ARKLEY,-448.00 ,22/01/2016
Delivery Units,Adults and Communities,Other Agencies - Third Party P,30107594,BUPA NURSING HOMES LTD - ARKLEY,-448.00 ,22/01/2016
Delivery Units,Adults and Communities,Other Agencies - Third Party P,30107595,BUPA NURSING HOMES LTD - ARKLEY,-448.00 ,22/01/2016
Delivery Units,Adults and Communities,Other Agencies - Third Party P,30107597,BUPA NURSING HOMES LTD - ARKLEY,-448.00 ,22/01/2016
Delivery Units,Adults and Communities,Other Agencies - Third Party P,30107598,BUPA NURSING HOMES LTD - ARKLEY,-448.00 ,22/01/2016
Delivery Units,Adults and Communities,Other Agencies - Third Party P,30107806,BUPA NURSING HOMES LTD - ARKLEY,-448.00 ,22/01/2016
Delivery Units,Adults and Communities,Other Agencies - Third Party P,30106279,CAMBIAN BEECHES," 13,164.46 ",11/01/2016
Delivery Units,Adults and Communities,Other Agencies - Third Party P,30106059,CAMPHILL DEVON COMMUNITY LIMITED," 4,508.00 ",11/01/2016
Delivery Units,Adults and Communities,Other Agencies - Third Party P,30105642,CANDLE COURT NURSING HOME," 4,375.43 ",06/01/2016
Delivery Units,Adults and Communities,Other Agencies - Third Party P,30105643,CANDLE COURT NURSING HOME," 2,655.55 ",06/01/2016
Delivery Units,Adults and Communities,Other Agencies - Third Party P,30105644,CANDLE COURT NURSING HOME," 2,655.55 ",06/01/2016
Delivery Units,Adults and Communities,Other Agencies - Third Party P,30105645,CANDLE COURT NURSING HOME," 3,764.29 ",06/01/2016
Delivery Units,Adults and Communities,Other Agencies - Third Party P,30108848,CANDLE COURT NURSING HOME," 1,088.44 ",28/01/2016
Delivery Units,Adults and Communities,Other Agencies - Third Party P,30106131,CARE ASSIST LIMITED," 4,207.14 ",11/01/2016
Delivery Units,Adults and Communities,Other Agencies - Third Party P,30106132,CARE ASSIST LIMITED," 4,207.14 ",11/01/2016
Delivery Units,Adults and Communities,Other Agencies - Third Party P,20027850,CARE UK COMMUNITY PARTNERSHIPS," 11,400.00 ",20/01/2016
Delivery Units,Adults and Communities,Other Agencies - Third Party P,30106122,CARE UK COMMUNITY PARTNERSHIPS," 2,867.46 ",11/01/2016
Delivery Units,Adults and Communities,Other Agencies - Third Party P,30106090,CAREBASE BURNT OAK 2006 LIMITED," 2,318.93 ",11/01/2016
Delivery Units,Adults and Communities,Other Agencies - Third Party P,30106092,CAREBASE BURNT OAK 2006 LIMITED," 2,570.70 ",11/01/2016
Delivery Units,Adults and Communities,Other Agencies - Third Party P,30106095,CAREBASE BURNT OAK 2006 LIMITED," 2,570.70 ",11/01/2016
Delivery Units,Adults and Communities,Other Agencies - Third Party P,30106097,CAREBASE BURNT OAK 2006 LIMITED," 2,570.70 ",11/01/2016
Delivery Units,Adults and Communities,Other Agencies - Third Party P,30106099,CAREBASE BURNT OAK 2006 LIMITED," 2,570.70 ",11/01/2016
Delivery Units,Adults and Communities,Other Agencies - Third Party P,30106100,CAREBASE BURNT OAK 2006 LIMITED," 2,570.70 ",11/01/2016
Delivery Units,Adults and Communities,Other Agencies - Third Party P,30106102,CAREBASE BURNT OAK 2006 LIMITED," 3,100.00 ",11/01/2016
Delivery Units,Adults and Communities,Other Agencies - Third Party P,30106103,CAREBASE BURNT OAK 2006 LIMITED," 2,657.14 ",11/01/2016
Delivery Units,Adults and Communities,Other Agencies - Third Party P,30106105,CAREBASE BURNT OAK 2006 LIMITED," 3,100.00 ",11/01/2016
Delivery Units,Adults and Communities,Other Agencies - Third Party P,30106106,CAREBASE BURNT OAK 2006 LIMITED," 2,418.04 ",11/01/2016
Delivery Units,Adults and Communities,Other Agencies - Third Party P,30106107,CAREBASE BURNT OAK 2006 LIMITED," 2,570.70 ",11/01/2016
Delivery Units,Adults and Communities,Other Agencies - Third Party P,30106109,CAREBASE BURNT OAK 2006 LIMITED," 3,542.86 ",11/01/2016
Delivery Units,Adults and Communities,Other Agencies - Third Party P,30107565,CAREBASE BURNT OAK 2006 LIMITED, 507.94 ,22/01/2016
Delivery Units,Adults and Communities,Other Agencies - Third Party P,30106199,CARETECH COMMUNITY SERVICES LTD," 4,628.03 ",11/01/2016
Delivery Units,Adults and Communities,Other Agencies - Third Party P,30106202,CARETECH COMMUNITY SERVICES LTD, 475.27 ,11/01/2016
Delivery Units,Adults and Communities,Other Agencies - Third Party P,30106204,CARETECH COMMUNITY SERVICES LTD, 816.14 ,11/01/2016
Delivery Units,Adults and Communities,Other Agencies - Third Party P,30106205,CARETECH COMMUNITY SERVICES LTD," 4,646.55 ",11/01/2016
Delivery Units,Adults and Communities,Other Agencies - Third Party P,30106207,CARETECH COMMUNITY SERVICES LTD, 722.61 ,11/01/2016
Delivery Units,Adults and Communities,Other Agencies - Third Party P,30106208,CARETECH COMMUNITY SERVICES LTD," 7,621.57 ",11/01/2016
Delivery Units,Adults and Communities,Other Agencies - Third Party P,30106209,CARETECH COMMUNITY SERVICES LTD," 4,628.03 ",11/01/2016
Delivery Units,Adults and Communities,Other Agencies - Third Party P,30106211,CARETECH COMMUNITY SERVICES LTD, 816.14 ,11/01/2016
Delivery Units,Adults and Communities,Other Agencies - Third Party P,30106212,CARETECH COMMUNITY SERVICES LTD," 4,627.86 ",11/01/2016
Delivery Units,Adults and Communities,Other Agencies - Third Party P,30106215,CARETECH COMMUNITY SERVICES LTD," 4,627.86 ",11/01/2016
Delivery Units,Adults and Communities,Other Agencies - Third Party P,30106218,CARETECH COMMUNITY SERVICES LTD," 1,088.14 ",11/01/2016
Delivery Units,Adults and Communities,Other Agencies - Third Party P,30106222,CARETECH COMMUNITY SERVICES LTD," 1,088.14 ",11/01/2016
Delivery Units,Adults and Communities,Other Agencies - Third Party P,30106224,CARETECH COMMUNITY SERVICES LTD," 1,088.14 ",11/01/2016
Delivery Units,Adults and Communities,Other Agencies - Third Party P,30106225,CARETECH COMMUNITY SERVICES LTD," 4,627.86 ",11/01/2016
Delivery Units,Adults and Communities,Other Agencies - Third Party P,30106226,CARETECH COMMUNITY SERVICES LTD," 2,149.94 ",11/01/2016
Delivery Units,Adults and Communities,Other Agencies - Third Party P,30106227,CARETECH COMMUNITY SERVICES LTD," 4,782.86 ",11/01/2016
Delivery Units,Adults and Communities,Other Agencies - Third Party P,30106280,CARETECH COMMUNITY SERVICES LTD," 2,589.74 ",11/01/2016
Delivery Units,Adults and Communities,Other Agencies - Third Party P,30107643,CARETECH COMMUNITY SERVICES LTD, 919.15 ,22/01/2016
Delivery Units,Adults and Communities,Other Agencies - Third Party P,30108454,CARETECH COMMUNITY SERVICES LTD," 4,627.86 ",25/01/2016
Delivery Units,Adults and Communities,Other Agencies - Third Party P,30108455,CARETECH COMMUNITY SERVICES LTD, 919.15 ,25/01/2016
Delivery Units,Adults and Communities,Other Agencies - Third Party P,30105628,CARLTON COURT (TLC GROUP)," 2,397.72 ",06/01/2016
Delivery Units,Adults and Communities,Other Agencies - Third Party P,30105629,CARLTON COURT (TLC GROUP)," 2,655.55 ",06/01/2016
Delivery Units,Adults and Communities,Other Agencies - Third Party P,30105799,CARLTON COURT (TLC GROUP)," 2,320.37 ",06/01/2016
Delivery Units,Adults and Communities,Other Agencies - Third Party P,30106142,CARMEN LODGE RESIDENTIAL HOME," 2,739.47 ",12/01/2016
Delivery Units,Adults and Communities,Other Agencies - Third Party P,30106053,CATHERINE LODGE," 2,184.04 ",11/01/2016
Delivery Units,Adults and Communities,Other Agencies - Third Party P,30106054,CATHERINE LODGE," 2,184.04 ",11/01/2016
Delivery Units,Adults and Communities,Other Agencies - Third Party P,30106658,CATHERINE LODGE," 2,184.04 ",18/01/2016
Delivery Units,Adults and Communities,Other Agencies - Third Party P,30108533,CATHERINE LODGE," 2,184.04 ",27/01/2016
Delivery Units,Adults and Communities,Other Agencies - Third Party P,30108534,CATHERINE LODGE," 2,184.04 ",27/01/2016
Delivery Units,Adults and Communities,Other Agencies - Third Party P,30108991,CATHERINE LODGE," 2,184.04 ",29/01/2016
Delivery Units,Adults and Communities,Other Agencies - Third Party P,30108992,CATHERINE LODGE," 2,184.04 ",29/01/2016
Delivery Units,Adults and Communities,Other Agencies - Third Party P,30108993,CATHERINE LODGE," 2,184.04 ",29/01/2016
Delivery Units,Adults and Communities,Other Agencies - Third Party P,30108994,CATHERINE LODGE," 2,184.04 ",29/01/2016
Delivery Units,Adults and Communities,Other Agencies - Third Party P,30105610,CDR CARE LTD," 1,200.00 ",06/01/2016
Delivery Units,Adults and Communities,Other Agencies - Third Party P,30105611,CDR CARE LTD," 2,000.00 ",06/01/2016
Delivery Units,Adults and Communities,Other Agencies - Third Party P,30105967,CDR CARE LTD, 800.00 ,11/01/2016
Delivery Units,Adults and Communities,Other Agencies - Third Party P,30105968,CDR CARE LTD, 800.00 ,11/01/2016
Delivery Units,Adults and Communities,Other Agencies - Third Party P,30108988,CDR CARE LTD," 1,100.00 ",29/01/2016
Delivery Units,Adults and Communities,Other Agencies - Third Party P,30108989,CDR CARE LTD," 1,500.00 ",29/01/2016
Delivery Units,Adults and Communities,Other Agencies - Third Party P,30105725,CEDARS NURSING HOME," 2,565.78 ",06/01/2016
Delivery Units,Adults and Communities,Other Agencies - Third Party P,30105726,CEDARS NURSING HOME," 2,565.78 ",06/01/2016
Delivery Units,Adults and Communities,Other Agencies - Third Party P,30105727,CEDARS NURSING HOME," 2,353.25 ",06/01/2016
Delivery Units,Adults and Communities,Other Agencies - Third Party P,30105728,CEDARS NURSING HOME," 2,565.81 ",06/01/2016
Delivery Units,Adults and Communities,Other Agencies - Third Party P,30105729,CEDARS NURSING HOME," 2,314.20 ",06/01/2016
Delivery Units,Adults and Communities,Other Agencies - Third Party P,30105730,CEDARS NURSING HOME," 2,565.78 ",06/01/2016
Delivery Units,Adults and Communities,Other Agencies - Third Party P,30105731,CEDARS NURSING HOME," 2,353.25 ",06/01/2016
Delivery Units,Adults and Communities,Other Agencies - Third Party P,30107809,CEDARS NURSING HOME,-496.60 ,28/01/2016
Delivery Units,Adults and Communities,Other Agencies - Third Party P,30108870,CEDARS NURSING HOME," 2,569.89 ",28/01/2016
Delivery Units,Adults and Communities,Other Agencies - Third Party P,30107766,CENTRAL MIDDLESEX SKILLS, 723.68 ,22/01/2016
Delivery Units,Adults and Communities,Other Agencies - Third Party P,30107767,CENTRAL MIDDLESEX SKILLS, 542.76 ,22/01/2016
Delivery Units,Adults and Communities,Other Agencies - Third Party P,30106667,CHATSWORTH CARE," 10,606.43 ",18/01/2016
Delivery Units,Adults and Communities,Other Agencies - Third Party P,30106293,CHEQUERS TRANSPORT LIMITED, 214.72 ,12/01/2016
Delivery Units,Adults and Communities,Other Agencies - Third Party P,30107278,CHEQUERS TRANSPORT LIMITED, 488.80 ,20/01/2016
Delivery Units,Adults and Communities,Other Agencies - Third Party P,30107279,CHEQUERS TRANSPORT LIMITED, 176.00 ,20/01/2016
Delivery Units,Adults and Communities,Other Agencies - Third Party P,30107280,CHEQUERS TRANSPORT LIMITED, 120.00 ,20/01/2016
Delivery Units,Adults and Communities,Other Agencies - Third Party P,30106981,CLARE HOUSE NURSING HOME," 2,094.52 ",18/01/2016
Delivery Units,Adults and Communities,Other Agencies - Third Party P,30105732,CLOVELLY HOUSE RESID. HOME LTD," 2,600.00 ",06/01/2016
Delivery Units,Adults and Communities,Other Agencies - Third Party P,30105735,CLOVELLY HOUSE RESID. HOME LTD," 1,929.15 ",06/01/2016
Delivery Units,Adults and Communities,Other Agencies - Third Party P,30105736,CLOVELLY HOUSE RESID. HOME LTD," 2,239.56 ",06/01/2016
Delivery Units,Adults and Communities,Other Agencies - Third Party P,30105737,CLOVELLY HOUSE RESID. HOME LTD," 6,006.11 ",06/01/2016
Delivery Units,Adults and Communities,Other Agencies - Third Party P,30106980,CLOVELLY HOUSE RESID. HOME LTD," 2,211.80 ",18/01/2016
Delivery Units,Adults and Communities,Other Agencies - Third Party P,30107603,CLOVELLY HOUSE RESID. HOME LTD," 2,600.00 ",22/01/2016
Delivery Units,Adults and Communities,Other Agencies - Third Party P,30107604,CLOVELLY HOUSE RESID. HOME LTD," 2,600.00 ",22/01/2016
Delivery Units,Adults and Communities,Other Agencies - Third Party P,30107605,CLOVELLY HOUSE RESID. HOME LTD," 2,211.80 ",22/01/2016
Delivery Units,Adults and Communities,Other Agencies - Third Party P,30107606,CLOVELLY HOUSE RESID. HOME LTD," 1,900.40 ",22/01/2016
Delivery Units,Adults and Communities,Other Agencies - Third Party P,30107607,CLOVELLY HOUSE RESID. HOME LTD," 2,600.00 ",22/01/2016
Delivery Units,Adults and Communities,Other Agencies - Third Party P,30107608,CLOVELLY HOUSE RESID. HOME LTD," 2,211.80 ",22/01/2016
Delivery Units,Adults and Communities,Other Agencies - Third Party P,30107609,CLOVELLY HOUSE RESID. HOME LTD," 2,211.80 ",22/01/2016
Delivery Units,Adults and Communities,Other Agencies - Third Party P,30102877,CMG HOMES LTD," 4,800.00 ",11/01/2016
Delivery Units,Adults and Communities,Other Agencies - Third Party P,30102878,CMG HOMES LTD, 514.29 ,11/01/2016
Delivery Units,Adults and Communities,Other Agencies - Third Party P,30102879,CMG HOMES LTD,"-16,971.43 ",11/01/2016
Delivery Units,Adults and Communities,Other Agencies - Third Party P,30106043,CMG HOMES LTD," 3,086.84 ",11/01/2016
Delivery Units,Adults and Communities,Other Agencies - Third Party P,30107277,CMG HOMES LTD," 3,086.84 ",20/01/2016
Delivery Units,Adults and Communities,Other Agencies - Third Party P,30106024,COMPLETE CARE SERVICES LTD," 5,426.86 ",11/01/2016
Delivery Units,Adults and Communities,Other Agencies - Third Party P,30106165,CONNIFERS CARE LTD," 8,546.43 ",11/01/2016
Delivery Units,Adults and Communities,Other Agencies - Third Party P,30107288,DABB PAA, 885.06 ,20/01/2016
Delivery Units,Adults and Communities,Other Agencies - Third Party P,30107566,DANA CARE LIMITED," 9,902.29 ",22/01/2016
Delivery Units,Adults and Communities,Other Agencies - Third Party P,30107567,DANA CARE LIMITED," 9,902.29 ",22/01/2016
Delivery Units,Adults and Communities,Other Agencies - Third Party P,30105698,DEVELOPMENT AND LEARNING OPPORTUNIT," 1,053.00 ",06/01/2016
Delivery Units,Adults and Communities,Other Agencies - Third Party P,30105699,DEVELOPMENT AND LEARNING OPPORTUNIT, 908.28 ,06/01/2016
Delivery Units,Adults and Communities,Other Agencies - Third Party P,30105700,DEVELOPMENT AND LEARNING OPPORTUNIT, 652.40 ,06/01/2016
Delivery Units,Adults and Communities,Other Agencies - Third Party P,30105701,DEVELOPMENT AND LEARNING OPPORTUNIT, 306.00 ,06/01/2016
Delivery Units,Adults and Communities,Other Agencies - Third Party P,30105702,DEVELOPMENT AND LEARNING OPPORTUNIT," 1,875.00 ",06/01/2016
Delivery Units,Adults and Communities,Other Agencies - Third Party P,30105703,DEVELOPMENT AND LEARNING OPPORTUNIT, 500.00 ,06/01/2016
Delivery Units,Adults and Communities,Other Agencies - Third Party P,30105704,DEVELOPMENT AND LEARNING OPPORTUNIT," 2,025.00 ",06/01/2016
Delivery Units,Adults and Communities,Other Agencies - Third Party P,30105705,DEVELOPMENT AND LEARNING OPPORTUNIT," 1,056.00 ",06/01/2016
Delivery Units,Adults and Communities,Other Agencies - Third Party P,30108805,DEVELOPMENT AND LEARNING OPPORTUNIT," 1,620.00 ",27/01/2016
Delivery Units,Adults and Communities,Other Agencies - Third Party P,30108806,DEVELOPMENT AND LEARNING OPPORTUNIT, 454.14 ,27/01/2016
Delivery Units,Adults and Communities,Other Agencies - Third Party P,30108807,DEVELOPMENT AND LEARNING OPPORTUNIT, 306.00 ,27/01/2016
Delivery Units,Adults and Communities,Other Agencies - Third Party P,30108808,DEVELOPMENT AND LEARNING OPPORTUNIT," 1,500.00 ",27/01/2016
Delivery Units,Adults and Communities,Other Agencies - Third Party P,30108809,DEVELOPMENT AND LEARNING OPPORTUNIT, 400.00 ,27/01/2016
Delivery Units,Adults and Communities,Other Agencies - Third Party P,30108810,DEVELOPMENT AND LEARNING OPPORTUNIT," 1,056.00 ",27/01/2016
Delivery Units,Adults and Communities,Other Agencies - Third Party P,30105899,DIMENSIONS UK, 149.60 ,08/01/2016
Delivery Units,Adults and Communities,Other Agencies - Third Party P,30105900,DIMENSIONS UK, 224.40 ,08/01/2016
Delivery Units,Adults and Communities,Other Agencies - Third Party P,30105901,DIMENSIONS UK, 149.60 ,08/01/2016
Delivery Units,Adults and Communities,Other Agencies - Third Party P,30105902,DIMENSIONS UK, 224.40 ,08/01/2016
Delivery Units,Adults and Communities,Other Agencies - Third Party P,30105903,DIMENSIONS UK, 149.60 ,08/01/2016
Delivery Units,Adults and Communities,Other Agencies - Third Party P,30105904,DIMENSIONS UK, 149.60 ,08/01/2016
Delivery Units,Adults and Communities,Other Agencies - Third Party P,30105905,DIMENSIONS UK, 74.80 ,08/01/2016
Delivery Units,Adults and Communities,Other Agencies - Third Party P,30105906,DIMENSIONS UK, 74.80 ,08/01/2016
Delivery Units,Adults and Communities,Other Agencies - Third Party P,30105907,DIMENSIONS UK, 74.80 ,08/01/2016
Delivery Units,Adults and Communities,Other Agencies - Third Party P,30105908,DIMENSIONS UK, 149.60 ,08/01/2016
Delivery Units,Adults and Communities,Other Agencies - Third Party P,30105909,DIMENSIONS UK, 149.60 ,08/01/2016
Delivery Units,Adults and Communities,Other Agencies - Third Party P,30105910,DIMENSIONS UK, 149.60 ,08/01/2016
Delivery Units,Adults and Communities,Other Agencies - Third Party P,30105911,DIMENSIONS UK, 149.60 ,08/01/2016
Delivery Units,Adults and Communities,Other Agencies - Third Party P,30105912,DIMENSIONS UK, 74.80 ,08/01/2016
Delivery Units,Adults and Communities,Other Agencies - Third Party P,30105913,DIMENSIONS UK, 74.80 ,08/01/2016
Delivery Units,Adults and Communities,Other Agencies - Third Party P,30105914,DIMENSIONS UK, 523.60 ,08/01/2016
Delivery Units,Adults and Communities,Other Agencies - Third Party P,30105915,DIMENSIONS UK, 299.20 ,08/01/2016
Delivery Units,Adults and Communities,Other Agencies - Third Party P,30105916,DIMENSIONS UK, 224.40 ,08/01/2016
Delivery Units,Adults and Communities,Other Agencies - Third Party P,30105917,DIMENSIONS UK, 299.20 ,08/01/2016
Delivery Units,Adults and Communities,Other Agencies - Third Party P,30105918,DIMENSIONS UK, 149.60 ,08/01/2016
Delivery Units,Adults and Communities,Other Agencies - Third Party P,30105919,DIMENSIONS UK, 448.80 ,08/01/2016
Delivery Units,Adults and Communities,Other Agencies - Third Party P,30105920,DIMENSIONS UK, 149.60 ,08/01/2016
Delivery Units,Adults and Communities,Other Agencies - Third Party P,30105921,DIMENSIONS UK, 112.20 ,08/01/2016
Delivery Units,Adults and Communities,Other Agencies - Third Party P,30105922,DIMENSIONS UK, 149.60 ,08/01/2016
Delivery Units,Adults and Communities,Other Agencies - Third Party P,30105923,DIMENSIONS UK, 149.60 ,08/01/2016
Delivery Units,Adults and Communities,Other Agencies - Third Party P,30105924,DIMENSIONS UK, 149.60 ,08/01/2016
Delivery Units,Adults and Communities,Other Agencies - Third Party P,30106192,DIMENSIONS UK, 224.40 ,11/01/2016
Delivery Units,Adults and Communities,Other Agencies - Third Party P,30106193,DIMENSIONS UK, 149.60 ,11/01/2016
Delivery Units,Adults and Communities,Other Agencies - Third Party P,30106194,DIMENSIONS UK, 149.60 ,11/01/2016
Delivery Units,Adults and Communities,Other Agencies - Third Party P,30106306,DIMENSIONS UK, 224.40 ,12/01/2016
Delivery Units,Adults and Communities,Other Agencies - Third Party P,30106308,DIMENSIONS UK," 2,128.00 ",12/01/2016
Delivery Units,Adults and Communities,Other Agencies - Third Party P,30106313,DIMENSIONS UK," 1,541.00 ",12/01/2016
Delivery Units,Adults and Communities,Other Agencies - Third Party P,30106523,DIMENSIONS UK, 74.80 ,18/01/2016
Delivery Units,Adults and Communities,Other Agencies - Third Party P,30107039,DIMENSIONS UK," 6,025.32 ",18/01/2016
Delivery Units,Adults and Communities,Other Agencies - Third Party P,30107040,DIMENSIONS UK," 4,495.76 ",18/01/2016
Delivery Units,Adults and Communities,Other Agencies - Third Party P,30107041,DIMENSIONS UK," 4,495.76 ",18/01/2016
Delivery Units,Adults and Communities,Other Agencies - Third Party P,30107320,DIMENSIONS UK," 7,950.68 ",20/01/2016
Delivery Units,Adults and Communities,Other Agencies - Third Party P,30107321,DIMENSIONS UK," 1,570.80 ",20/01/2016
Delivery Units,Adults and Communities,Other Agencies - Third Party P,30107322,DIMENSIONS UK," 1,570.80 ",20/01/2016
Delivery Units,Adults and Communities,Other Agencies - Third Party P,30107323,DIMENSIONS UK," 1,570.80 ",20/01/2016
Delivery Units,Adults and Communities,Other Agencies - Third Party P,30107324,DIMENSIONS UK," 1,720.40 ",20/01/2016
Delivery Units,Adults and Communities,Other Agencies - Third Party P,30107325,DIMENSIONS UK," 1,005.13 ",20/01/2016
Delivery Units,Adults and Communities,Other Agencies - Third Party P,30107326,DIMENSIONS UK," 1,092.86 ",20/01/2016
Delivery Units,Adults and Communities,Other Agencies - Third Party P,30107327,DIMENSIONS UK," 3,060.00 ",20/01/2016
Delivery Units,Adults and Communities,Other Agencies - Third Party P,30107820,DIMENSIONS UK, 279.72 ,22/01/2016
Delivery Units,Adults and Communities,Other Agencies - Third Party P,30109066,DIMENSIONS UK, 224.40 ,29/01/2016
Delivery Units,Adults and Communities,Other Agencies - Third Party P,30109067,DIMENSIONS UK, 149.60 ,29/01/2016
Delivery Units,Adults and Communities,Other Agencies - Third Party P,30109068,DIMENSIONS UK, 224.40 ,29/01/2016
Delivery Units,Adults and Communities,Other Agencies - Third Party P,30109069,DIMENSIONS UK, 149.60 ,29/01/2016
Delivery Units,Adults and Communities,Other Agencies - Third Party P,30109070,DIMENSIONS UK, 149.60 ,29/01/2016
Delivery Units,Adults and Communities,Other Agencies - Third Party P,30109071,DIMENSIONS UK, 74.80 ,29/01/2016
Delivery Units,Adults and Communities,Other Agencies - Third Party P,30109072,DIMENSIONS UK, 74.80 ,29/01/2016
Delivery Units,Adults and Communities,Other Agencies - Third Party P,30109073,DIMENSIONS UK, 74.80 ,29/01/2016
Delivery Units,Adults and Communities,Other Agencies - Third Party P,30109074,DIMENSIONS UK, 149.60 ,29/01/2016
Delivery Units,Adults and Communities,Other Agencies - Third Party P,30109075,DIMENSIONS UK, 149.60 ,29/01/2016
Delivery Units,Adults and Communities,Other Agencies - Third Party P,30109076,DIMENSIONS UK, 149.60 ,29/01/2016
Delivery Units,Adults and Communities,Other Agencies - Third Party P,30109077,DIMENSIONS UK, 149.60 ,29/01/2016
Delivery Units,Adults and Communities,Other Agencies - Third Party P,30109078,DIMENSIONS UK, 74.80 ,29/01/2016
Delivery Units,Adults and Communities,Other Agencies - Third Party P,30109079,DIMENSIONS UK, 74.80 ,29/01/2016
Delivery Units,Adults and Communities,Other Agencies - Third Party P,30109080,DIMENSIONS UK, 523.60 ,29/01/2016
Delivery Units,Adults and Communities,Other Agencies - Third Party P,30109081,DIMENSIONS UK, 299.20 ,29/01/2016
Delivery Units,Adults and Communities,Other Agencies - Third Party P,30109082,DIMENSIONS UK, 224.40 ,29/01/2016
Delivery Units,Adults and Communities,Other Agencies - Third Party P,30109083,DIMENSIONS UK, 299.20 ,29/01/2016
Delivery Units,Adults and Communities,Other Agencies - Third Party P,30109084,DIMENSIONS UK, 149.60 ,29/01/2016
Delivery Units,Adults and Communities,Other Agencies - Third Party P,30109085,DIMENSIONS UK, 448.80 ,29/01/2016
Delivery Units,Adults and Communities,Other Agencies - Third Party P,30109086,DIMENSIONS UK, 149.60 ,29/01/2016
Delivery Units,Adults and Communities,Other Agencies - Third Party P,30109087,DIMENSIONS UK, 112.20 ,29/01/2016
Delivery Units,Adults and Communities,Other Agencies - Third Party P,30109088,DIMENSIONS UK, 149.60 ,29/01/2016
Delivery Units,Adults and Communities,Other Agencies - Third Party P,30109089,DIMENSIONS UK, 149.60 ,29/01/2016
Delivery Units,Adults and Communities,Other Agencies - Third Party P,30109090,DIMENSIONS UK, 149.60 ,29/01/2016
Delivery Units,Adults and Communities,Other Agencies - Third Party P,30105802,ELEANOR PALMER TRUST NO 2 A/C., 157.99 ,06/01/2016
Delivery Units,Adults and Communities,Other Agencies - Third Party P,30106673,ELEANOR PALMER TRUST NO 2 A/C.," 1,658.85 ",18/01/2016
Delivery Units,Adults and Communities,Other Agencies - Third Party P,30106050,ELIZA HOUSE," 1,263.89 ",11/01/2016
Delivery Units,Adults and Communities,Other Agencies - Third Party P,30106051,ELIZA HOUSE," 2,369.78 ",11/01/2016
Delivery Units,Adults and Communities,Other Agencies - Third Party P,30106052,ELIZA HOUSE," 2,448.78 ",11/01/2016
Delivery Units,Adults and Communities,Other Agencies - Third Party P,30106055,ELIZA HOUSE," 2,369.79 ",11/01/2016
Delivery Units,Adults and Communities,Other Agencies - Third Party P,30105765,ELIZABETH HOUSE," 2,448.78 ",06/01/2016
Delivery Units,Adults and Communities,Other Agencies - Third Party P,30108887,ELIZABETH HOUSE," 2,448.78 ",28/01/2016
Delivery Units,Adults and Communities,Other Agencies - Third Party P,30106964,ELM PARK LODGE," 3,299.29 ",18/01/2016
Delivery Units,Adults and Communities,Other Agencies - Third Party P,30106979,ELM PARK LODGE," 3,520.71 ",18/01/2016
Delivery Units,Adults and Communities,Other Agencies - Third Party P,30106982,ELM PARK LODGE," 16,720.71 ",18/01/2016
Delivery Units,Adults and Communities,Other Agencies - Third Party P,30106996,ELM PARK LODGE," 3,441.00 ",18/01/2016
Delivery Units,Adults and Communities,Other Agencies - Third Party P,30106997,ELM PARK LODGE," 2,103.31 ",18/01/2016
Delivery Units,Adults and Communities,Other Agencies - Third Party P,30106999,ELM PARK LODGE," 3,432.14 ",18/01/2016
Delivery Units,Adults and Communities,Other Agencies - Third Party P,30107027,ELM PARK LODGE," 3,210.71 ",18/01/2016
Delivery Units,Adults and Communities,Other Agencies - Third Party P,30107031,ELM PARK LODGE," 3,432.14 ",18/01/2016
Delivery Units,Adults and Communities,Other Agencies - Third Party P,30107050,ELM PARK LODGE," 3,455.61 ",18/01/2016
Delivery Units,Adults and Communities,Other Agencies - Third Party P,30107055,ELM PARK LODGE," 15,121.21 ",18/01/2016
Delivery Units,Adults and Communities,Other Agencies - Third Party P,30107056,ELM PARK LODGE," 3,170.86 ",18/01/2016
Delivery Units,Adults and Communities,Other Agencies - Third Party P,30107618,ELM PARK LODGE," 2,325.00 ",22/01/2016
Delivery Units,Adults and Communities,Other Agencies - Third Party P,30107635,ELM PARK LODGE," 21,978.57 ",22/01/2016
Delivery Units,Adults and Communities,Other Agencies - Third Party P,30107808,ELM PARK LODGE," 3,484.80 ",22/01/2016
Delivery Units,Adults and Communities,Other Agencies - Third Party P,30107812,ELM PARK LODGE," 10,380.83 ",22/01/2016
Delivery Units,Adults and Communities,Other Agencies - Third Party P,30107814,ELM PARK LODGE," 2,161.85 ",22/01/2016
Delivery Units,Adults and Communities,Other Agencies - Third Party P,30107612,EMMAUS HOUSE," 2,211.80 ",22/01/2016
Delivery Units,Adults and Communities,Other Agencies - Third Party P,30106302,EVE HERSOV & CO, 131.00 ,12/01/2016
Delivery Units,Adults and Communities,Other Agencies - Third Party P,30106902,FERNBANK NURSING HOME.," 3,854.70 ",18/01/2016
Delivery Units,Adults and Communities,Other Agencies - Third Party P,30106903,FERNBANK NURSING HOME.," 2,397.54 ",18/01/2016
Delivery Units,Adults and Communities,Other Agencies - Third Party P,30106904,FERNBANK NURSING HOME.," 2,397.54 ",18/01/2016
Delivery Units,Adults and Communities,Other Agencies - Third Party P,30106905,FERNBANK NURSING HOME.," 2,397.54 ",18/01/2016
Delivery Units,Adults and Communities,Other Agencies - Third Party P,30106906,FERNBANK NURSING HOME.," 2,397.54 ",18/01/2016
Delivery Units,Adults and Communities,Other Agencies - Third Party P,30106907,FERNBANK NURSING HOME.," 2,397.54 ",18/01/2016
Delivery Units,Adults and Communities,Other Agencies - Third Party P,30106908,FERNBANK NURSING HOME.," 2,397.54 ",18/01/2016
Delivery Units,Adults and Communities,Other Agencies - Third Party P,30106909,FERNBANK NURSING HOME.," 2,397.54 ",18/01/2016
Delivery Units,Adults and Communities,Other Agencies - Third Party P,30106910,FERNBANK NURSING HOME.," 2,655.46 ",18/01/2016
Delivery Units,Adults and Communities,Other Agencies - Third Party P,30106077,FINBOND LIMITED," 2,418.04 ",11/01/2016
Delivery Units,Adults and Communities,Other Agencies - Third Party P,30106078,FINBOND LIMITED," 2,657.14 ",11/01/2016
Delivery Units,Adults and Communities,Other Agencies - Third Party P,30106079,FINBOND LIMITED," 2,216.41 ",11/01/2016
Delivery Units,Adults and Communities,Other Agencies - Third Party P,30106080,FINBOND LIMITED," 2,431.29 ",11/01/2016
Delivery Units,Adults and Communities,Other Agencies - Third Party P,30107641,FLAGSWAN TWO LTD," 2,546.43 ",22/01/2016
Delivery Units,Adults and Communities,Other Agencies - Third Party P,30105723,FOUR SEASONS 2000 LTD," 2,001.92 ",06/01/2016
Delivery Units,Adults and Communities,Other Agencies - Third Party P,30106977,FOUR SEASONS 2000 LTD," 2,001.92 ",18/01/2016
Delivery Units,Adults and Communities,Other Agencies - Third Party P,30106978,FOUR SEASONS 2000 LTD," 2,001.92 ",18/01/2016
Delivery Units,Adults and Communities,Other Agencies - Third Party P,30105772,FOUR SEASONS HEALTH CARE, 682.55 ,06/01/2016
Delivery Units,Adults and Communities,Other Agencies - Third Party P,30107001,FOUR SEASONS HEALTH CARE," 2,443.32 ",18/01/2016
Delivery Units,Adults and Communities,Other Agencies - Third Party P,30107002,FOUR SEASONS HEALTH CARE," 2,085.68 ",18/01/2016
Delivery Units,Adults and Communities,Other Agencies - Third Party P,30107003,FOUR SEASONS HEALTH CARE," 2,085.68 ",18/01/2016
Delivery Units,Adults and Communities,Other Agencies - Third Party P,30107004,FOUR SEASONS HEALTH CARE," 2,123.48 ",18/01/2016
Delivery Units,Adults and Communities,Other Agencies - Third Party P,30107005,FOUR SEASONS HEALTH CARE," 2,123.48 ",18/01/2016
Delivery Units,Adults and Communities,Other Agencies - Third Party P,30107006,FOUR SEASONS HEALTH CARE," 2,313.08 ",18/01/2016
Delivery Units,Adults and Communities,Other Agencies - Third Party P,30107007,FOUR SEASONS HEALTH CARE," 2,085.68 ",18/01/2016
Delivery Units,Adults and Communities,Other Agencies - Third Party P,30107008,FOUR SEASONS HEALTH CARE," 2,321.92 ",18/01/2016
Delivery Units,Adults and Communities,Other Agencies - Third Party P,30107009,FOUR SEASONS HEALTH CARE," 2,313.08 ",18/01/2016
Delivery Units,Adults and Communities,Other Agencies - Third Party P,30107010,FOUR SEASONS HEALTH CARE," 2,090.08 ",18/01/2016
Delivery Units,Adults and Communities,Other Agencies - Third Party P,30107011,FOUR SEASONS HEALTH CARE," 2,321.92 ",18/01/2016
Delivery Units,Adults and Communities,Other Agencies - Third Party P,30107012,FOUR SEASONS HEALTH CARE," 2,321.92 ",18/01/2016
Delivery Units,Adults and Communities,Other Agencies - Third Party P,30107013,FOUR SEASONS HEALTH CARE," 2,090.08 ",18/01/2016
Delivery Units,Adults and Communities,Other Agencies - Third Party P,30107014,FOUR SEASONS HEALTH CARE," 2,090.08 ",18/01/2016
Delivery Units,Adults and Communities,Other Agencies - Third Party P,30107634,FOUR SEASONS HEALTH CARE," 2,443.32 ",22/01/2016
Delivery Units,Adults and Communities,Other Agencies - Third Party P,30107815,FOUR SEASONS HEALTH CARE," 2,090.12 ",22/01/2016
Delivery Units,Adults and Communities,Other Agencies - Third Party P,30107816,FOUR SEASONS HEALTH CARE," 2,090.08 ",22/01/2016
Delivery Units,Adults and Communities,Other Agencies - Third Party P,30107765,FOUR SEASONS HEALTH CARE (NO.4) LTD," 2,004.00 ",22/01/2016
Delivery Units,Adults and Communities,Other Agencies - Third Party P,30105800,FREEDOM RECOVERY CENTRE," 2,684.00 ",06/01/2016
Delivery Units,Adults and Communities,Other Agencies - Third Party P,30106056,FREEDOM RECOVERY CENTRE," 3,355.00 ",11/01/2016
Delivery Units,Adults and Communities,Other Agencies - Third Party P,30106057,FREEDOM RECOVERY CENTRE," 1,080.00 ",11/01/2016
Delivery Units,Adults and Communities,Other Agencies - Third Party P,30107051,FREEWAYS TRUST LIMITED," 2,109.48 ",18/01/2016
Delivery Units,Adults and Communities,Other Agencies - Third Party P,30107052,FREEWAYS TRUST LIMITED, 829.80 ,18/01/2016
Delivery Units,Adults and Communities,Other Agencies - Third Party P,30106963,FREMANTLE TRUST," 3,052.00 ",18/01/2016
Delivery Units,Adults and Communities,Other Agencies - Third Party P,30107572,FREMANTLE TRUST," 4,500.00 ",22/01/2016
Delivery Units,Adults and Communities,Other Agencies - Third Party P,30107573,FREMANTLE TRUST," 3,000.00 ",22/01/2016
Delivery Units,Adults and Communities,Other Agencies - Third Party P,30107574,FREMANTLE TRUST," 2,908.00 ",22/01/2016
Delivery Units,Adults and Communities,Other Agencies - Third Party P,30107575,FREMANTLE TRUST," 3,000.00 ",22/01/2016
Delivery Units,Adults and Communities,Other Agencies - Third Party P,30107637,FREMANTLE TRUST," 3,160.00 ",22/01/2016
Delivery Units,Adults and Communities,Other Agencies - Third Party P,30107638,FREMANTLE TRUST," 1,525.20 ",22/01/2016
Delivery Units,Adults and Communities,Other Agencies - Third Party P,30107639,FREMANTLE TRUST," 3,160.00 ",22/01/2016
Delivery Units,Adults and Communities,Other Agencies - Third Party P,30107651,FREMANTLE TRUST," 2,274.44 ",22/01/2016
Delivery Units,Adults and Communities,Other Agencies - Third Party P,30108448,FREMANTLE TRUST," 13,546.40 ",25/01/2016
Delivery Units,Adults and Communities,Other Agencies - Third Party P,30108449,FREMANTLE TRUST," 31,688.90 ",25/01/2016
Delivery Units,Adults and Communities,Other Agencies - Third Party P,30108851,FRIARY LODGE," 2,448.78 ",29/01/2016
Delivery Units,Adults and Communities,Other Agencies - Third Party P,30108852,FRIARY LODGE," 2,249.44 ",29/01/2016
Delivery Units,Adults and Communities,Other Agencies - Third Party P,30108854,FRIARY LODGE," 2,448.78 ",29/01/2016
Delivery Units,Adults and Communities,Other Agencies - Third Party P,30108855,FRIARY LODGE," 2,448.78 ",29/01/2016
Delivery Units,Adults and Communities,Other Agencies - Third Party P,30105722,FRIERN RESIDENTIAL CARE HOME," 3,985.71 ",06/01/2016
Delivery Units,Adults and Communities,Other Agencies - Third Party P,30107807,FRIERN RESIDENTIAL CARE HOME," 2,103.31 ",22/01/2016
Delivery Units,Adults and Communities,Other Agencies - Third Party P,30108867,FRIERN RESIDENTIAL CARE HOME," 2,103.31 ",28/01/2016
Delivery Units,Adults and Communities,Other Agencies - Third Party P,30108868,FRIERN RESIDENTIAL CARE HOME," 3,985.71 ",28/01/2016
Delivery Units,Adults and Communities,Other Agencies - Third Party P,30108446,GENTLE HANDS CARE AGENCY," 3,170.70 ",25/01/2016
Delivery Units,Adults and Communities,Other Agencies - Third Party P,30108447,GENTLE HANDS CARE AGENCY," 1,732.20 ",25/01/2016
Delivery Units,Adults and Communities,Other Agencies - Third Party P,30108825,GENTLE HANDS CARE AGENCY, 494.00 ,27/01/2016
Delivery Units,Adults and Communities,Other Agencies - Third Party P,30108826,GENTLE HANDS CARE AGENCY, 390.00 ,27/01/2016
Delivery Units,Adults and Communities,Other Agencies - Third Party P,30106127,GENTLE HANDS CARE HOMES LIMITED," 4,394.00 ",11/01/2016
Delivery Units,Adults and Communities,Other Agencies - Third Party P,30106530,GLEBELANDS," 12,000.00 ",18/01/2016
Delivery Units,Adults and Communities,Other Agencies - Third Party P,30106117,GLENHOLME PSYCHIATRIC AFTER CARE HO," 4,097.05 ",11/01/2016
Delivery Units,Adults and Communities,Other Agencies - Third Party P,30106164,GLENHOLME PSYCHIATRIC AFTER CARE HO," 3,986.16 ",11/01/2016
Delivery Units,Adults and Communities,Other Agencies - Third Party P,30106274,GLENHOLME PSYCHIATRIC AFTER CARE HO," 4,207.14 ",11/01/2016
Delivery Units,Adults and Communities,Other Agencies - Third Party P,30106129,HALLMARK CARE (KINGS LYNN) LTD," 2,890.31 ",11/01/2016
Delivery Units,Adults and Communities,Other Agencies - Third Party P,30107026,HARDEN," 4,343.12 ",18/01/2016
Delivery Units,Adults and Communities,Other Agencies - Third Party P,30104525,HEADWAY EAST LONDON, 340.00 ,07/01/2016
Delivery Units,Adults and Communities,Other Agencies - Third Party P,30106034,HENRY NIHILL HOUSE," 2,165.68 ",13/01/2016
Delivery Units,Adults and Communities,Other Agencies - Third Party P,30106035,HENRY NIHILL HOUSE," 2,398.56 ",13/01/2016
Delivery Units,Adults and Communities,Other Agencies - Third Party P,30106037,HENRY NIHILL HOUSE," 2,165.68 ",13/01/2016
Delivery Units,Adults and Communities,Other Agencies - Third Party P,30106618,HENRY NIHILL HOUSE," 1,524.26 ",18/01/2016
Delivery Units,Adults and Communities,Other Agencies - Third Party P,30106619,HENRY NIHILL HOUSE," 2,475.06 ",18/01/2016
Delivery Units,Adults and Communities,Other Agencies - Third Party P,30107557,HENRY NIHILL HOUSE," 2,428.67 ",22/01/2016
Delivery Units,Adults and Communities,Other Agencies - Third Party P,30107559,HENRY NIHILL HOUSE," 2,398.56 ",22/01/2016
Delivery Units,Adults and Communities,Other Agencies - Third Party P,30107560,HENRY NIHILL HOUSE," 2,165.68 ",22/01/2016
Delivery Units,Adults and Communities,Other Agencies - Third Party P,30106674,HILLGREEN CARE LTD," 7,093.24 ",18/01/2016
Delivery Units,Adults and Communities,Other Agencies - Third Party P,30106163,HILTON LODGE LTD.," 2,184.04 ",11/01/2016
Delivery Units,Adults and Communities,Other Agencies - Third Party P,20027741,HMCTS, 400.00 ,15/01/2016
Delivery Units,Adults and Communities,Other Agencies - Third Party P,30105879,HOLLY HOUSE," 2,031.76 ",06/01/2016
Delivery Units,Adults and Communities,Other Agencies - Third Party P,30107647,HOLLY HOUSE," 2,031.76 ",22/01/2016
Delivery Units,Adults and Communities,Other Agencies - Third Party P,30108037,HOPE WORLDWIDE," 2,563.73 ",25/01/2016
Delivery Units,Adults and Communities,Other Agencies - Third Party P,30104656,HOUSING 21 (BARNET),-246.00 ,20/01/2016
Delivery Units,Adults and Communities,Other Agencies - Third Party P,30104657,HOUSING 21 (BARNET),-246.00 ,20/01/2016
Delivery Units,Adults and Communities,Other Agencies - Third Party P,30104658,HOUSING 21 (BARNET),-246.00 ,20/01/2016
Delivery Units,Adults and Communities,Other Agencies - Third Party P,30106040,INDEPENDENCE HOMES LIMITED," 5,400.00 ",11/01/2016
Delivery Units,Adults and Communities,Other Agencies - Third Party P,30106072,INDEPENDENCE HOMES LIMITED,"-3,085.76 ",18/01/2016
Delivery Units,Adults and Communities,Other Agencies - Third Party P,30106435,INDEPENDENCE HOMES LIMITED," 2,900.00 ",18/01/2016
Delivery Units,Adults and Communities,Other Agencies - Third Party P,30106501,INDEPENDENCE HOMES LIMITED," 2,900.00 ",18/01/2016
Delivery Units,Adults and Communities,Other Agencies - Third Party P,30105972,INDIVIDUALISED CARE LIMITED, 300.00 ,11/01/2016
Delivery Units,Adults and Communities,Other Agencies - Third Party P,30105974,INDIVIDUALISED CARE LIMITED, 441.00 ,11/01/2016
Delivery Units,Adults and Communities,Other Agencies - Third Party P,30105975,INDIVIDUALISED CARE LIMITED," 2,400.00 ",11/01/2016
Delivery Units,Adults and Communities,Other Agencies - Third Party P,30105976,INDIVIDUALISED CARE LIMITED, 700.00 ,11/01/2016
Delivery Units,Adults and Communities,Other Agencies - Third Party P,30105977,INDIVIDUALISED CARE LIMITED, 500.00 ,11/01/2016
Delivery Units,Adults and Communities,Other Agencies - Third Party P,30105978,INDIVIDUALISED CARE LIMITED, 800.00 ,11/01/2016
Delivery Units,Adults and Communities,Other Agencies - Third Party P,30105979,INDIVIDUALISED CARE LIMITED, 712.00 ,11/01/2016
Delivery Units,Adults and Communities,Other Agencies - Third Party P,30105980,INDIVIDUALISED CARE LIMITED, 255.00 ,11/01/2016
Delivery Units,Adults and Communities,Other Agencies - Third Party P,30105981,INDIVIDUALISED CARE LIMITED, 224.00 ,11/01/2016
Delivery Units,Adults and Communities,Other Agencies - Third Party P,30105982,INDIVIDUALISED CARE LIMITED, 210.00 ,11/01/2016
Delivery Units,Adults and Communities,Other Agencies - Third Party P,30105983,INDIVIDUALISED CARE LIMITED, 371.00 ,11/01/2016
Delivery Units,Adults and Communities,Other Agencies - Third Party P,30105984,INDIVIDUALISED CARE LIMITED, 600.00 ,11/01/2016
Delivery Units,Adults and Communities,Other Agencies - Third Party P,30105985,INDIVIDUALISED CARE LIMITED, 140.00 ,11/01/2016
Delivery Units,Adults and Communities,Other Agencies - Third Party P,30105986,INDIVIDUALISED CARE LIMITED," 1,000.00 ",11/01/2016
Delivery Units,Adults and Communities,Other Agencies - Third Party P,30105987,INDIVIDUALISED CARE LIMITED, 825.00 ,11/01/2016
Delivery Units,Adults and Communities,Other Agencies - Third Party P,30105988,INDIVIDUALISED CARE LIMITED, 500.00 ,11/01/2016
Delivery Units,Adults and Communities,Other Agencies - Third Party P,30105989,INDIVIDUALISED CARE LIMITED, 700.00 ,11/01/2016
Delivery Units,Adults and Communities,Other Agencies - Third Party P,30105990,INDIVIDUALISED CARE LIMITED, 600.00 ,11/01/2016
Delivery Units,Adults and Communities,Other Agencies - Third Party P,30105991,INDIVIDUALISED CARE LIMITED," 1,000.00 ",11/01/2016
Delivery Units,Adults and Communities,Other Agencies - Third Party P,30105992,INDIVIDUALISED CARE LIMITED," 1,400.00 ",11/01/2016
Delivery Units,Adults and Communities,Other Agencies - Third Party P,30105993,INDIVIDUALISED CARE LIMITED, 400.00 ,11/01/2016
Delivery Units,Adults and Communities,Other Agencies - Third Party P,30105994,INDIVIDUALISED CARE LIMITED, 700.00 ,11/01/2016
Delivery Units,Adults and Communities,Other Agencies - Third Party P,30105995,INDIVIDUALISED CARE LIMITED, 300.00 ,11/01/2016
Delivery Units,Adults and Communities,Other Agencies - Third Party P,30105996,INDIVIDUALISED CARE LIMITED," 1,244.00 ",11/01/2016
Delivery Units,Adults and Communities,Other Agencies - Third Party P,30105997,INDIVIDUALISED CARE LIMITED, 800.00 ,11/01/2016
Delivery Units,Adults and Communities,Other Agencies - Third Party P,30105998,INDIVIDUALISED CARE LIMITED, 800.00 ,11/01/2016
Delivery Units,Adults and Communities,Other Agencies - Third Party P,30105999,INDIVIDUALISED CARE LIMITED," 1,700.00 ",11/01/2016
Delivery Units,Adults and Communities,Other Agencies - Third Party P,30106000,INDIVIDUALISED CARE LIMITED, 500.00 ,11/01/2016
Delivery Units,Adults and Communities,Other Agencies - Third Party P,30106001,INDIVIDUALISED CARE LIMITED, 267.00 ,11/01/2016
Delivery Units,Adults and Communities,Other Agencies - Third Party P,30106002,INDIVIDUALISED CARE LIMITED, 600.00 ,11/01/2016
Delivery Units,Adults and Communities,Other Agencies - Third Party P,30106004,INDIVIDUALISED CARE LIMITED," 1,602.00 ",11/01/2016
Delivery Units,Adults and Communities,Other Agencies - Third Party P,30107756,INDIVIDUALISED CARE LIMITED, 400.00 ,22/01/2016
Delivery Units,Adults and Communities,Other Agencies - Third Party P,30106668,INSIGHT SPECIALIST BEHAVIOURAL," 5,944.08 ",18/01/2016
Delivery Units,Adults and Communities,Other Agencies - Third Party P,30106993,JEMINI RESPONSE," 9,100.00 ",20/01/2016
Delivery Units,Adults and Communities,Other Agencies - Third Party P,30105869,JEWISH CARE," 1,752.40 ",06/01/2016
Delivery Units,Adults and Communities,Other Agencies - Third Party P,30106082,JEWISH CARE, 300.29 ,11/01/2016
Delivery Units,Adults and Communities,Other Agencies - Third Party P,30107798,JEWISH CARE," 1,244.14 ",22/01/2016
Delivery Units,Adults and Communities,Other Agencies - Third Party P,30108858,JEWISH CARE," 2,244.13 ",28/01/2016
Delivery Units,Adults and Communities,Other Agencies - Third Party P,30108859,JEWISH CARE," 2,244.13 ",28/01/2016
Delivery Units,Adults and Communities,Other Agencies - Third Party P,30108860,JEWISH CARE,"-1,008.00 ",28/01/2016
Delivery Units,Adults and Communities,Other Agencies - Third Party P,30108861,JEWISH CARE," 6,726.33 ",28/01/2016
Delivery Units,Adults and Communities,Other Agencies - Third Party P,30108863,JEWISH CARE,"-5,638.03 ",28/01/2016
Delivery Units,Adults and Communities,Other Agencies - Third Party P,30108864,JEWISH CARE," 6,076.40 ",28/01/2016
Delivery Units,Adults and Communities,Other Agencies - Third Party P,30108507,JIGSAW CREATIVE CARE LIMITED," 11,994.72 ",27/01/2016
Delivery Units,Adults and Communities,Other Agencies - Third Party P,30108508,JIGSAW CREATIVE CARE LIMITED," 5,648.00 ",27/01/2016
Delivery Units,Adults and Communities,Other Agencies - Third Party P,30108509,JIGSAW CREATIVE CARE LIMITED," 11,132.00 ",27/01/2016
Delivery Units,Adults and Communities,Other Agencies - Third Party P,30108511,JIGSAW CREATIVE CARE LIMITED," 5,997.36 ",27/01/2016
Delivery Units,Adults and Communities,Other Agencies - Third Party P,30108512,JIGSAW CREATIVE CARE LIMITED," 2,824.00 ",27/01/2016
Delivery Units,Adults and Communities,Other Agencies - Third Party P,30108514,JIGSAW CREATIVE CARE LIMITED," 5,566.00 ",27/01/2016
Delivery Units,Adults and Communities,Other Agencies - Third Party P,30106529,KEMBLE HOUSE," 8,192.99 ",18/01/2016
Delivery Units,Adults and Communities,Other Agencies - Third Party P,30107544,KEMBLE HOUSE," 14,322.00 ",22/01/2016
Delivery Units,Adults and Communities,Other Agencies - Third Party P,30107545,KEMBLE HOUSE,"-4,799.00 ",22/01/2016
Delivery Units,Adults and Communities,Other Agencies - Third Party P,30107546,KEMBLE HOUSE,"-2,772.00 ",22/01/2016
Delivery Units,Adults and Communities,Other Agencies - Third Party P,30107547,KEMBLE HOUSE,"-7,438.45 ",22/01/2016
Delivery Units,Adults and Communities,Other Agencies - Third Party P,30107548,KEMBLE HOUSE," 7,854.00 ",22/01/2016
Delivery Units,Adults and Communities,Other Agencies - Third Party P,30107549,KEMBLE HOUSE," 1,749.00 ",22/01/2016
Delivery Units,Adults and Communities,Other Agencies - Third Party P,30105650,KISHARON DAY SCHOOL," 1,464.03 ",06/01/2016
Delivery Units,Adults and Communities,Other Agencies - Third Party P,30105651,KISHARON DAY SCHOOL," 4,260.72 ",06/01/2016
Delivery Units,Adults and Communities,Other Agencies - Third Party P,30105652,KISHARON DAY SCHOOL," 2,144.10 ",06/01/2016
Delivery Units,Adults and Communities,Other Agencies - Third Party P,30105653,KISHARON DAY SCHOOL," 2,284.24 ",06/01/2016
Delivery Units,Adults and Communities,Other Agencies - Third Party P,30105654,KISHARON DAY SCHOOL, 686.88 ,06/01/2016
Delivery Units,Adults and Communities,Other Agencies - Third Party P,30105655,KISHARON DAY SCHOOL," 1,373.49 ",06/01/2016
Delivery Units,Adults and Communities,Other Agencies - Third Party P,30105656,KISHARON DAY SCHOOL, 794.08 ,06/01/2016
Delivery Units,Adults and Communities,Other Agencies - Third Party P,30105657,KISHARON DAY SCHOOL, 381.54 ,06/01/2016
Delivery Units,Adults and Communities,Other Agencies - Third Party P,30105658,KISHARON DAY SCHOOL," 1,373.49 ",06/01/2016
Delivery Units,Adults and Communities,Other Agencies - Third Party P,30105659,KISHARON DAY SCHOOL, 397.11 ,06/01/2016
Delivery Units,Adults and Communities,Other Agencies - Third Party P,30105660,KISHARON DAY SCHOOL," 1,679.87 ",06/01/2016
Delivery Units,Adults and Communities,Other Agencies - Third Party P,30105661,KISHARON DAY SCHOOL," 1,340.18 ",06/01/2016
Delivery Units,Adults and Communities,Other Agencies - Third Party P,30105662,KISHARON DAY SCHOOL," 1,241.16 ",06/01/2016
Delivery Units,Adults and Communities,Other Agencies - Third Party P,30105663,KISHARON DAY SCHOOL," 1,369.23 ",06/01/2016
Delivery Units,Adults and Communities,Other Agencies - Third Party P,30105664,KISHARON DAY SCHOOL," 1,133.60 ",06/01/2016
Delivery Units,Adults and Communities,Other Agencies - Third Party P,30105665,KISHARON DAY SCHOOL," 1,373.68 ",06/01/2016
Delivery Units,Adults and Communities,Other Agencies - Third Party P,30105666,KISHARON DAY SCHOOL, 733.72 ,06/01/2016
Delivery Units,Adults and Communities,Other Agencies - Third Party P,30105668,KISHARON DAY SCHOOL," 1,275.96 ",06/01/2016
Delivery Units,Adults and Communities,Other Agencies - Third Party P,30105672,KISHARON DAY SCHOOL," 1,914.00 ",06/01/2016
Delivery Units,Adults and Communities,Other Agencies - Third Party P,30107769,KISHARON DAY SCHOOL," 1,464.03 ",22/01/2016
Delivery Units,Adults and Communities,Other Agencies - Third Party P,30107770,KISHARON DAY SCHOOL," 4,260.72 ",22/01/2016
Delivery Units,Adults and Communities,Other Agencies - Third Party P,30107771,KISHARON DAY SCHOOL," 2,144.10 ",22/01/2016
Delivery Units,Adults and Communities,Other Agencies - Third Party P,30107772,KISHARON DAY SCHOOL," 2,284.24 ",22/01/2016
Delivery Units,Adults and Communities,Other Agencies - Third Party P,30107773,KISHARON DAY SCHOOL, 686.88 ,22/01/2016
Delivery Units,Adults and Communities,Other Agencies - Third Party P,30107774,KISHARON DAY SCHOOL," 1,373.49 ",22/01/2016
Delivery Units,Adults and Communities,Other Agencies - Third Party P,30107775,KISHARON DAY SCHOOL, 794.08 ,22/01/2016
Delivery Units,Adults and Communities,Other Agencies - Third Party P,30107776,KISHARON DAY SCHOOL, 381.54 ,22/01/2016
Delivery Units,Adults and Communities,Other Agencies - Third Party P,30107777,KISHARON DAY SCHOOL," 1,373.49 ",22/01/2016
Delivery Units,Adults and Communities,Other Agencies - Third Party P,30107778,KISHARON DAY SCHOOL, 397.11 ,22/01/2016
Delivery Units,Adults and Communities,Other Agencies - Third Party P,30107780,KISHARON DAY SCHOOL," 1,679.87 ",22/01/2016
Delivery Units,Adults and Communities,Other Agencies - Third Party P,30107781,KISHARON DAY SCHOOL," 1,340.18 ",22/01/2016
Delivery Units,Adults and Communities,Other Agencies - Third Party P,30107782,KISHARON DAY SCHOOL," 1,241.16 ",22/01/2016
Delivery Units,Adults and Communities,Other Agencies - Third Party P,30107783,KISHARON DAY SCHOOL," 1,369.23 ",22/01/2016
Delivery Units,Adults and Communities,Other Agencies - Third Party P,30107784,KISHARON DAY SCHOOL," 1,133.60 ",22/01/2016
Delivery Units,Adults and Communities,Other Agencies - Third Party P,30107785,KISHARON DAY SCHOOL," 1,373.68 ",22/01/2016
Delivery Units,Adults and Communities,Other Agencies - Third Party P,30107786,KISHARON DAY SCHOOL, 733.72 ,22/01/2016
Delivery Units,Adults and Communities,Other Agencies - Third Party P,30107788,KISHARON DAY SCHOOL," 1,275.96 ",22/01/2016
Delivery Units,Adults and Communities,Other Agencies - Third Party P,30107793,KISHARON DAY SCHOOL," 1,914.00 ",22/01/2016
Delivery Units,Adults and Communities,Other Agencies - Third Party P,30107794,KISHARON DAY SCHOOL," 6,128.00 ",22/01/2016
Delivery Units,Adults and Communities,Other Agencies - Third Party P,30108996,KISHARON DAY SCHOOL," 6,128.00 ",29/01/2016
Delivery Units,Adults and Communities,Other Agencies - Third Party P,30107550,KISIMUL GROUP LTD," 15,322.02 ",22/01/2016
Delivery Units,Adults and Communities,Other Agencies - Third Party P,30107551,KISIMUL GROUP LTD," 36,114.26 ",22/01/2016
Delivery Units,Adults and Communities,Other Agencies - Third Party P,30105612,LANGDON COMMUNITY LTD, 956.38 ,06/01/2016
Delivery Units,Adults and Communities,Other Agencies - Third Party P,30105613,LANGDON COMMUNITY LTD," 5,002.64 ",06/01/2016
Delivery Units,Adults and Communities,Other Agencies - Third Party P,30105614,LANGDON COMMUNITY LTD," 1,641.60 ",06/01/2016
Delivery Units,Adults and Communities,Other Agencies - Third Party P,30105615,LANGDON COMMUNITY LTD, 243.20 ,06/01/2016
Delivery Units,Adults and Communities,Other Agencies - Third Party P,30105616,LANGDON COMMUNITY LTD," 1,763.20 ",06/01/2016
Delivery Units,Adults and Communities,Other Agencies - Third Party P,30105617,LANGDON COMMUNITY LTD," 2,097.60 ",06/01/2016
Delivery Units,Adults and Communities,Other Agencies - Third Party P,30105618,LANGDON COMMUNITY LTD," 3,411.49 ",06/01/2016
Delivery Units,Adults and Communities,Other Agencies - Third Party P,30105620,LANGDON COMMUNITY LTD," 1,315.12 ",06/01/2016
Delivery Units,Adults and Communities,Other Agencies - Third Party P,30105621,LANGDON COMMUNITY LTD, 608.00 ,06/01/2016
Delivery Units,Adults and Communities,Other Agencies - Third Party P,30105622,LANGDON COMMUNITY LTD," 2,403.92 ",06/01/2016
Delivery Units,Adults and Communities,Other Agencies - Third Party P,30105624,LANGDON COMMUNITY LTD," 1,064.00 ",06/01/2016
Delivery Units,Adults and Communities,Other Agencies - Third Party P,30105625,LANGDON COMMUNITY LTD, 425.60 ,06/01/2016
Delivery Units,Adults and Communities,Other Agencies - Third Party P,30105626,LANGDON COMMUNITY LTD," 1,276.80 ",06/01/2016
Delivery Units,Adults and Communities,Other Agencies - Third Party P,30105627,LANGDON COMMUNITY LTD," 2,979.20 ",06/01/2016
Delivery Units,Adults and Communities,Other Agencies - Third Party P,30105892,LANGDON COMMUNITY LTD," 1,772.32 ",08/01/2016
Delivery Units,Adults and Communities,Other Agencies - Third Party P,30106005,LANGDON COMMUNITY LTD," 6,335.32 ",11/01/2016
Delivery Units,Adults and Communities,Other Agencies - Third Party P,30106006,LANGDON COMMUNITY LTD, 851.20 ,11/01/2016
Delivery Units,Adults and Communities,Other Agencies - Third Party P,30105769,LCS PARTNERSHIPS LTD, 896.00 ,06/01/2016
Delivery Units,Adults and Communities,Other Agencies - Third Party P,30106157,LCS PARTNERSHIPS LTD, 896.00 ,11/01/2016
Delivery Units,Adults and Communities,Other Agencies - Third Party P,30106519,LCS PARTNERSHIPS LTD, 896.00 ,22/01/2016
Delivery Units,Adults and Communities,Other Agencies - Third Party P,30107313,LCS PARTNERSHIPS LTD, 856.00 ,20/01/2016
Delivery Units,Adults and Communities,Other Agencies - Third Party P,30106156,LEEMING BAR CARE HOME," 1,939.32 ",11/01/2016
Delivery Units,Adults and Communities,Other Agencies - Third Party P,30107763,LEO BAECK HOUSING ASSOC. LTD," 2,249.36 ",22/01/2016
Delivery Units,Adults and Communities,Other Agencies - Third Party P,30108131,LEO BAECK HOUSING ASSOC. LTD," 3,153.00 ",28/01/2016
Delivery Units,Adults and Communities,Other Agencies - Third Party P,30106239,LEWIS.W.HAMMERSON MEMORIAL HOME," 2,249.45 ",11/01/2016
Delivery Units,Adults and Communities,Other Agencies - Third Party P,30106240,LEWIS.W.HAMMERSON MEMORIAL HOME," 2,249.45 ",11/01/2016
Delivery Units,Adults and Communities,Other Agencies - Third Party P,30106282,LEWIS.W.HAMMERSON MEMORIAL HOME," 2,249.45 ",11/01/2016
Delivery Units,Adults and Communities,Other Agencies - Third Party P,30108892,LEWIS.W.HAMMERSON MEMORIAL HOME," 2,249.45 ",28/01/2016
Delivery Units,Adults and Communities,Other Agencies - Third Party P,30108895,LEWIS.W.HAMMERSON MEMORIAL HOME," 2,249.45 ",28/01/2016
Delivery Units,Adults and Communities,Other Agencies - Third Party P,30108896,LEWIS.W.HAMMERSON MEMORIAL HOME," 2,249.45 ",28/01/2016
Delivery Units,Adults and Communities,Other Agencies - Third Party P,30107563,LIFESTYLE CARE 2011 PLC," 2,138.00 ",22/01/2016
Delivery Units,Adults and Communities,Other Agencies - Third Party P,30106692,LIFESTYLE CARE PLC," 3,150.80 ",18/01/2016
Delivery Units,Adults and Communities,Other Agencies - Third Party P,30106693,LIFESTYLE CARE PLC," 2,094.52 ",18/01/2016
Delivery Units,Adults and Communities,Other Agencies - Third Party P,30106694,LIFESTYLE CARE PLC," 2,094.52 ",18/01/2016
Delivery Units,Adults and Communities,Other Agencies - Third Party P,30106695,LIFESTYLE CARE PLC," 2,321.64 ",18/01/2016
Delivery Units,Adults and Communities,Other Agencies - Third Party P,30106696,LIFESTYLE CARE PLC," 2,094.52 ",18/01/2016
Delivery Units,Adults and Communities,Other Agencies - Third Party P,30106697,LIFESTYLE CARE PLC," 2,094.52 ",18/01/2016
Delivery Units,Adults and Communities,Other Agencies - Third Party P,30106698,LIFESTYLE CARE PLC," 2,321.64 ",18/01/2016
Delivery Units,Adults and Communities,Other Agencies - Third Party P,30106699,LIFESTYLE CARE PLC," 2,321.64 ",18/01/2016
Delivery Units,Adults and Communities,Other Agencies - Third Party P,30106700,LIFESTYLE CARE PLC," 2,094.52 ",18/01/2016
Delivery Units,Adults and Communities,Other Agencies - Third Party P,30106701,LIFESTYLE CARE PLC," 2,094.52 ",18/01/2016
Delivery Units,Adults and Communities,Other Agencies - Third Party P,30106702,LIFESTYLE CARE PLC," 2,321.92 ",18/01/2016
Delivery Units,Adults and Communities,Other Agencies - Third Party P,30106703,LIFESTYLE CARE PLC," 2,094.52 ",18/01/2016
Delivery Units,Adults and Communities,Other Agencies - Third Party P,30105738,LIFEWAYS," 3,145.24 ",06/01/2016
Delivery Units,Adults and Communities,Other Agencies - Third Party P,30105739,LIFEWAYS," 6,930.00 ",06/01/2016
Delivery Units,Adults and Communities,Other Agencies - Third Party P,30105741,LIFEWAYS," 5,037.40 ",06/01/2016
Delivery Units,Adults and Communities,Other Agencies - Third Party P,30105742,LIFEWAYS," 5,943.00 ",06/01/2016
Delivery Units,Adults and Communities,Other Agencies - Third Party P,30105748,LIFEWAYS," 3,656.00 ",06/01/2016
Delivery Units,Adults and Communities,Other Agencies - Third Party P,30105749,LIFEWAYS," 5,766.44 ",06/01/2016
Delivery Units,Adults and Communities,Other Agencies - Third Party P,30105750,LIFEWAYS," 2,377.20 ",06/01/2016
Delivery Units,Adults and Communities,Other Agencies - Third Party P,30105751,LIFEWAYS," 4,828.24 ",06/01/2016
Delivery Units,Adults and Communities,Other Agencies - Third Party P,30107294,LIFEWAYS," 3,145.24 ",20/01/2016
Delivery Units,Adults and Communities,Other Agencies - Third Party P,30107296,LIFEWAYS," 5,037.40 ",20/01/2016
Delivery Units,Adults and Communities,Other Agencies - Third Party P,30107297,LIFEWAYS," 5,943.00 ",20/01/2016
Delivery Units,Adults and Communities,Other Agencies - Third Party P,30107302,LIFEWAYS," 3,656.00 ",20/01/2016
Delivery Units,Adults and Communities,Other Agencies - Third Party P,30107303,LIFEWAYS," 5,766.44 ",20/01/2016
Delivery Units,Adults and Communities,Other Agencies - Third Party P,30107304,LIFEWAYS," 2,377.20 ",20/01/2016
Delivery Units,Adults and Communities,Other Agencies - Third Party P,30107305,LIFEWAYS," 4,828.24 ",20/01/2016
Delivery Units,Adults and Communities,Other Agencies - Third Party P,30107532,LIFEWAYS," 6,930.00 ",21/01/2016
Delivery Units,Adults and Communities,Other Agencies - Third Party P,30106973,LIVABILITY," 2,400.00 ",18/01/2016
Delivery Units,Adults and Communities,Other Agencies - Third Party P,30106975,LIVABILITY," 3,424.00 ",18/01/2016
Delivery Units,Adults and Communities,Other Agencies - Third Party P,30107024,LIVABILITY," 4,891.20 ",18/01/2016
Delivery Units,Adults and Communities,Other Agencies - Third Party P,30107025,LIVABILITY," 5,279.24 ",18/01/2016
Delivery Units,Adults and Communities,Other Agencies - Third Party P,30106436,LORRAINES CARE HOME LTD," 1,820.00 ",14/01/2016
Delivery Units,Adults and Communities,Other Agencies - Third Party P,30107016,M D HOMES," 3,542.86 ",18/01/2016
Delivery Units,Adults and Communities,Other Agencies - Third Party P,30105790,MACINTYRE CARE, 750.40 ,06/01/2016
Delivery Units,Adults and Communities,Other Agencies - Third Party P,30107045,MACINTYRE CARE, 750.40 ,18/01/2016
Delivery Units,Adults and Communities,Other Agencies - Third Party P,30107048,MADELAYNE COURT," 2,216.41 ",18/01/2016
Delivery Units,Adults and Communities,Other Agencies - Third Party P,30106437,MAISON MOTI LTD," 2,460.00 ",14/01/2016
Delivery Units,Adults and Communities,Other Agencies - Third Party P,30106438,MAISON MOTI LTD," 2,500.00 ",14/01/2016
Delivery Units,Adults and Communities,Other Agencies - Third Party P,30106439,MAISON MOTI LTD," 2,500.00 ",14/01/2016
Delivery Units,Adults and Communities,Other Agencies - Third Party P,30106440,MAISON MOTI LTD," 2,440.00 ",14/01/2016
Delivery Units,Adults and Communities,Other Agencies - Third Party P,30106441,MAISON MOTI LTD," 1,026.00 ",14/01/2016
Delivery Units,Adults and Communities,Other Agencies - Third Party P,30106442,MAISON MOTI LTD," 2,440.00 ",14/01/2016
Delivery Units,Adults and Communities,Other Agencies - Third Party P,30106507,MAISON MOTI LTD," 2,500.00 ",18/01/2016
Delivery Units,Adults and Communities,Other Agencies - Third Party P,30106508,MAISON MOTI LTD, 535.71 ,18/01/2016
Delivery Units,Adults and Communities,Other Agencies - Third Party P,30106655,MAISON MOTI LTD," 3,400.00 ",18/01/2016
Delivery Units,Adults and Communities,Other Agencies - Third Party P,30106656,MAISON MOTI LTD," 3,400.00 ",18/01/2016
Delivery Units,Adults and Communities,Other Agencies - Third Party P,30106657,MAISON MOTI LTD," 3,260.00 ",18/01/2016
Delivery Units,Adults and Communities,Other Agencies - Third Party P,30107539,MAISON MOTI LTD, 343.40 ,21/01/2016
Delivery Units,Adults and Communities,Other Agencies - Third Party P,30105787,MARLBOROUGH HOUSE," 3,951.44 ",06/01/2016
Delivery Units,Adults and Communities,Other Agencies - Third Party P,30105776,MARRILYNE LODGE," 2,554.16 ",06/01/2016
Delivery Units,Adults and Communities,Other Agencies - Third Party P,30105777,MARRILYNE LODGE, 798.30 ,06/01/2016
Delivery Units,Adults and Communities,Other Agencies - Third Party P,30109063,MARRILYNE LODGE," 2,554.16 ",29/01/2016
Delivery Units,Adults and Communities,Other Agencies - Third Party P,30106169,MAYFIELD ADULT SERVICES," 9,875.71 ",11/01/2016
Delivery Units,Adults and Communities,Other Agencies - Third Party P,30104028,MCCH SOCIETY LIMITED," 3,774.80 ",07/01/2016
Delivery Units,Adults and Communities,Other Agencies - Third Party P,30106112,MEERA NURSING HOME LIMITED," 2,397.72 ",11/01/2016
Delivery Units,Adults and Communities,Other Agencies - Third Party P,30106154,MEERA NURSING HOME LIMITED," 2,397.72 ",11/01/2016
Delivery Units,Adults and Communities,Other Agencies - Third Party P,30106168,MEERA NURSING HOME LIMITED," 2,397.72 ",11/01/2016
Delivery Units,Adults and Communities,Other Agencies - Third Party P,30106185,MEERA NURSING HOME LIMITED," 2,397.72 ",11/01/2016
Delivery Units,Adults and Communities,Other Agencies - Third Party P,30106189,MEERA NURSING HOME LIMITED," 2,397.72 ",11/01/2016
